Workbook

Sheet Reserve Plan
CD15: Inputs | CI15: Bar Chart
CD16: Current Yield on Invested Reserves: | CE16: ='Property Info'!B70 -> 0.04 | CI16: =CE20 -> 2025 | CL16: =-R712 -> 0
CD17: Construction Inflation Rate | CE17: ='Property Info'!B71 -> 0.039 | CI17: =CI16+1 -> 2026 | CL17: =-S712 -> -727035.6855
CD18: Current Contributions: | CE18: ='Property Info'!B74 -> 413385.13 | CI18: 2027 | CL18: =-T712 -> -35174.39258
CD19: Past Months: | CE19: ='Property Info'!B79 -> 0 | CI19: 2028 | CL19: =-U712 -> -1161950.249
CD20: Current Year | CE20: ='Property Info'!B77 -> 2025 | CI20: 2029 | CL20: =-V712 -> -118867.2901
CD21: Starting Year of Recommendations | CE21: ='Property Info'!B80 -> 2026 | CI21: 2030 | CL21: =-W712 -> -77593.05147
CD22: Starting Date of Recommendations | CE22: ='Property Info'!B81 -> 2026-01-01 | CI22: 2031 | CL22: =-X712 -> -1589767.675
P23: $ | CD23: Date on (Balance Sheet) | CE23: ='Property Info'!B73 -> 2025-12-31 | CI23: 2032 | CL23: =-Y712 -> -773684.4052
P24: =AH71 -> 961700 | CD24: Number of Units | CE24: ='Property Info'!B56 -> 231 | CI24: 2033 | CL24: =-Z712 -> -136735.715
CD25: Current Operating Budget on (Budget Sheet) | CE25: ='Property Info'!B76 -> 1735690.76 | CI25: 2034 | CL25: =-AA712 -> -949955.7776
CD26: First Year Special Assessment | CE26: =S70 -> 0 | CI26: 2035 | CL26: =-AB712 -> -252897.5226
CD27: Current Annual Percentage Contribution to Reserves from Operating Budget | CE27: =CE18/CE25 -> 0.2381675005 | CI27: 2036 | CL27: =-AC712 -> -885910.3264
CI28: 2037 | CL28: =-AD712 -> -90488.36558
CD29: Calculations DO NOT TOUCH | CI29: 2038 | CL29: =-AE712 -> -389481.2085
CD30: Rounding Convention | CE30: 2 | CI30: 2039 | CL30: =-AF712 -> -67423.52148
CD31: Annual Difference | CE31: =S68-CE18 -> 43614.87 | CI31: 2040 | CL31: =-AG712 -> -2735599.434
CD32: Total Recommended Near Term Expenditures (Next 5 Years) | CE32: =SUM(R712:V712) -> 2043027.618 | CI32: 2041 | CL32: =-AH712 -> -515520.7032
CD33: Recommended Percentage Adjustment in Current Operating Budget | CE33: =(CE31/CE25) -> 0.02512824923 | CI33: 2042 | CL33: =-AI712 -> -187957.4417
CD34: Recommended Reserve Contribution | CE34: =S68 -> 457000 | CI34: 2043 | CL34: =-AJ712 -> -1278400.61
CD35: Total Recommended Reserve Contribution including Additional Assessment | CE35: =S68+S70 -> 457000 | CI35: 2044 | CL35: =-AK712 -> -2306959.772
CD36: Recommended Monthly Contributions Per Unit | CE36: =((CE34/12)/CE24) -> 164.8629149 | CI36: 2045 | CL36: =-AL712 -> -277447.6961
CD37: Average Monthly Difference per Unit Owner | CE37: =CE36-CE39 -> 15.73408009 | CI37: 2046 | CL37: =-AM712 -> -315370.1829
CD38: Partial Interest | CE38: =(R67+R73/2+R71/2)*((CE16/12)*CE19) -> 0 | CI38: 2047 | CL38: =-AN712 -> -2510063.126
CD39: Current Monthly Contributions Per Unit | CE39: =((CE18/12)/CE24) -> 149.1288348 | CI39: 2048 | CL39: =-AO712 -> -166171.0528
CD40: Total Recommended Contribution(Special Assessment + Annual Recommended Contributions) | CE40: =(CE35/12)/CE24 -> 164.8629149 | CI40: 2049 | CL40: =-AP712 -> -1357812.502
CD41: Special Assessment Per Unit Per Month First Year | CE41: =((CE26/12)/CE24) -> 0 | CI41: 2050 | CL41: =-AQ712 -> -183475.3843
CI42: 2051 | CL42: =-AR712 -> -1457427.291
CI43: 2052 | CL43: =-AS712 -> -2665259.678
CI44: 2053 | CL44: =-AT712 -> -1639633.505
CI45: 2054 | CL45: =-AU712 -> -3267174.951
CI46: 2055 | CL46: =-AV712 -> -5605439.678
A50: 0.01
A51: 0.06 | F51: www.BuildingReserves.com -or- Contact Proposals@BuildingReserves.com
F52: ='Property Info'!B5 -> City Walk Condominium Association
F53: =('Property Info'!B8&", "&'Property Info'!B6) -> 66 9th Street East, St Paul, MN
B55: FINANCIAL INPUTS | F55: PROPERTY INFO | H55: FINANCIAL INPUTS
C56: Current Year | D56: 2025 | H56: Interest Rate | I56: 0.04
C57: # Remaining Months In Current Year Based on Balance Sheet Date | D57: =DATEDIF(I59,D59,"m") -> 0 | H57: Inflation Rate | I57: 0.039
C58: Starting Year of Recommendations | D58: 2026 | F58: Reference #: | H58: Reserve Balance | I58: 965000
C59: Starting Date of Recommendations | D59: 2026-01-01 | F59: ='Property Info'!B38 -> 240279 | H59: Reserve Balance Date | I59: 2025-12-31
H60: Current Total Income | I60: 1735690.76
F61: Inspection: | H61: Current Reserve Contribution | I61: 413385.13
F62: ='Property Info'!B13 -> 2024-12-03 | H62: Fiscal Year | I62: Jan 1 - Dec 31
C63: Critical Point
A64: Low Balance | C64: =MIN(R74:AV74) -> 559846.8054 | F64: # Buildings: | H64: RECOMMENDED FUNDING
F65: ='Property Info'!B54 -> 1 | H65: Current Annual Contribution | I65: =I61 -> 413385.13
N66: Copy/Paste line below to reset inflationary increase | T66: =ROUND($S$68*(1+$CE$17),-$CE$30) -> 474800 | U66: =ROUND($T$68*(1+$CE$17),-$CE$30) -> 520100 | V66: =ROUND($U$68*(1+$CE$17),-$CE$30) -> 565400 | W66: =ROUND($V$68*(1+$CE$17),-$CE$30) -> 610700 | X66: =ROUND($W$68*(1+$CE$17),-$CE$30) -> 656000 | Y66: =ROUND($X$68*(1+$CE$17),-$CE$30) -> 681600 | Z66: =ROUND($Y$68*(1+$CE$17),-$CE$30) -> 708200 | AA66: =ROUND($Z$68*(1+$CE$17),-$CE$30) -> 735800 | AB66: =ROUND($AA$68*(1+$CE$17),-$CE$30) -> 764500 | AC66: =ROUND($AB$68*(1+$CE$17),-$CE$30) -> 794300 | AD66: =ROUND($AC$68*(1+$CE$17),-$CE$30) -> 825300 | AE66: =ROUND($AD$68*(1+$CE$17),-$CE$30) -> 857500 | AF66: =ROUND($AE$68*(1+$CE$17),-$CE$30) -> 890900 | AG66: =ROUND($AF$68*(1+$CE$17),-$CE$30) -> 925600 | AH66: =ROUND($AG$68*(1+$CE$17),-$CE$30) -> 961700 | AI66: =ROUND($AH$68*(1+$CE$17),-$CE$30) -> 999200 | AJ66: =ROUND($AI$68*(1+$CE$17),-$CE$30) -> 1038200 | AK66: =ROUND($AJ$68*(1+$CE$17),-$CE$30) -> 1078700 | AL66: =ROUND($AK$68*(1+$CE$17),-$CE$30) -> 1120800 | AM66: =ROUND($AL$68*(1+$CE$17),-$CE$30) -> 1164500 | AN66: =ROUND($AM$68*(1+$CE$17),-$CE$30) -> 1209900 | AO66: =ROUND($AN$68*(1+$CE$17),-$CE$30) -> 1257100 | AP66: =ROUND($AO$68*(1+$CE$17),-$CE$30) -> 1306100 | AQ66: =ROUND($AP$68*(1+$CE$17),-$CE$30) -> 1357000 | AR66: =ROUND($AQ$68*(1+$CE$17),-$CE$30) -> 1409900 | AS66: =ROUND($AR$68*(1+$CE$17),-$CE$30) -> 1464900 | AT66: =ROUND($AS$68*(1+$CE$17),-$CE$30) -> 1522000 | AU66: =ROUND($AT$68*(1+$CE$17),-$CE$30) -> 1581400 | AV66: =ROUND($AU$68*(1+$CE$17),-$CE$30) -> 1643100 | AW66: =ROUND($AV$68*(1+$CE$17),-$CE$30) -> 1707200 | AX66: =ROUND($AW$68*(1+$CE$17),-$CE$30) -> 1773800 | AY66: =ROUND($AX$68*(1+$CE$17),-$CE$30) -> 1843000 | AZ66: =ROUND($AY$68*(1+$CE$17),-$CE$30) -> 1914900 | BA66: =ROUND($AZ$68*(1+$CE$17),-$CE$30) -> 1989600
A67: Low Balance Year | C67: =IF(R74=C64,R78,IF(S74=C64,S78,IF(T74=C64,T78,IF(U74=C64,U78,IF(V74=C64,V78,IF(W74=C64,W78,IF(X74=C64,X78,IF(Y74=C64,Y78,IF(Z74=C64,Z78,IF(AA74=C64,AA78,IF(AB74=C64,AB78,IF(AC74=C64,AC78,IF(AD74=C64,AD78,IF(AE74=C64,AE78,IF(AF74=C64,AF78,IF(AG74=C64,AG78,IF(AH74=C64,AH78,IF(AI74=C64,AI78,IF(AJ74=C64,AJ78,IF(AK74=C64,AK78,IF(AL74=C64,AL78,IF(AM74=C64,AM78,IF(AN74=C64,AN78,IF(AO74=C64,AO78,IF(AP74=C64,AP78,IF(AQ74=C64,AQ78,IF(AR74=C64,AR78,IF(AS74=C64,AS78,IF(AT74=C64,AT78,IF(AU74=C64,AU78,IF(AV74=C64,AV78,))))))))))))))))))))))))))))))) -> 2055 | H67: Recommended Annual Contribution | I67: =S68 -> 457000 | N67: Reserves at Beginning of Year | R67: =I58 -> 965000 | S67: =$R$74 -> 965000 | T67: =$S$74 -> 728163.3145 | U67: =$T$74 -> 1232023.922 | V67: =$U$74 -> 651199.6725 | W67: =$V$74 -> 1155559.382 | X67: =$W$74 -> 1766665.331 | Y67: =$X$74 -> 884888.6554 | Z67: =$Y$74 -> 826358.2502 | AA67: =$Z$74 -> 1442306.535 | AB67: =$AA$74 -> 1281559.758 | AC67: =$AB$74 -> 1854656.235 | AD67: =$AC$74 -> 1835399.909 | AE67: =$AD$74 -> 2658323.543 | AF67: =$AE$74 -> 3242035.334 | AG67: =$AF$74 -> 4211662.813 | AH67: =$AG$74 -> 2533930.379 | AI67: =$AH$74 -> 3090390.676 | AJ67: =$AI$74 -> 4041473.235 | AK67: =$AJ$74 -> 3958127.624 | AL67: =$AK$74 -> 2863627.852 | AM67: =$AL$74 -> 3838392.156 | AN67: =$AM$74 -> 4858039.973 | AO67: =$AN$74 -> 3726194.846 | AP67: =$AO$74 -> 4987989.794 | AQ67: =$AP$74 -> 5134762.292 | AR67: =$AQ$74 -> 6537147.907 | AS67: =$AR$74 -> 6750155.617 | AT67: =$AS$74 -> 5795794.939 | AU67: =$AT$74 -> 5907640.434 | AV67: =$AU$74 -> 4424455.483 | AW67: =$AV$74 -> 559846.8054 | AX67: =$AW$74 -> 2323584.805 | AY67: =$AX$74 -> 4225803.805 | AZ67: =$AY$74 -> 6274695.805 | BA67: =$AZ$74 -> 8478881.805
F68: # Units: | H68: Recommended Annual Adjustment | I68: =I67-I65 -> 43614.87 | N68: Annual Reserve Contribution | R68: =(CE18/12)*CE19 -> 0 | S68: =ROUND(I61+43600,-2) -> 457000 | T68: =S68+43600 -> 500600 | U68: =T68+43600 -> 544200 | V68: =U68+43600 -> 587800 | W68: =V68+43600 -> 631400 | X68: =ROUND($W$68*(1+$CE$17),-$CE$30) -> 656000 | Y68: =ROUND($X$68*(1+$CE$17),-$CE$30) -> 681600 | Z68: =ROUND($Y$68*(1+$CE$17),-$CE$30) -> 708200 | AA68: =ROUND($Z$68*(1+$CE$17),-$CE$30) -> 735800 | AB68: =ROUND($AA$68*(1+$CE$17),-$CE$30) -> 764500 | AC68: =ROUND($AB$68*(1+$CE$17),-$CE$30) -> 794300 | AD68: =ROUND($AC$68*(1+$CE$17),-$CE$30) -> 825300 | AE68: =ROUND($AD$68*(1+$CE$17),-$CE$30) -> 857500 | AF68: =ROUND($AE$68*(1+$CE$17),-$CE$30) -> 890900 | AG68: =ROUND($AF$68*(1+$CE$17),-$CE$30) -> 925600 | AH68: =ROUND($AG$68*(1+$CE$17),-$CE$30) -> 961700 | AI68: =ROUND($AH$68*(1+$CE$17),-$CE$30) -> 999200 | AJ68: =ROUND($AI$68*(1+$CE$17),-$CE$30) -> 1038200 | AK68: =ROUND(AJ68*(1+$CE$17),-$CE$30) -> 1078700 | AL68: 1120800 | AM68: 1164500 | AN68: 1209900 | AO68: 1257100 | AP68: 1306100 | AQ68: 1357000 | AR68: 1409900 | AS68: 1464900 | AT68: 1522000 | AU68: 1581400 | AV68: 1643100 | AW68: =ROUND($AV$68*(1+$CE$17),-$CE$30) -> 1707200 | AX68: =ROUND($AW$68*(1+$CE$17),-$CE$30) -> 1773800 | AY68: =ROUND($AX$68*(1+$CE$17),-$CE$30) -> 1843000 | AZ68: =ROUND($AY$68*(1+$CE$17),-$CE$30) -> 1914900 | BA68: =ROUND($AZ$68*(1+$CE$17),-$CE$30) -> 1989600 | BC68: Date of Special Ass.
A69: % OF Annual Cumulative Expenditures | C69: =-C64/L71 -> 0.09987562754 | F69: ='Property Info'!B55 -> 231 | H69: Current Reserve Contribution /unit /month ave. | I69: =$I$61/'Property Info'!$B$55/12 -> 149.1288348 | N69: Annual Reserve Adjustment (%) | S69: =(S68-I61)/I61 -> 0.1055066253 | T69: =(T68-S68)/S68 -> 0.095404814 | U69: 0.08709548542 | V69: 0.08011760382 | W69: 0.07417488942 | X69: 0.03896103896 | Y69: 0.03902439024 | Z69: 0.0390258216 | AA69: 0.0389720418 | AB69: 0.03900516445 | AC69: 0.03897972531 | AD69: 0.03902807503 | AE69: 0.03901611535 | AF69: 0.03895043732 | AG69: 0.03894937703 | AH69: 0.03900172861 | AI69: 0.0389934491 | AJ69: 0.03903122498 | AK69: 0.0390098247 | AL69: 0.03902846018 | AM69: 0.03899000714 | AN69: 0.03898668957 | AO69: 0.03901148855 | AP69: 0.03897860154 | AQ69: 0.03897098231 | AR69: 0.03898305085 | AS69: 0.03900985886 | AT69: 0.03897876988 | AU69: 0.03902759527 | AV69: 0.03901606172 | AW69: =(AW68-AV68)/AV68 -> 0.03901162437 | AX69: =(AX68-AW68)/AW68 -> 0.03901124649 | AY69: =(AY68-AX68)/AX68 -> 0.03901229 | AZ69: =(AZ68-AY68)/AY68 -> 0.03901247965 | BA69: =(BA68-AZ68)/AZ68 -> 0.03900986997
F70: Years Built: | H70: Recommended Reserve Contribution /unit /month ave. | I70: =$S$68/'Property Info'!$B$55/12 -> 164.8629149 | N70: Estimated Special Assessments for Limited Common Elements
L71: =IF(C67=R78,R73,IF(C67=S78,S73,IF(C67=T78,T73,IF(C67=U78,U73,IF(C67=V78,V73,IF(C67=W78,W73,IF(C67=X78,X73,IF(C67=Y78,Y73,IF(C67=Z78,Z73,IF(C67=AA78,AA73,IF(C67=AB78,AB73,IF(C67=AC78,AC73,IF(C67=AD78,AD73,IF(C67=AE78,AE73,IF(C67=AF78,AF73,IF(C67=AG78,AG73,IF(C67=AH78,AH73,IF(C67=AI78,AI73,IF(C67=AJ78,AJ73,IF(C67=AK78,AK73,IF(C67=AL78,AL73,IF(C67=AM78,AM73,IF(C67=AN78,AN73,IF(C67=AO78,AO73,IF(C67=AP78,AP73,IF(C67=AQ78,AQ73,IF(C67=AR78,AR73,IF(C67=AS78,AS73,IF(C67=AT78,AT73,IF(C67=AU78,AU73,IF(C67=AV78,AV73))))))))))))))))))))))))))))))) -> -5605439.678 | M71: =SMALL(R73:AV73,2) -> -3267174.951 | N71: Total Suggested Reserve Contribution | R71: =R68+R70 -> 0 | S71: =S68+S70 -> 457000 | T71: =T68+T70 -> 500600 | U71: 544200 | V71: 587800 | W71: 631400 | X71: 656000 | Y71: 681600 | Z71: 708200 | AA71: 735800 | AB71: 764500 | AC71: 794300 | AD71: 825300 | AE71: 857500 | AF71: 890900 | AG71: 925600 | AH71: 961700 | AI71: 999200 | AJ71: 1038200 | AK71: 1078700 | AL71: 1120800 | AM71: 1164500 | AN71: 1209900 | AO71: 1257100 | AP71: 1306100 | AQ71: 1357000 | AR71: 1409900 | AS71: 1464900 | AT71: 1522000 | AU71: 1581400 | AV71: 1643100 | AW71: =AW68+AW70 -> 1707200 | AX71: 1773800 | AY71: 1843000 | AZ71: 1914900 | BA71: 1989600
F72: ='Property Info'!B57 -> 1982 | H72: Recommended Adjustment /unit /month ave. | I72: =I70-I69 -> 15.73408009 | N72: Interest Earned | R72: =$CE$38 -> 0 | S72: =ROUND($CE$16*($S$67+$S$73/2+$S$71/2),0) -> 33199 | T72: =ROUND($CE$16*($T$67+$T$73/2+$T$71/2),0) -> 38435 | U72: =ROUND($CE$16*($U$67+$U$73/2+$U$71/2),0) -> 36926 | V72: =ROUND($CE$16*($V$67+$V$73/2+$V$71/2),0) -> 35427 | W72: =ROUND($CE$16*($W$67+$W$73/2+$W$71/2),0) -> 57299 | X72: =ROUND($CE$16*($X$67+$X$73/2+$X$71/2),0) -> 51991 | Y72: =ROUND($CE$16*($Y$67+$Y$73/2+$Y$71/2),0) -> 33554 | Z72: =ROUND($CE$16*($Z$67+$Z$73/2+$Z$71/2),0) -> 44484 | AA72: =ROUND($CE$16*($AA$67+$AA$73/2+$AA$71/2),0) -> 53409 | AB72: =ROUND($CE$16*($AB$67+$AB$73/2+$AB$71/2),0) -> 61494 | AC72: =ROUND($CE$16*($AC$67+$AC$73/2+$AC$71/2),0) -> 72354 | AD72: =ROUND($CE$16*($AD$67+$AD$73/2+$AD$71/2),0) -> 88112 | AE72: =ROUND($CE$16*($AE$67+$AE$73/2+$AE$71/2),0) -> 115693 | AF72: =ROUND($CE$16*($AF$67+$AF$73/2+$AF$71/2),0) -> 146151 | AG72: =ROUND($CE$16*($AG$67+$AG$73/2+$AG$71/2),0) -> 132267 | AH72: =ROUND($CE$16*($AH$67+$AH$73/2+$AH$71/2),0) -> 110281 | AI72: =ROUND($CE$16*($AI$67+$AI$73/2+$AI$71/2),0) -> 139840 | AJ72: =ROUND($CE$16*($AJ$67+$AJ$73/2+$AJ$71/2),0) -> 156855 | AK72: =ROUND($CE$16*($AK$67+$AK$73/2+$AK$71/2),0) -> 133760 | AL72: =ROUND($CE$16*($AL$67+$AL$73/2+$AL$71/2),0) -> 131412 | AM72: =ROUND($CE$16*($AM$67+$AM$73/2+$AM$71/2),0) -> 170518 | AN72: =ROUND($CE$16*($AN$67+$AN$73/2+$AN$71/2),0) -> 168318 | AO72: =ROUND($CE$16*($AO$67+$AO$73/2+$AO$71/2),0) -> 170866 | AP72: =ROUND($CE$16*($AP$67+$AP$73/2+$AP$71/2),0) -> 198485 | AQ72: =ROUND($CE$16*($AQ$67+$AQ$73/2+$AQ$71/2),0) -> 228861 | AR72: =ROUND($CE$16*($AR$67+$AR$73/2+$AR$71/2),0) -> 260535 | AS72: =ROUND($CE$16*($AS$67+$AS$73/2+$AS$71/2),0) -> 245999 | AT72: =ROUND($CE$16*($AT$67+$AT$73/2+$AT$71/2),0) -> 229479 | AU72: =ROUND($CE$16*($AU$67+$AU$73/2+$AU$71/2),0) -> 202590 | AV72: =ROUND($CE$16*($AV$67+$AV$73/2+$AV$71/2),0) -> 97731 | AW72: =ROUND($CE$16*($AW$67+$AW$73/2+$AW$71/2),0) -> 56538 | AX72: =ROUND($CE$16*($AX$67+$AX$73/2+$AX$71/2),0) -> 128419 | AY72: =ROUND($CE$16*($AY$67+$AY$73/2+$AY$71/2),0) -> 205892 | AZ72: =ROUND($CE$16*($AZ$67+$AZ$73/2+$AZ$71/2),0) -> 289286 | BA72: =ROUND($CE$16*($BA$67+$BA$73/2+$BA$71/2),0) -> 378947 | CD72: Top Three Near Term Costs | CF72: Top 3 Component Costs
N73: Annual Expenditures | R73: =-$R$712 -> 0 | S73: =-$S$712 -> -727035.6855 | T73: =-$T$712 -> -35174.39258 | U73: =-$U$712 -> -1161950.249 | V73: =-$V$712 -> -118867.2901 | W73: =-$W$712 -> -77593.05147 | X73: =-$X$712 -> -1589767.675 | Y73: =-$Y$712 -> -773684.4052 | Z73: =-$Z$712 -> -136735.715 | AA73: =-$AA$712 -> -949955.7776 | AB73: =-$AB$712 -> -252897.5226 | AC73: =-$AC$712 -> -885910.3264 | AD73: =-$AD$712 -> -90488.36558 | AE73: =-$AE$712 -> -389481.2085 | AF73: =-$AF$712 -> -67423.52148 | AG73: =-$AG$712 -> -2735599.434 | AH73: =-$AH$712 -> -515520.7032 | AI73: =-$AI$712 -> -187957.4417 | AJ73: =-$AJ$712 -> -1278400.61 | AK73: =-$AK$712 -> -2306959.772 | AL73: =-$AL$712 -> -277447.6961 | AM73: =-$AM$712 -> -315370.1829 | AN73: =-$AN$712 -> -2510063.126 | AO73: =-$AO$712 -> -166171.0528 | AP73: =-$AP$712 -> -1357812.502 | AQ73: =-$AQ$712 -> -183475.3843 | AR73: =-$AR$712 -> -1457427.291 | AS73: =-$AS$712 -> -2665259.678 | AT73: =-$AT$712 -> -1639633.505 | AU73: =-$AU$712 -> -3267174.951 | AV73: =-$AV$712 -> -5605439.678 | AW73: =-$AW$712 -> 0 | AX73: =-$AX$712 -> 0 | AY73: =-$AY$712 -> 0 | AZ73: =-$AZ$712 -> 0 | BA73: =-$BA$712 -> 0
N74: Reserves at Year End | R74: =$R$73+$R$72+$R$71+$R$67 -> 965000 | S74: =$S$73+$S$67+$S$72+$S$71 -> 728163.3145 | T74: =$T$73+$T$67+$T$72+$T$71 -> 1232023.922 | U74: =$U$73+$U$67+$U$72+$U$71 -> 651199.6725 | V74: =$V$73+$V$67+$V$72+$V$71 -> 1155559.382 | W74: =$W$73+$W$67+$W$72+$W$71 -> 1766665.331 | X74: =$X$73+$X$67+$X$72+$X$71 -> 884888.6554 | Y74: =$Y$73+$Y$67+$Y$72+$Y$71 -> 826358.2502 | Z74: =$Z$73+$Z$67+$Z$72+$Z$71 -> 1442306.535 | AA74: =$AA$73+$AA$67+$AA$72+$AA$71 -> 1281559.758 | AB74: =$AB$73+$AB$67+$AB$72+$AB$71 -> 1854656.235 | AC74: =$AC$73+$AC$67+$AC$72+$AC$71 -> 1835399.909 | AD74: =$AD$73+$AD$67+$AD$72+$AD$71 -> 2658323.543 | AE74: =$AE$73+$AE$67+$AE$72+$AE$71 -> 3242035.334 | AF74: =$AF$73+$AF$67+$AF$72+$AF$71 -> 4211662.813 | AG74: =$AG$73+$AG$67+$AG$72+$AG$71 -> 2533930.379 | AH74: =$AH$73+$AH$67+$AH$72+$AH$71 -> 3090390.676 | AI74: =$AI$73+$AI$67+$AI$72+$AI$71 -> 4041473.235 | AJ74: =$AJ$73+$AJ$67+$AJ$72+$AJ$71 -> 3958127.624 | AK74: =$AK$73+$AK$67+$AK$72+$AK$71 -> 2863627.852 | AL74: =$AL$73+$AL$67+$AL$72+$AL$71 -> 3838392.156 | AM74: =$AM$73+$AM$67+$AM$72+$AM$71 -> 4858039.973 | AN74: =$AN$73+$AN$67+$AN$72+$AN$71 -> 3726194.846 | AO74: =$AO$73+$AO$67+$AO$72+$AO$71 -> 4987989.794 | AP74: =$AP$73+$AP$67+$AP$72+$AP$71 -> 5134762.292 | AQ74: =$AQ$73+$AQ$67+$AQ$72+$AQ$71 -> 6537147.907 | AR74: =$AR$73+$AR$67+$AR$72+$AR$71 -> 6750155.617 | AS74: =$AS$73+$AS$67+$AS$72+$AS$71 -> 5795794.939 | AT74: =$AT$73+$AT$67+$AT$72+$AT$71 -> 5907640.434 | AU74: =$AU$73+$AU$67+$AU$72+$AU$71 -> 4424455.483 | AV74: =$AV$73+$AV$67+$AV$72+$AV$71 -> 559846.8054 | AW74: =$AW$73+$AW$67+$AW$72+$AW$71 -> 2323584.805 | AX74: =$AX$73+$AX$67+$AX$72+$AX$71 -> 4225803.805 | AY74: =$AY$73+$AY$67+$AY$72+$AY$71 -> 6274695.805 | AZ74: =$AZ$73+$AZ$67+$AZ$72+$AZ$71 -> 8478881.805 | BA74: =$BA$73+$BA$67+$BA$72+$BA$71 -> 10847428.81 | BC74: First Year of Shortage Based on Current Funding | BM74: EXPENDITURES | CD74: =LARGE(BN80:BN150, 1) -> 620178.6288 | CE74: =VLOOKUP(CD74,CD80:CE214,2) -> Chimney Caps, Metal | CF74: =LARGE(O80:O212,1) -> 12170409.13 | CG74: =VLOOKUP(CF74,CF79:CG214,2) -> Chimney Caps, Metal
N75: Predicted Reserves Based on Present Funding: | R75: =R74 -> 965000 | S75: =ROUND(R75+$CE$18+S73+$CE$16*(R75+S73/2+$CE$18/2),-3) -> 684000 | T75: 1097000 | U75: 377000 | V75: 692000 | W75: 1062000 | X75: -95000 | Y75: -466000 | Z75: -202000 | AA75: -757000 | AB75: -624000 | AC75: -1131000 | AD75: -847000 | AE75: -856000 | AF75: -537000 | AG75: -2927000 | AH75: -3148000 | AI75: -3044000 | AJ75: -4048000 | AK75: -6141000 | AL75: -6248000 | AM75: -6398000 | AN75: -8793000 | AO75: -8893000 | AP75: -10212000 | AQ75: -10386000 | AR75: -11866000 | AS75: -14638000 | AT75: -16474000 | AU75: -20044000 | AV75: -26142000 | AW75: -26766000 | AX75: -27415000 | AY75: -28090000 | AZ75: -28792000 | BA75: -29522000 | BD75: =IF(R75<0,R78,IF(S75<0,S78,IF(T75<0,T78,IF(U75<0,U78,IF(V75<0,V78,IF(W75<0,W78,IF(X75<0,X78,IF(Y75<0,Y78,IF(Z75<0,Z78,IF(AA75<0,AA78,IF(AB75<0,AB78,IF(AC75<0,AC78,IF(AD75<0,AD78,IF(AE75<0,AE78,IF(AF75<0,AF78,IF(AG75<0,AG78,IF(AH75<0,AH78,IF(AI75<0,AI78,IF(AJ75<0,AJ78,IF(AK75<0,AK78,IF(AL75<0,AL78,IF(AM75<0,AM78,IF(AN75<0,AN78,IF(AO75<0,AO78,IF(AP75<0,AP78,IF(AQ75<0,AQ78,IF(AR75<0,AR78,IF(AS75<0,AS78,IF(AT75<0,AT78,IF(AU75<0,AU78,IF(AV75<0,AV78,0))))))))))))))))))))))))))))))) -> 2031 | BM75: FIVE YEARS | BN75: FIFTEEN YEARS | BO75: THIRTY YEARS | CD75: =LARGE(BN80:BN150, 2) -> 519405.5455 | CE75: =VLOOKUP(CD75,CD80:CE214,2) -> Chimney Caps, Metal | CF75: =LARGE(O80:O212,2) -> 3241767.713 | CG75: =VLOOKUP(CF75,CF79:CG214,2) -> Chimney Caps, Metal
F76: Quantity | H76: Reserve Components | I76: Age, Useful Life, & Replacement | N76: Replacement Costs | R76: =IF(R74=$C$64,"Critical Point",IF(R74=$D$64,"Critical Point2"," ")) ->  | S76: =IF(S74=$C$64,"Critical Point",IF(S74=$D$64,"Critical Point2"," ")) ->  | T76: =IF(T74=$C$64,"Critical Point",IF(T74=$D$64,"Critical Point2"," ")) ->  | U76: =IF(U74=$C$64,"Critical Point",IF(U74=$D$64,"Critical Point2"," ")) ->  | V76: =IF(V74=$C$64,"Critical Point",IF(V74=$D$64,"Critical Point2"," ")) ->  | W76: =IF(W74=$C$64,"Critical Point",IF(W74=$D$64,"Critical Point2"," ")) ->  | AV76: Critical Point | AW76: =AV77+1 -> 31 | AX76: =AW76+1 -> 32 | AY76: =AX76+1 -> 33 | AZ76: =AY76+1 -> 34 | BA76: =AZ76+1 -> 35 | BM76: =SUM(R73:W73) -> -2120620.669 | BN76: =SUM(R73:AG73) -> -9992564.621 | BO76: =SUM(R73:AV73) -> -33726678.19 | CD76: =LARGE(BN80:BN150, 3) -> 298884.3075 | CE76: =VLOOKUP(CD76,CD80:CE214,2) -> Chimney Caps, Metal | CF76: =LARGE(O80:O212,3) -> 2173602.369 | CG76: =VLOOKUP(CF76,CF79:CG214,2) -> Chimney Caps, Metal
R77: 0 | S77: =R77+1 -> 1 | T77: 2 | U77: 3 | V77: 4 | W77: 5 | X77: 6 | Y77: 7 | Z77: 8 | AA77: 9 | AB77: 10 | AC77: 11 | AD77: 12 | AE77: 13 | AF77: 14 | AG77: 15 | AH77: 16 | AI77: 17 | AJ77: 18 | AK77: 19 | AL77: 20 | AM77: 21 | AN77: 22 | AO77: 23 | AP77: 24 | AQ77: 25 | AR77: 26 | AS77: 27 | AT77: 28 | AU77: 29 | AV77: 30 | BY77: =MAX(BY79:BY150) ->  | CA77: =LARGE(CB79:CB214,1) -> 
A78: Classification of Component | B78: Make Sure Numbers Drop Down to 300 | C78: Total Quantity | D78: Line Item | E78: Total Quantity, 30 Years | F78: Quantity Per Period | G78: Units | H78: Reserve Component | I78: Useful life | J78: Year of 1st Replacement | K78: Current Age | L78: Condition: 1=Poor 10=Excellent | M78: Remaining Useful Life | N78: Unit Cost | O78: Total Future Cost, 30 Years | Q78: Current Cost per Phase | R78: =D56 -> 2025 | S78: =R78+1 -> 2026 | T78: =S78+1 -> 2027 | U78: 2028 | V78: 2029 | W78: 2030 | X78: 2031 | Y78: 2032 | Z78: 2033 | AA78: 2034 | AB78: 2035 | AC78: 2036 | AD78: 2037 | AE78: 2038 | AF78: 2039 | AG78: 2040 | AH78: 2041 | AI78: 2042 | AJ78: 2043 | AK78: 2044 | AL78: 2045 | AM78: 2046 | AN78: 2047 | AO78: 2048 | AP78: 2049 | AQ78: 2050 | AR78: 2051 | AS78: 2052 | AT78: 2053 | AU78: 2054 | AV78: 2055 | AW78: 2056 | AX78: 2057 | AY78: 2058 | AZ78: 2059 | BA78: 2060 | BB78: Condition Program | BC78: Property Class | BD78: 1st Year of Replacement Program | BL78: Approximate Quantity Present at Development | BM78: Percentage of Total Future Costs: | BN78: Total Cost for Near Term 5 Year Out | BP78: Percentage Replaced | BU78: Component LABLE | BY78: Table of Contents | CD78: Top Near Term Costs | CF78: Top 3 Component Costs
A79: EXTERNAL BUILDING COMPONENT | B79: 1 | D79: =BK79 -> 0 | H79: EXTERNAL BUILDING COMPONENTS | BD79: 1st Year of Replacement Program | BU79: =A79 -> EXTERNAL BUILDING COMPONENT | BY79: =D79 -> 0 | CA79: 1 | CB79: =IF(BY79=$BY$77,CA79,1) ->  | CH79: =H79 -> EXTERNAL BUILDING COMPONENTS | DK79: =AV712 -> 5605439.678
A80: EXTERNAL BUILDING COMPONENT | B80: =B79+1 -> 2 | C80: 4 | D80: 1 | E80: =COUNT(R80:AV80)*F80 -> 8 | F80: =C80 -> 4 | G80: Each | H80: Awnings, Canvas and Frames | I80: to 20 | J80: =$CE$20+M80 -> 2036 | K80: 5 | L80: 6 | M80: =BD80+BE80+BF80+BG80+BH80 -> 11 | N80: 4200 | O80: =SUM(R80:AV80) -> 74629.92999 | P80: =F80*N80 -> 16800 | Q80: =$P80*(1+$CE$17)^Q$77 -> 16800 | AC80: =$P80*(1+$CE$17)^AC$77 -> 25590.59036 | AT80: =$P80*(1+$CE$17)^AT$77 -> 49039.33963 | BB80: =IF('Reserve Plan'!L80=1,"Poor",IF('Reserve Plan'!L80=2,"Poor",IF('Reserve Plan'!L80=3,"Fair",IF('Reserve Plan'!L80=4,"Fair",IF('Reserve Plan'!L80=5,"Fair",IF('Reserve Plan'!L80=6,"Good",IF('Reserve Plan'!L80=7,"Good",IF('Reserve Plan'!L80=8,"Good",IF('Reserve Plan'!L80=9,"Very Good",IF('Reserve Plan'!L80=10,"Very Good","")))))))))) -> Good | BD80: =IF($R80>1,0,IF($S80>1,1,IF($T80>1,2,IF($U80>1,3,IF($V80>1,4,IF($W80>1,5,IF($X80>1,6,IF($Y80>1,7,8)))))))) -> 8 | BE80: =IF($BD80<8,0,IF($Z80>1,0,IF($AA80>1,1,IF($AB80>1,2,IF($AC80>1,3,IF($AD80>1,4,IF($AE80>1,5,IF($AF80>1,6,7)))))))) -> 3 | BF80: =IF($BE80<7,0,IF($AG80>1,0,IF($AH80>1,1,IF($AI80>1,2,IF($AJ80>1,3,IF($AK80>1,4,IF($AL80>1,5,IF($AM80>1,6,7)))))))) -> 0 | BG80: =IF($BF80<7,0,IF(AN80>1,0,IF(AO80>1,1,IF(AP80>1,2,IF(AQ80>1,3,IF(AR80>1,4,IF(AS80>1,5, IF(AT80>1,6,7)))))))) -> 0 | BH80: =IF($BG80<7,0, IF(AU80>1,0, IF($AV80>1,1,1))) -> 0 | BL80: =C80 -> 4 | BM80: =O80/$O$712 -> 0.002212786257 | BN80: =SUM(R80:W80) -> 0 | BP80: =E80/C80 -> 2 | BS80: =IF(BP80<1,"Partial","Full") -> Full | BU80: EXTERNAL BUILDING COMPONENT | BY80: 1 | CA80: =#REF!+1 ->  | CB80: =IF(BY80=$BY$77,CA80,1) ->  | CD80: 0 | CE80: Balconies, Capital Repairs and Waterproof Coating Application | CF80: 0 | CG80: Balconies, Capital Repairs and Waterproof Coating Application | CH80: =D80 -> 1
A81: EXTERNAL BUILDING COMPONENT | B81: =B80+1 -> 3 | C81: 5 | D81: =D80+1 -> 2 | E81: =COUNT(R81:AV81)*F81 -> 5 | F81: 5 | G81: Each | H81: Doors, Glass, Front Entry and 12th Floor Plaza | I81: to 30 | J81: =$CE$20+M81 -> 2031 | K81: Varies | L81: 6 | M81: =BD81+BE81+BF81+BG81+BH81 -> 6 | N81: 6000 | O81: =SUM(R81:AV81) -> 37741.09879 | P81: =F81*N81 -> 30000 | Q81: 30000 | X81: =$P81*(1+$CE$17)^X$77 -> 37741.09879 | BB81: =IF('Reserve Plan'!L81=1,"Poor",IF('Reserve Plan'!L81=2,"Poor",IF('Reserve Plan'!L81=3,"Fair",IF('Reserve Plan'!L81=4,"Fair",IF('Reserve Plan'!L81=5,"Fair",IF('Reserve Plan'!L81=6,"Good",IF('Reserve Plan'!L81=7,"Good",IF('Reserve Plan'!L81=8,"Good",IF('Reserve Plan'!L81=9,"Very Good",IF('Reserve Plan'!L81=10,"Very Good","")))))))))) -> Good | BD81: 6 | BE81: 0 | BF81: 0 | BG81: =IF($BF81<7,0,IF(AN81>1,0,IF(AO81>1,1,IF(AP81>1,2,IF(AQ81>1,3,IF(AR81>1,4,IF(AS81>1,5, IF(AT81>1,6,7)))))))) -> 0 | BH81: =IF($BG81<7,0, IF(AU81>1,0, IF($AV81>1,1,1))) -> 0 | BL81: =C81 -> 5 | BM81: 0.001119028046 | BN81: =SUM(R81:W81) -> 0 | BP81: =E81/C81 -> 1 | BS81: =IF(BP81<1,"Partial","Full") -> Full | BU81: =A81 -> EXTERNAL BUILDING COMPONENT | BY81: =D81 -> 2 | CA81: =#REF!+1 ->  | CB81: =IF(BY81=$BY$77,CA81,1) ->  | CD81: 0 | CE81: Doors, Garage, Metal Sectional | CF81: 0 | CG81: Doors, Garage, Metal Sectional | CH81: =D81 -> 2
A82: EXTERNAL BUILDING COMPONENT | B82: 4 | C82: 1 | D82: =D81+1 -> 3 | E82: 3 | F82: =C82 -> 1 | G82: Allowance | H82: Paint Finishes, Exterior, Skyway, 7th Street | I82: to 12 | J82: 2026 | K82: 12 | L82: 1 | M82: 1 | N82: 25000 | O82: 132146.6866 | P82: 25000 | Q82: 25000 | S82: 25975 | AE82: =$P82*(1+$CE$17)^AE$77 -> 41109.49359 | AQ82: =$P82*(1+$CE$17)^AQ$77 -> 65062.193 | BB82: =IF('Reserve Plan'!L82=1,"Poor",IF('Reserve Plan'!L82=2,"Poor",IF('Reserve Plan'!L82=3,"Fair",IF('Reserve Plan'!L82=4,"Fair",IF('Reserve Plan'!L82=5,"Fair",IF('Reserve Plan'!L82=6,"Good",IF('Reserve Plan'!L82=7,"Good",IF('Reserve Plan'!L82=8,"Good",IF('Reserve Plan'!L82=9,"Very Good",IF('Reserve Plan'!L82=10,"Very Good","")))))))))) -> Poor | BD82: 1 | BE82: 0 | BF82: 0 | BG82: 0 | BH82: 0 | BL82: 1 | BM82: 0.003918164897 | BN82: 25975 | BP82: 3 | BS82: Full | BU82: EXTERNAL BUILDING COMPONENT | BY82: 3 | CA82: =#REF!+1 ->  | CD82: 0 | CE82: Roof, EPDM | CF82: 0 | CG82: Roof, EPDM | CH82: 3
A83: EXTERNAL BUILDING COMPONENT | B83: 5 | C83: 1415 | D83: 4 | E83: 1415 | F83: 1415 | G83: Square Feet | H83: Roof, 12th Floor, Patios, West Elevation, Underlying Membrane | I83: to 35+ | J83: 2028 | K83: to 43 | L83: 5 | M83: 3 | N83: 82 | O83: =SUM(R83:AV83) -> 130141.8377 | P83: 116030 | Q83: 116030 | U83: =$P83*(1+$CE$17)^U$77 -> 130141.8377 | BB83: =IF('Reserve Plan'!L83=1,"Poor",IF('Reserve Plan'!L83=2,"Poor",IF('Reserve Plan'!L83=3,"Fair",IF('Reserve Plan'!L83=4,"Fair",IF('Reserve Plan'!L83=5,"Fair",IF('Reserve Plan'!L83=6,"Good",IF('Reserve Plan'!L83=7,"Good",IF('Reserve Plan'!L83=8,"Good",IF('Reserve Plan'!L83=9,"Very Good",IF('Reserve Plan'!L83=10,"Very Good","")))))))))) -> Fair | BD83: 3 | BE83: 0 | BF83: 0 | BG83: 0 | BH83: 0 | BL83: 1415 | BM83: 0.003858720889 | BN83: 130141.8377 | BP83: 1 | BS83: Full | BU83: EXTERNAL BUILDING COMPONENT | BY83: 4 | CA83: =CA76+1 -> 1 | CD83: 0 | CE83: Chimney Caps, Metal | CF83: 0 | CG83: Chimney Caps, Metal | CH83: 4
A84: EXTERNAL BUILDING COMPONENT | B84: 6 | C84: 7775 | D84: 5 | E84: 15550 | F84: 7775 | G84: Square Feet | H84: Roof, 12th Floor, Pool Deck Terrace, Common, Capital Repairs | I84: to 15 | J84: 2026 | K84: to 43 | L84: 3 | M84: 1 | N84: =80*0.33 -> 26.4 | O84: 591841.1463 | P84: 205260 | Q84: 205260 | S84: =$P84*(1+$CE$17)^S$77 -> 213265.14 | AH84: =$P84*(1+$CE$17)^AH$77 -> 378576.0063 | BB84: =IF('Reserve Plan'!L84=1,"Poor",IF('Reserve Plan'!L84=2,"Poor",IF('Reserve Plan'!L84=3,"Fair",IF('Reserve Plan'!L84=4,"Fair",IF('Reserve Plan'!L84=5,"Fair",IF('Reserve Plan'!L84=6,"Good",IF('Reserve Plan'!L84=7,"Good",IF('Reserve Plan'!L84=8,"Good",IF('Reserve Plan'!L84=9,"Very Good",IF('Reserve Plan'!L84=10,"Very Good","")))))))))) -> Fair | BD84: 1 | BE84: 0 | BF84: 0 | BG84: 0 | BH84: 0 | BL84: 7775 | BM84: 0.01754816003 | BN84: 213265.14 | BP84: 2 | BS84: Full | BU84: EXTERNAL BUILDING COMPONENT | BY84: 5 | CA84: =CA83+1 -> 2 | CD84: 0 | CE84: Doors, Front Entrances | CF84: 0 | CG84: Doors, Front Entrances | CH84: 5
A85: EXTERNAL BUILDING COMPONENT | B85: 7 | C85: 13 | D85: 6 | E85: 13 | F85: =C85 -> 13 | G85: Squares | H85: Roof, Skyway, 7th Street | I85: 20 to 25 | J85: 2033 | K85: Not Available | L85: 4 | M85: 8 | N85: 3000 | O85: =SUM(R85:AV85) -> 52965.00133 | P85: 39000 | Q85: 39000 | Z85: =$P85*(1+$CE$17)^Z$77 -> 52965.00133 | BB85: =IF('Reserve Plan'!L85=1,"Poor",IF('Reserve Plan'!L85=2,"Poor",IF('Reserve Plan'!L85=3,"Fair",IF('Reserve Plan'!L85=4,"Fair",IF('Reserve Plan'!L85=5,"Fair",IF('Reserve Plan'!L85=6,"Good",IF('Reserve Plan'!L85=7,"Good",IF('Reserve Plan'!L85=8,"Good",IF('Reserve Plan'!L85=9,"Very Good",IF('Reserve Plan'!L85=10,"Very Good","")))))))))) -> Fair | BD85: 8 | BE85: 0 | BF85: 0 | BG85: 0 | BH85: 0 | BL85: 13 | BM85: 0.001570418558 | BN85: 0 | BP85: 1 | BS85: Full | BU85: EXTERNAL BUILDING COMPONENT | BY85: 6 | CA85: =#REF!+1 ->  | CD85: 0 | CE85: Roof, Built-up | CF85: 0 | CG85: Roof, Built-up | CH85: 6
A86: EXTERNAL BUILDING COMPONENT | B86: 8 | C86: 140 | D86: 7 | E86: 140 | F86: 140 | G86: Squares | H86: Roofs, Tower, Built-Up (Incl. Skylights) | I86: to 30 | J86: 2055 | K86: 23 | L86: 5 | M86: 30 | N86: 2900 | O86: =SUM(R86:AV86) -> 1279359.093 | P86: 406000 | Q86: 406000 | AV86: =$P86*(1+$CE$17)^AV$77 -> 1279359.093 | BB86: =IF('Reserve Plan'!L86=1,"Poor",IF('Reserve Plan'!L86=2,"Poor",IF('Reserve Plan'!L86=3,"Fair",IF('Reserve Plan'!L86=4,"Fair",IF('Reserve Plan'!L86=5,"Fair",IF('Reserve Plan'!L86=6,"Good",IF('Reserve Plan'!L86=7,"Good",IF('Reserve Plan'!L86=8,"Good",IF('Reserve Plan'!L86=9,"Very Good",IF('Reserve Plan'!L86=10,"Very Good","")))))))))) -> Fair | BD86: 8 | BE86: 7 | BF86: 7 | BG86: 7 | BH86: 1 | BL86: 140 | BM86: 0.03793314853 | BN86: 0 | BP86: 1 | BS86: Full | BU86: EXTERNAL BUILDING COMPONENT | BY86: 7 | CA86: =#REF!+1 ->  | CD86: 0 | CE86: Roof, Built-up | CF86: 0 | CG86: Roof, Built-up | CH86: 7
A87: EXTERNAL BUILDING COMPONENT | B87: 9 | C87: 24910 | D87: 8 | E87: =COUNT(R87:AV87)*F87 -> 74730 | F87: 24910 | G87: Linear Feet | H87: Sealants, at Windows, Doors, and Control Joints | I87: 8 to 12 | J87: =$CE$20+M87 -> 2031 | K87: 6 | L87: 7 | M87: =BD87+BE87+BF87+BG87+BH87 -> 6 | N87: 12 | O87: =SUM(R87:AV87) -> 1913149.819 | P87: =F87*N87 -> 298920 | Q87: 298920 | X87: =$P87*(1+$CE$17)^X$77 -> 376052.3084 | AJ87: =$P87*(1+$CE$17)^AJ$77 -> 595161.4999 | AV87: =$P87*(1+$CE$17)^AV$77 -> 941936.0102 | BB87: =IF('Reserve Plan'!L87=1,"Poor",IF('Reserve Plan'!L87=2,"Poor",IF('Reserve Plan'!L87=3,"Fair",IF('Reserve Plan'!L87=4,"Fair",IF('Reserve Plan'!L87=5,"Fair",IF('Reserve Plan'!L87=6,"Good",IF('Reserve Plan'!L87=7,"Good",IF('Reserve Plan'!L87=8,"Good",IF('Reserve Plan'!L87=9,"Very Good",IF('Reserve Plan'!L87=10,"Very Good","")))))))))) -> Good | BD87: 6 | BE87: 0 | BF87: 0 | BG87: =IF($BF87<7,0,IF(AN87>1,0,IF(AO87>1,1,IF(AP87>1,2,IF(AQ87>1,3,IF(AR87>1,4,IF(AS87>1,5, IF(AT87>1,6,7)))))))) -> 0 | BH87: =IF($BG87<7,0, IF(AU87>1,0, IF($AV87>1,1,1))) -> 0 | BL87: =C87 -> 24910 | BM87: 0.05672511854 | BN87: =SUM(R87:W87) -> 0 | BP87: =E87/C87 -> 3 | BS87: =IF(BP87<1,"Partial","Full") -> Full | BU87: =A87 -> EXTERNAL BUILDING COMPONENT | BY87: =D87 -> 8 | CA87: =#REF!+1 ->  | CB87: =IF(BY87=$BY$77,CA87,1) ->  | CD87: 0 | CE87: Lights Fixtures | CF87: 0 | CG87: Lights Fixtures | CH87: =D87 -> 8
A88: EXTERNAL BUILDING COMPONENT | B88: 10 | C88: 1 | D88: 9 | E88: 2 | F88: 1 | G88: Allowance | H88: Signage, Illuminated and Metal Lettering | I88: to 20 | J88: 2031 | K88: Not Available | L88: 6 | M88: 6 | N88: 18000 | O88: 71316.38461 | P88: 18000 | Q88: 18000 | X88: 22644.65928 | AR88: =$P88*(1+$CE$17)^AR$77 -> 48671.72534 | BB88: =IF('Reserve Plan'!L88=1,"Poor",IF('Reserve Plan'!L88=2,"Poor",IF('Reserve Plan'!L88=3,"Fair",IF('Reserve Plan'!L88=4,"Fair",IF('Reserve Plan'!L88=5,"Fair",IF('Reserve Plan'!L88=6,"Good",IF('Reserve Plan'!L88=7,"Good",IF('Reserve Plan'!L88=8,"Good",IF('Reserve Plan'!L88=9,"Very Good",IF('Reserve Plan'!L88=10,"Very Good","")))))))))) -> Good | BD88: 6 | BE88: 0 | BF88: 0 | BG88: 0 | BH88: 0 | BL88: 1 | BM88: 0.002114539244 | BN88: 0 | BP88: 2 | BS88: Full | BU88: EXTERNAL BUILDING COMPONENT | BY88: 9 | CA88: =#REF!+1 ->  | CD88: 0 | CE88: Roof, Built-up | CF88: 0 | CG88: Roof, Built-up | CH88: 9
A89: EXTERNAL BUILDING COMPONENT | B89: 11 | C89: 90730 | D89: 10 | E89: 272190 | F89: =C89 -> 90730 | G89: Square Feet | H89: Walls, Masonry, Capital Repairs (Incl. Balcony Overhangs) | I89: 8 to 12 | J89: 2031 | K89: 6 | L89: 6 | M89: 6 | N89: 3.4 | O89: 1974348.596 | P89: 308482 | Q89: 308482 | X89: =$P89*(1+$CE$17)^X$77 -> 388081.6546 | AJ89: =$P89*(1+$CE$17)^AJ$77 -> 614199.8188 | AV89: =$P89*(1+$CE$17)^AV$77 -> 972067.1227 | BB89: =IF('Reserve Plan'!L89=1,"Poor",IF('Reserve Plan'!L89=2,"Poor",IF('Reserve Plan'!L89=3,"Fair",IF('Reserve Plan'!L89=4,"Fair",IF('Reserve Plan'!L89=5,"Fair",IF('Reserve Plan'!L89=6,"Good",IF('Reserve Plan'!L89=7,"Good",IF('Reserve Plan'!L89=8,"Good",IF('Reserve Plan'!L89=9,"Very Good",IF('Reserve Plan'!L89=10,"Very Good","")))))))))) -> Good | BD89: 6 | BE89: 0 | BF89: 0 | BG89: 0 | BH89: 0 | BL89: 90730 | BM89: 0.05853966954 | BN89: 0 | BP89: 3 | BS89: Full | BU89: EXTERNAL BUILDING COMPONENT | BY89: 10 | CA89: =#REF!+1 ->  | CD89: 0 | CE89: Lights Fixtures | CF89: 0 | CG89: Lights Fixtures | CH89: 10
A90: EXTERNAL BUILDING COMPONENT | B90: 12 | C90: 1045 | D90: 11 | E90: =COUNT(R90:AV90)*F90 -> 1045 | F90: =C90 -> 1045 | G90: Square Feet | H90: Windows, Skybridge Atrium, Shared at 50% MPR | I90: to 45+ | J90: =$CE$20+M90 -> 2031 | K90: 43 | L90: 4 | M90: =BD90+BE90+BF90+BG90+BH90 -> 6 | N90: =75*0.5 -> 37.5 | O90: =SUM(R90:AV90) -> 49299.3103 | P90: =F90*N90 -> 39187.5 | Q90: 39187.5 | X90: 49299.3103 | BB90: =IF('Reserve Plan'!L90=1,"Poor",IF('Reserve Plan'!L90=2,"Poor",IF('Reserve Plan'!L90=3,"Fair",IF('Reserve Plan'!L90=4,"Fair",IF('Reserve Plan'!L90=5,"Fair",IF('Reserve Plan'!L90=6,"Good",IF('Reserve Plan'!L90=7,"Good",IF('Reserve Plan'!L90=8,"Good",IF('Reserve Plan'!L90=9,"Very Good",IF('Reserve Plan'!L90=10,"Very Good","")))))))))) -> Fair | BD90: 6 | BE90: 0 | BF90: 0 | BG90: =IF($BF90<7,0,IF(AN90>1,0,IF(AO90>1,1,IF(AP90>1,2,IF(AQ90>1,3,IF(AR90>1,4,IF(AS90>1,5, IF(AT90>1,6,7)))))))) -> 0 | BH90: =IF($BG90<7,0, IF(AU90>1,0, IF($AV90>1,1,1))) -> 0 | BL90: =C90 -> 1045 | BM90: 0.001461730385 | BN90: =SUM(R90:W90) -> 0 | BP90: =E90/C90 -> 1 | BS90: =IF(BP90<1,"Partial","Full") -> Full | BU90: =A90 -> EXTERNAL BUILDING COMPONENT | BY90: =D90 -> 11 | CA90: =#REF!+1 ->  | CB90: =IF(BY90=$BY$77,CA90,1) ->  | CD90: 0 | CE90: Roof, Built-up | CF90: 0 | CG90: Roof, Built-up | CH90: =D90 -> 11
A91: EXTERNAL BUILDING COMPONENT | B91: 13 | C91: 1800 | D91: 12 | E91: 1509.302326 | F91: =C91-(25/154.8)*C91 -> 1509.302326 | G91: Square Feet | H91: Windows, Skyway, 7th Street, Remaining | I91: to 45+ | J91: 2031 | K91: to 43 | L91: 4 | M91: 6 | N91: 86 | O91: 163293.1541 | P91: 129800 | Q91: 129800 | X91: 163293.1541 | BB91: =IF('Reserve Plan'!L91=1,"Poor",IF('Reserve Plan'!L91=2,"Poor",IF('Reserve Plan'!L91=3,"Fair",IF('Reserve Plan'!L91=4,"Fair",IF('Reserve Plan'!L91=5,"Fair",IF('Reserve Plan'!L91=6,"Good",IF('Reserve Plan'!L91=7,"Good",IF('Reserve Plan'!L91=8,"Good",IF('Reserve Plan'!L91=9,"Very Good",IF('Reserve Plan'!L91=10,"Very Good","")))))))))) -> Fair | BD91: 6 | BE91: 0 | BF91: 0 | BG91: 0 | BH91: 0 | BL91: 1800 | BM91: 0.004841661345 | BN91: 0 | BP91: 0.838501292 | BS91: Partial | BU91: EXTERNAL BUILDING COMPONENT | BY91: 12 | CA91: =#REF!+1 ->  | CD91: 0 | CE91: Roof, Built-up | CF91: 0 | CG91: Roof, Built-up | CH91: 12
A92: EXTERNAL BUILDING COMPONENT | B92: 14 | C92: 930 | D92: 13 | E92: 930 | F92: 930 | G92: Square Feet | H92: Windows, Tower, Common | I92: 35 to 45 | J92: 2031 | K92: 43 | L92: 5 | M92: 6 | N92: 75 | O92: 87748.0547 | P92: 69750 | Q92: 69750 | X92: 87748.0547 | BB92: =IF('Reserve Plan'!L92=1,"Poor",IF('Reserve Plan'!L92=2,"Poor",IF('Reserve Plan'!L92=3,"Fair",IF('Reserve Plan'!L92=4,"Fair",IF('Reserve Plan'!L92=5,"Fair",IF('Reserve Plan'!L92=6,"Good",IF('Reserve Plan'!L92=7,"Good",IF('Reserve Plan'!L92=8,"Good",IF('Reserve Plan'!L92=9,"Very Good",IF('Reserve Plan'!L92=10,"Very Good","")))))))))) -> Fair | BD92: 6 | BE92: 0 | BF92: 0 | BG92: 0 | BH92: 0 | BL92: 930 | BM92: 0.002601740207 | BN92: 0 | BP92: 1 | BS92: Full | BU92: EXTERNAL BUILDING COMPONENT | BY92: 13 | CA92: =#REF!+1 ->  | CB92: =IF(BY92=$BY$77,CA92,1) ->  | CD92: 0 | CE92: Roof, EPDM | CF92: 0 | CG92: Roof, EPDM | CH92: 13
B93: 15 | O93: 0 | BB93: =IF('Reserve Plan'!L93=1,"Poor",IF('Reserve Plan'!L93=2,"Poor",IF('Reserve Plan'!L93=3,"Fair",IF('Reserve Plan'!L93=4,"Fair",IF('Reserve Plan'!L93=5,"Fair",IF('Reserve Plan'!L93=6,"Good",IF('Reserve Plan'!L93=7,"Good",IF('Reserve Plan'!L93=8,"Good",IF('Reserve Plan'!L93=9,"Very Good",IF('Reserve Plan'!L93=10,"Very Good","")))))))))) ->  | BD93: 8 | BE93: 7 | BF93: 7 | BG93: 7 | BH93: 1 | BL93: 0 | BM93: 0 | BN93: 0 | BU93: 0 | BY93: =#REF! ->  | CA93: =#REF!+1 ->  | CD93: 0 | CE93: Ceiling, Acoustical Tiles | CF93: 0 | CG93: Elevator Cab Finishes | CH93: 0
A94: INTERNAL BUILDING COMPONENT | B94: 16 | H94: INTERNAL BUILDING COMPONENTS | BB94: =IF('Reserve Plan'!L94=1,"Poor",IF('Reserve Plan'!L94=2,"Poor",IF('Reserve Plan'!L94=3,"Fair",IF('Reserve Plan'!L94=4,"Fair",IF('Reserve Plan'!L94=5,"Fair",IF('Reserve Plan'!L94=6,"Good",IF('Reserve Plan'!L94=7,"Good",IF('Reserve Plan'!L94=8,"Good",IF('Reserve Plan'!L94=9,"Very Good",IF('Reserve Plan'!L94=10,"Very Good","")))))))))) ->  | BD94: 8 | BE94: 7 | BF94: 7 | BG94: 7 | BH94: 1 | BL94: 0 | BM94: 0 | BN94: 0 | BU94: INTERNAL BUILDING COMPONENT | BY94: =D94 -> 0 | CA94: =CA93+1 ->  | CD94: 0 | CE94: Elevator Cab Finishes | CF94: 0 | CG94: Exercise Equipment, Phased Replacements | CH94: 0
A95: INTERNAL BUILDING COMPONENT | B95: 17 | C95: 2 | D95: =D92+1 -> 14 | E95: =COUNT(R95:AV95)*F95 -> 2 | F95: =C95 -> 2 | G95: Each | H95: Elevator Cab Finishes | I95: 25 to 30 | J95: =$CE$20+M95 -> 2047 | K95: 6 | L95: 7 | M95: 22 | N95: 26000 | O95: 120655.0183 | P95: =F95*N95 -> 52000 | Q95: =$P95*(1+$CE$17)^Q$77 -> 52000 | AN95: =$P95*(1+$CE$17)^AN$77 -> 120655.0183 | BB95: =IF('Reserve Plan'!L95=1,"Poor",IF('Reserve Plan'!L95=2,"Poor",IF('Reserve Plan'!L95=3,"Fair",IF('Reserve Plan'!L95=4,"Fair",IF('Reserve Plan'!L95=5,"Fair",IF('Reserve Plan'!L95=6,"Good",IF('Reserve Plan'!L95=7,"Good",IF('Reserve Plan'!L95=8,"Good",IF('Reserve Plan'!L95=9,"Very Good",IF('Reserve Plan'!L95=10,"Very Good","")))))))))) -> Good | BD95: 8 | BE95: 7 | BF95: 7 | BG95: 0 | BH95: 0 | BL95: 2 | BM95: 0.003577435572 | BN95: 0 | BP95: 1 | BS95: Full | BU95: INTERNAL BUILDING COMPONENT | BY95: =D95 -> 14 | CA95: =#REF!+1 ->  | CD95: 0 | CE95: Exercise Room, Renovations | CF95: 0 | CG95: Floor Coverings, Carpet | CH95: 14
A96: INTERNAL BUILDING COMPONENT | B96: 18 | C96: 1 | D96: =D95+1 -> 15 | E96: 3 | F96: =C96 -> 1 | G96: Allowance | H96: Exercise Equipment | I96: 6 to 15 | J96: 2034 | K96: 1 | L96: 10 | M96: 9 | N96: 30000 | O96: 195377.4462 | P96: 30000 | Q96: 30000 | AA96: =$P96*(1+$CE$17)^AA$77 -> 42331.25875 | AK96: =$P96*(1+$CE$17)^AK$77 -> 62060.69836 | AU96: =$P96*(1+$CE$17)^AU$77 -> 90985.48907 | BB96: =IF('Reserve Plan'!L96=1,"Poor",IF('Reserve Plan'!L96=2,"Poor",IF('Reserve Plan'!L96=3,"Fair",IF('Reserve Plan'!L96=4,"Fair",IF('Reserve Plan'!L96=5,"Fair",IF('Reserve Plan'!L96=6,"Good",IF('Reserve Plan'!L96=7,"Good",IF('Reserve Plan'!L96=8,"Good",IF('Reserve Plan'!L96=9,"Very Good",IF('Reserve Plan'!L96=10,"Very Good","")))))))))) -> Very Good | BD96: 8 | BE96: 1 | BF96: 0 | BG96: 0 | BH96: 0 | BL96: 1 | BM96: 0.005792964402 | BN96: 0 | BP96: 3 | BS96: Full | BU96: INTERNAL BUILDING COMPONENT | BY96: 15 | CA96: =#REF!+1 ->  | CB96: =IF(BY96=$BY$77,CA96,1) ->  | CD96: 0 | CE96: Floor Coverings, Carpet | CF96: 0 | CG96: Floor Coverings, Ceramic Tile | CH96: 15
A97: INTERNAL BUILDING COMPONENT | B97: 19 | C97: 1 | D97: 16 | E97: =COUNT(R97:AV97)*F97 -> 1 | F97: =C97 -> 1 | G97: Allowance | H97: Fitness Room, Renovation (Incl. Restrooms) | I97: to 20 | J97: =$CE$20+M97 -> 2044 | K97: 1 | L97: 10 | M97: =BD97+BE97+BF97+BG97+BH97 -> 19 | N97: 40000 | O97: =SUM(R97:AV97) -> 82747.59781 | P97: =F97*N97 -> 40000 | Q97: 40000 | AK97: =$P97*(1+$CE$17)^AK$77 -> 82747.59781 | BB97: =IF('Reserve Plan'!L97=1,"Poor",IF('Reserve Plan'!L97=2,"Poor",IF('Reserve Plan'!L97=3,"Fair",IF('Reserve Plan'!L97=4,"Fair",IF('Reserve Plan'!L97=5,"Fair",IF('Reserve Plan'!L97=6,"Good",IF('Reserve Plan'!L97=7,"Good",IF('Reserve Plan'!L97=8,"Good",IF('Reserve Plan'!L97=9,"Very Good",IF('Reserve Plan'!L97=10,"Very Good","")))))))))) -> Very Good | BD97: 8 | BE97: 7 | BF97: 4 | BG97: =IF($BF97<7,0,IF(AN97>1,0,IF(AO97>1,1,IF(AP97>1,2,IF(AQ97>1,3,IF(AR97>1,4,IF(AS97>1,5, IF(AT97>1,6,7)))))))) -> 0 | BH97: =IF($BG97<7,0, IF(AU97>1,0, IF($AV97>1,1,1))) -> 0 | BL97: =C97 -> 1 | BM97: 0.002453476068 | BN97: =SUM(R97:W97) -> 0 | BP97: =E97/C97 -> 1 | BS97: =IF(BP97<1,"Partial","Full") -> Full | BU97: =A97 -> INTERNAL BUILDING COMPONENT | BY97: =D97 -> 16 | CA97: =#REF!+1 ->  | CB97: =IF(BY97=$BY$77,CA97,1) ->  | CD97: 0 | CE97: Floor Coverings, Carpet | CF97: 0 | CG97: Floor Coverings, Ceramic Tile | CH97: =D97 -> 16
A98: INTERNAL BUILDING COMPONENT | B98: 20 | C98: 3135 | D98: 17 | E98: 9405 | F98: 3135 | G98: Square Yards | H98: Floor Coverings, Carpet | I98: 8 to 12 | J98: 2028 | K98: 14 | L98: 3 | M98: 3 | N98: 85 | O98: 1520560.959 | P98: 266475 | Q98: 266475 | U98: 298884.3075 | AG98: =$P98*(1+$CE$17)^AG$77 -> 473031.0884 | AS98: =$P98*(1+$CE$17)^AS$77 -> 748645.5629 | BB98: =IF('Reserve Plan'!L98=1,"Poor",IF('Reserve Plan'!L98=2,"Poor",IF('Reserve Plan'!L98=3,"Fair",IF('Reserve Plan'!L98=4,"Fair",IF('Reserve Plan'!L98=5,"Fair",IF('Reserve Plan'!L98=6,"Good",IF('Reserve Plan'!L98=7,"Good",IF('Reserve Plan'!L98=8,"Good",IF('Reserve Plan'!L98=9,"Very Good",IF('Reserve Plan'!L98=10,"Very Good","")))))))))) -> Fair | BD98: 3 | BE98: 0 | BF98: 0 | BG98: 0 | BH98: 0 | BL98: 3135 | BM98: 0.04508481238 | BN98: 298884.3075 | BP98: 3 | BS98: Full | BU98: INTERNAL BUILDING COMPONENT | BY98: 17 | CA98: =#REF!+1 ->  | CD98: 0 | CE98: Floor Coverings, Vinyl | CF98: 0 | CG98: Floor Coverings, Wood Laminate Products | CH98: 17
A99: INTERNAL BUILDING COMPONENT | B99: 21 | C99: 16 | D99: 18 | E99: =COUNT(R99:AV99)*F99 -> 16 | F99: =C99 -> 16 | G99: Each | H99: Laundry Rooms, Renovations | I99: to 25 | J99: 2034 | K99: Varies | L99: 5 | M99: 9 | N99: 4000 | O99: =SUM(R99:AV99) -> 90306.68534 | P99: 64000 | Q99: 64000 | AA99: =$P99*(1+$CE$17)^AA$77 -> 90306.68534 | BB99: =IF('Reserve Plan'!L99=1,"Poor",IF('Reserve Plan'!L99=2,"Poor",IF('Reserve Plan'!L99=3,"Fair",IF('Reserve Plan'!L99=4,"Fair",IF('Reserve Plan'!L99=5,"Fair",IF('Reserve Plan'!L99=6,"Good",IF('Reserve Plan'!L99=7,"Good",IF('Reserve Plan'!L99=8,"Good",IF('Reserve Plan'!L99=9,"Very Good",IF('Reserve Plan'!L99=10,"Very Good","")))))))))) -> Fair | BD99: 8 | BE99: 1 | BF99: 0 | BG99: 0 | BH99: 0 | BL99: 16 | BM99: 0.002677603908 | BN99: 0 | BP99: 1 | BS99: Full | BU99: INTERNAL BUILDING COMPONENT | BY99: 18 | CA99: =#REF!+1 ->  | CD99: 0 | CE99: Floor Coverings, Vinyl | CF99: 0 | CG99: Floor Coverings, Wood Laminate Products | CH99: 18
A100: INTERNAL BUILDING COMPONENT | B100: 22 | C100: 343 | D100: 19 | E100: 343 | F100: 343 | G100: Each | H100: Light Fixtures, Interior, Hallways and Stairwells | I100: 20 to 25 | J100: 2038 | K100: Not Available | L100: 5 | M100: 13 | N100: 120 | O100: 67682.67024 | P100: 41160 | Q100: 41160 | AE100: =$P100*(1+$CE$17)^AE$77 -> 67682.67024 | BB100: =IF('Reserve Plan'!L100=1,"Poor",IF('Reserve Plan'!L100=2,"Poor",IF('Reserve Plan'!L100=3,"Fair",IF('Reserve Plan'!L100=4,"Fair",IF('Reserve Plan'!L100=5,"Fair",IF('Reserve Plan'!L100=6,"Good",IF('Reserve Plan'!L100=7,"Good",IF('Reserve Plan'!L100=8,"Good",IF('Reserve Plan'!L100=9,"Very Good",IF('Reserve Plan'!L100=10,"Very Good","")))))))))) -> Fair | BD100: 8 | BE100: 5 | BF100: 0 | BG100: 0 | BH100: 0 | BL100: 343 | BM100: 0.002006799183 | BN100: 0 | BP100: 1 | BS100: Full | BU100: INTERNAL BUILDING COMPONENT | BY100: 19 | CA100: =#REF!+1 ->  | CD100: 0 | CE100: Floor Coverings, Vinyl | CF100: 0 | CG100: Floor Coverings, Wood Laminate Products | CH100: 19
A101: INTERNAL BUILDING COMPONENT | B101: 23 | C101: 1 | D101: 20 | E101: 1 | F101: 1 | G101: Allowance | H101: Lobby, Renovations | I101: 15 to 25 | J101: =$CE$20+M101 -> 2040 | K101: Varies | L101: 6 | M101: =BD101+BE101+BF101+BG101+BH101 -> 15 | N101: 40000 | O101: =SUM(R101:AV101) -> 71005.69861 | P101: =F101*N101 -> 40000 | Q101: 40000 | AG101: =$P101*(1+$CE$17)^AG$77 -> 71005.69861 | BB101: =IF('Reserve Plan'!L101=1,"Poor",IF('Reserve Plan'!L101=2,"Poor",IF('Reserve Plan'!L101=3,"Fair",IF('Reserve Plan'!L101=4,"Fair",IF('Reserve Plan'!L101=5,"Fair",IF('Reserve Plan'!L101=6,"Good",IF('Reserve Plan'!L101=7,"Good",IF('Reserve Plan'!L101=8,"Good",IF('Reserve Plan'!L101=9,"Very Good",IF('Reserve Plan'!L101=10,"Very Good","")))))))))) -> Good | BD101: 8 | BE101: 7 | BF101: 0 | BG101: =IF($BF101<7,0,IF(AN101>1,0,IF(AO101>1,1,IF(AP101>1,2,IF(AQ101>1,3,IF(AR101>1,4,IF(AS101>1,5, IF(AT101>1,6,7)))))))) -> 0 | BH101: =IF($BG101<7,0, IF(AU101>1,0, IF($AV101>1,1,1))) -> 0 | BL101: =C101 -> 1 | BM101: 0.002105327367 | BN101: =SUM(R101:W101) -> 0 | BP101: =E101/C101 -> 1 | BS101: =IF(BP101<1,"Partial","Full") -> Full | BU101: =A101 -> INTERNAL BUILDING COMPONENT | BY101: =D101 -> 20 | CA101: =#REF!+1 ->  | CB101: =IF(BY101=$BY$77,CA101,1) ->  | CD101: 0 | CE101: Floor Coverings, Vinyl | CF101: 0 | CG101: Floor Coverings, Wood Laminate Products | CH101: =D101 -> 20
A102: INTERNAL BUILDING COMPONENT | B102: 24 | C102: 246 | D102: 21 | E102: 246 | F102: 246 | G102: Each | H102: Mailboxes | I102: to 35 | J102: 2038 | K102: Not Available | L102: 5 | M102: 13 | N102: 150 | O102: 60677.61254 | P102: 36900 | Q102: 36900 | AE102: =$P102*(1+$CE$17)^AE$77 -> 60677.61254 | BB102: =IF('Reserve Plan'!L102=1,"Poor",IF('Reserve Plan'!L102=2,"Poor",IF('Reserve Plan'!L102=3,"Fair",IF('Reserve Plan'!L102=4,"Fair",IF('Reserve Plan'!L102=5,"Fair",IF('Reserve Plan'!L102=6,"Good",IF('Reserve Plan'!L102=7,"Good",IF('Reserve Plan'!L102=8,"Good",IF('Reserve Plan'!L102=9,"Very Good",IF('Reserve Plan'!L102=10,"Very Good","")))))))))) -> Fair | BD102: 8 | BE102: 5 | BF102: 0 | BG102: 0 | BH102: 0 | BL102: 246 | BM102: 0.001799098393 | BN102: 0 | BP102: 1 | BS102: Full | BU102: INTERNAL BUILDING COMPONENT | BY102: 21 | CA102: =#REF!+1 ->  | CD102: 0 | CE102: Floor, Hardwood Refinishing | CF102: 0 | CG102: Intercom Panels | CH102: 21
A103: INTERNAL BUILDING COMPONENT | B103: 25 | C103: 1 | D103: 22 | E103: =COUNT(R103:AV103)*F103 -> 2 | F103: =C103 -> 1 | G103: Allowance | H103: Office, Renovations | I103: 15 to 25 | J103: =$CE$20+M103 -> 2028 | K103: Not Available | L103: 4 | M103: =BD103+BE103+BF103+BG103+BH103 -> 3 | N103: 8500 | O103: =SUM(R103:AV103) -> 30025.42037 | P103: =F103*N103 -> 8500 | Q103: 8500 | U103: 9533.789711 | AO103: =$P103*(1+$CE$17)^AO$77 -> 20491.63066 | BB103: =IF('Reserve Plan'!L103=1,"Poor",IF('Reserve Plan'!L103=2,"Poor",IF('Reserve Plan'!L103=3,"Fair",IF('Reserve Plan'!L103=4,"Fair",IF('Reserve Plan'!L103=5,"Fair",IF('Reserve Plan'!L103=6,"Good",IF('Reserve Plan'!L103=7,"Good",IF('Reserve Plan'!L103=8,"Good",IF('Reserve Plan'!L103=9,"Very Good",IF('Reserve Plan'!L103=10,"Very Good","")))))))))) -> Fair | BD103: 3 | BE103: 0 | BF103: 0 | BG103: =IF($BF103<7,0,IF(AN103>1,0,IF(AO103>1,1,IF(AP103>1,2,IF(AQ103>1,3,IF(AR103>1,4,IF(AS103>1,5, IF(AT103>1,6,7)))))))) -> 0 | BH103: =IF($BG103<7,0, IF(AU103>1,0, IF($AV103>1,1,1))) -> 0 | BL103: =C103 -> 1 | BM103: 0.0008902572674 | BN103: =SUM(R103:W103) -> 9533.789711 | BP103: =E103/C103 -> 2 | BS103: =IF(BP103<1,"Partial","Full") -> Full | BU103: =A103 -> INTERNAL BUILDING COMPONENT | BY103: =D103 -> 22 | CA103: =#REF!+1 ->  | CB103: =IF(BY103=$BY$77,CA103,1) ->  | CD103: 0 | CE103: Floor Coverings, Vinyl | CF103: 0 | CG103: Floor Coverings, Wood Laminate Products | CH103: =D103 -> 22
A104: INTERNAL BUILDING COMPONENT | B104: 26 | C104: 40330 | D104: 23 | E104: 40330 | F104: 40330 | G104: Square Feet | H104: Paint Finishes, Hallways and Elevator Lobbies | I104: to 20+ | J104: 2038 | K104: Varies | L104: 4 | M104: 13 | N104: 1.2 | O104: 79581.40207 | P104: 48396 | Q104: 48396 | AE104: =$P104*(1+$CE$17)^AE$77 -> 79581.40207 | BB104: =IF('Reserve Plan'!L104=1,"Poor",IF('Reserve Plan'!L104=2,"Poor",IF('Reserve Plan'!L104=3,"Fair",IF('Reserve Plan'!L104=4,"Fair",IF('Reserve Plan'!L104=5,"Fair",IF('Reserve Plan'!L104=6,"Good",IF('Reserve Plan'!L104=7,"Good",IF('Reserve Plan'!L104=8,"Good",IF('Reserve Plan'!L104=9,"Very Good",IF('Reserve Plan'!L104=10,"Very Good","")))))))))) -> Fair | BD104: 8 | BE104: 5 | BF104: 0 | BG104: 0 | BH104: 0 | BL104: 40330 | BM104: 0.00235959799 | BN104: 0 | BP104: 1 | BS104: Full | BU104: INTERNAL BUILDING COMPONENT | BY104: =#REF! ->  | CA104: =CA101+1 ->  | CD104: 0 | CE104: Exercise Equipment, Phased Replacements | CF104: 0 | CG104: Exercise Room, Renovations | CH104: 23
A105: INTERNAL BUILDING COMPONENT | B105: 27 | C105: 20230 | D105: 24 | E105: 40460 | F105: 20230 | G105: Square Feet | H105: Paint Finishes, Stairwells | I105: 15 to 20 | J105: 2028 | K105: Not Available | L105: 4 | M105: 3 | N105: 1.5 | O105: 107190.7507 | P105: 30345 | Q105: 30345 | U105: 34035.62927 | AO105: =$P105*(1+$CE$17)^AO$77 -> 73155.12145 | BB105: =IF('Reserve Plan'!L105=1,"Poor",IF('Reserve Plan'!L105=2,"Poor",IF('Reserve Plan'!L105=3,"Fair",IF('Reserve Plan'!L105=4,"Fair",IF('Reserve Plan'!L105=5,"Fair",IF('Reserve Plan'!L105=6,"Good",IF('Reserve Plan'!L105=7,"Good",IF('Reserve Plan'!L105=8,"Good",IF('Reserve Plan'!L105=9,"Very Good",IF('Reserve Plan'!L105=10,"Very Good","")))))))))) -> Fair | BD105: 3 | BE105: 0 | BF105: 0 | BG105: 0 | BH105: 0 | BL105: 20230 | BM105: 0.003178218445 | BN105: 34035.62927 | BP105: 2 | BS105: Full | BU105: INTERNAL BUILDING COMPONENT | BY105: =D105 -> 24 | CD105: 0 | CE105: Exercise Room, Renovations | CF105: 0 | CG105: Floor Coverings, Carpet | CH105: 24
A106: INTERNAL BUILDING COMPONENT | B106: 28 | C106: 1 | D106: 25 | E106: =COUNT(R106:AV106)*F106 -> 1 | F106: =C106 -> 1 | G106: Allowance | H106: Party Room, Renovations (Incl. Restroom) | I106: to 20 | J106: =$CE$20+M106 -> 2042 | K106: 3+ | L106: 7 | M106: =BD106+BE106+BF106+BG106+BH106 -> 17 | N106: 67000 | O106: =SUM(R106:AV106) -> 128392.3391 | P106: =F106*N106 -> 67000 | Q106: 67000 | AI106: =$P106*(1+$CE$17)^AI$77 -> 128392.3391 | BB106: =IF('Reserve Plan'!L106=1,"Poor",IF('Reserve Plan'!L106=2,"Poor",IF('Reserve Plan'!L106=3,"Fair",IF('Reserve Plan'!L106=4,"Fair",IF('Reserve Plan'!L106=5,"Fair",IF('Reserve Plan'!L106=6,"Good",IF('Reserve Plan'!L106=7,"Good",IF('Reserve Plan'!L106=8,"Good",IF('Reserve Plan'!L106=9,"Very Good",IF('Reserve Plan'!L106=10,"Very Good","")))))))))) -> Good | BD106: 8 | BE106: 7 | BF106: 2 | BG106: =IF($BF106<7,0,IF(AN106>1,0,IF(AO106>1,1,IF(AP106>1,2,IF(AQ106>1,3,IF(AR106>1,4,IF(AS106>1,5, IF(AT106>1,6,7)))))))) -> 0 | BH106: =IF($BG106<7,0, IF(AU106>1,0, IF($AV106>1,1,1))) -> 0 | BL106: =C106 -> 1 | BM106: 0.00380684805 | BN106: =SUM(R106:W106) -> 0 | BP106: =E106/C106 -> 1 | BS106: =IF(BP106<1,"Partial","Full") -> Full | BU106: =A106 -> INTERNAL BUILDING COMPONENT | BY106: =D106 -> 25 | CA106: =#REF!+1 ->  | CB106: =IF(BY106=$BY$77,CA106,1) ->  | CD106: 0 | CE106: Floor Coverings, Vinyl | CF106: 0 | CG106: Floor Coverings, Wood Laminate Products | CH106: =D106 -> 25
A107: INTERNAL BUILDING COMPONENT | B107: 29 | C107: 1 | D107: 26 | E107: 1 | F107: 1 | G107: Allowance | H107: Rental Unit, Renovations | I107: to 25 | J107: 2032 | K107: Not Available | L107: 4 | M107: 7 | N107: 42000 | O107: 54898.20231 | P107: 42000 | Q107: 42000 | Y107: =$P107*(1+$CE$17)^Y$77 -> 54898.20231 | BB107: =IF('Reserve Plan'!L107=1,"Poor",IF('Reserve Plan'!L107=2,"Poor",IF('Reserve Plan'!L107=3,"Fair",IF('Reserve Plan'!L107=4,"Fair",IF('Reserve Plan'!L107=5,"Fair",IF('Reserve Plan'!L107=6,"Good",IF('Reserve Plan'!L107=7,"Good",IF('Reserve Plan'!L107=8,"Good",IF('Reserve Plan'!L107=9,"Very Good",IF('Reserve Plan'!L107=10,"Very Good","")))))))))) -> Fair | BD107: 7 | BE107: 0 | BF107: 0 | BG107: 0 | BH107: 0 | BL107: 1 | BM107: 0.001627738196 | BN107: 0 | BP107: 1 | BS107: Full | BU107: INTERNAL BUILDING COMPONENT | BY107: 26 | CA107: =#REF!+1 ->  | CD107: 0 | CE107: Floor Coverings, Vinyl | CF107: 0 | CG107: Floor Coverings, Wood Laminate Products | CH107: 26
A108: INTERNAL BUILDING COMPONENT | B108: 30 | C108: 1 | D108: 27 | E108: 1 | F108: 1 | G108: Each | H108: =IF(C108>1,"Saunas, Renovation","Sauna, Renovation") -> Sauna, Renovation | I108: 30 to 40 | J108: 2044 | K108: to 43 | L108: 5 | M108: 19 | N108: 30000 | O108: 62060.69836 | P108: 30000 | Q108: 30000 | AK108: =$P108*(1+$CE$17)^AK$77 -> 62060.69836 | BB108: =IF('Reserve Plan'!L108=1,"Poor",IF('Reserve Plan'!L108=2,"Poor",IF('Reserve Plan'!L108=3,"Fair",IF('Reserve Plan'!L108=4,"Fair",IF('Reserve Plan'!L108=5,"Fair",IF('Reserve Plan'!L108=6,"Good",IF('Reserve Plan'!L108=7,"Good",IF('Reserve Plan'!L108=8,"Good",IF('Reserve Plan'!L108=9,"Very Good",IF('Reserve Plan'!L108=10,"Very Good","")))))))))) -> Fair | BD108: 8 | BE108: 7 | BF108: 4 | BG108: 0 | BH108: 0 | BL108: 1 | BM108: 0.001840107051 | BN108: 0 | BP108: 1 | BS108: Full | BU108: INTERNAL BUILDING COMPONENT | BY108: 27 | CA108: =CA105+1 ->  | CD108: 0 | CE108: Floor Coverings, Carpet | CF108: 0 | CG108: Floor Coverings, Ceramic Tile | CH108: 27
A109: INTERNAL BUILDING COMPONENT | B109: 31 | C109: 1 | D109: 28 | E109: =COUNT(R109:AV109)*F109 -> 2 | F109: =C109 -> 1 | G109: Allowance | H109: Skybridge Atrium, Renovation, Shared at 50% MPR | I109: to 20 | J109: =$CE$20+M109 -> 2027 | K109: Not Available | L109: 4 | M109: =BD109+BE109+BF109+BG109+BH109 -> 2 | N109: =23000*0.5 -> 11500 | O109: =SUM(R109:AV109) -> 39097.81286 | P109: =F109*N109 -> 11500 | Q109: 11500 | T109: 12414.4915 | AN109: =$P109*(1+$CE$17)^AN$77 -> 26683.32136 | BB109: =IF('Reserve Plan'!L109=1,"Poor",IF('Reserve Plan'!L109=2,"Poor",IF('Reserve Plan'!L109=3,"Fair",IF('Reserve Plan'!L109=4,"Fair",IF('Reserve Plan'!L109=5,"Fair",IF('Reserve Plan'!L109=6,"Good",IF('Reserve Plan'!L109=7,"Good",IF('Reserve Plan'!L109=8,"Good",IF('Reserve Plan'!L109=9,"Very Good",IF('Reserve Plan'!L109=10,"Very Good","")))))))))) -> Fair | BD109: 2 | BE109: 0 | BF109: 0 | BG109: =IF($BF109<7,0,IF(AN109>1,0,IF(AO109>1,1,IF(AP109>1,2,IF(AQ109>1,3,IF(AR109>1,4,IF(AS109>1,5, IF(AT109>1,6,7)))))))) -> 0 | BH109: =IF($BG109<7,0, IF(AU109>1,0, IF($AV109>1,1,1))) -> 0 | BL109: =C109 -> 1 | BM109: =O109/$O$712 -> 0.001159254778 | BN109: =SUM(R109:W109) -> 12414.4915 | BP109: =E109/C109 -> 2 | BS109: =IF(BP109<1,"Partial","Full") -> Full | BU109: =A109 -> INTERNAL BUILDING COMPONENT | BY109: =D109 -> 28 | CA109: =CA106+1 ->  | CB109: =IF(BY109=$BY$77,CA109,1) ->  | CD109: 0 | CE109: Floor Coverings, Carpet | CF109: 0 | CG109: Floor Coverings, Ceramic Tile | CH109: =D109 -> 28
A110: INTERNAL BUILDING COMPONENT | B110: 32 | C110: 1 | D110: 29 | E110: 2 | F110: 1 | G110: Allowance | H110: Skyway, 7th Street, Renovation | I110: to 20 | J110: 2032 | K110: Not Available | L110: 5 | M110: 7 | N110: 30000 | O110: 123496.206 | P110: 30000 | Q110: 30000 | Y110: =$P110*(1+$CE$17)^Y$77 -> 39213.00165 | AS110: =$P110*(1+$CE$17)^AS$77 -> 84283.20438 | BB110: =IF('Reserve Plan'!L110=1,"Poor",IF('Reserve Plan'!L110=2,"Poor",IF('Reserve Plan'!L110=3,"Fair",IF('Reserve Plan'!L110=4,"Fair",IF('Reserve Plan'!L110=5,"Fair",IF('Reserve Plan'!L110=6,"Good",IF('Reserve Plan'!L110=7,"Good",IF('Reserve Plan'!L110=8,"Good",IF('Reserve Plan'!L110=9,"Very Good",IF('Reserve Plan'!L110=10,"Very Good","")))))))))) -> Fair | BD110: 7 | BE110: 0 | BF110: 0 | BG110: 0 | BH110: 0 | BL110: 1 | BM110: 0.003661677124 | BN110: 0 | BP110: 2 | BS110: Full | BU110: INTERNAL BUILDING COMPONENT | BY110: 29 | CA110: =CA107+1 ->  | CD110: 0 | CE110: Floor Coverings, Carpet | CF110: 0 | CG110: Floor Coverings, Ceramic Tile | CH110: 29
A111: INTERNAL BUILDING COMPONENT | B111: 33 | C111: 78990 | D111: 30 | E111: 157980 | F111: 78990 | G111: Square Feet | H111: Wall Coverings | I111: to 20 | J111: 2028 | K111: >20 | L111: 3 | M111: 3 | N111: 7 | O111: 2173602.369 | P111: 552930 | Q111: 552930 | U111: 620178.6288 | AS111: =$P111*(1+$CE$17)^AS$77 -> 1553423.74 | BB111: =IF('Reserve Plan'!L111=1,"Poor",IF('Reserve Plan'!L111=2,"Poor",IF('Reserve Plan'!L111=3,"Fair",IF('Reserve Plan'!L111=4,"Fair",IF('Reserve Plan'!L111=5,"Fair",IF('Reserve Plan'!L111=6,"Good",IF('Reserve Plan'!L111=7,"Good",IF('Reserve Plan'!L111=8,"Good",IF('Reserve Plan'!L111=9,"Very Good",IF('Reserve Plan'!L111=10,"Very Good","")))))))))) -> Fair | BD111: 3 | BE111: 0 | BF111: 0 | BG111: 0 | BH111: 0 | BL111: 78990 | BM111: 0.06444756748 | BN111: 620178.6288 | BP111: 2 | BS111: Full | BU111: INTERNAL BUILDING COMPONENT | BY111: 30 | CA111: =#REF!+1 ->  | CD111: 0 | CE111: Floor Coverings, Wood Laminate Products | CF111: 0 | CG111: Floor, Hardwood Refinishing | CH111: 30
B112: 34 | O112: =SUM(R112:AV112) -> 0 | BB112: =IF('Reserve Plan'!L112=1,"Poor",IF('Reserve Plan'!L112=2,"Poor",IF('Reserve Plan'!L112=3,"Fair",IF('Reserve Plan'!L112=4,"Fair",IF('Reserve Plan'!L112=5,"Fair",IF('Reserve Plan'!L112=6,"Good",IF('Reserve Plan'!L112=7,"Good",IF('Reserve Plan'!L112=8,"Good",IF('Reserve Plan'!L112=9,"Very Good",IF('Reserve Plan'!L112=10,"Very Good","")))))))))) ->  | BD112: =IF($R112>1,0,IF($S112>1,1,IF($T112>1,2,IF($U112>1,3,IF($V112>1,4,IF($W112>1,5,IF($X112>1,6,IF($Y112>1,7,8)))))))) -> 8 | BE112: 7 | BF112: 7 | BG112: =IF($BF112<7,0,IF(AN112>1,0,IF(AO112>1,1,IF(AP112>1,2,IF(AQ112>1,3,IF(AR112>1,4,IF(AS112>1,5, IF(AT112>1,6,7)))))))) -> 7 | BH112: =IF($BG112<7,0, IF(AU112>1,0, IF($AV112>1,1,1))) -> 1 | BL112: =C112 -> 0 | BM112: 0 | BN112: =SUM(R112:W112) -> 0 | BP112: =E112/C112 ->  | BS112: =IF(BP112<1,"Partial","Full") ->  | BU112: =A112 -> 0 | BY112: =#REF! ->  | CA112: =#REF!+1 ->  | CD112: 0 | CE112: Boiler, Building Heat, XXX-MBH | CF112: 0 | CG112: Boilers, Domestic Hot Water, XXX-MBH, Phased Replacement | CH112: =D112 -> 0
A113: SERVICE COMPONENT | B113: 35 | H113: SERVICE COMPONENTS | BB113: =IF('Reserve Plan'!L113=1,"Poor",IF('Reserve Plan'!L113=2,"Poor",IF('Reserve Plan'!L113=3,"Fair",IF('Reserve Plan'!L113=4,"Fair",IF('Reserve Plan'!L113=5,"Fair",IF('Reserve Plan'!L113=6,"Good",IF('Reserve Plan'!L113=7,"Good",IF('Reserve Plan'!L113=8,"Good",IF('Reserve Plan'!L113=9,"Very Good",IF('Reserve Plan'!L113=10,"Very Good","")))))))))) ->  | BD113: 8 | BE113: 7 | BF113: 7 | BG113: 7 | BH113: 1 | BL113: 0 | BM113: 0 | BN113: 0 | BU113: SERVICE COMPONENT | BY113: =D113 -> 0 | CD113: 0 | CE113: Boiler, Building Heat, XXX-MBH, Capital Repairs | CF113: 0 | CG113: Chiller, XXX tons, Capital Repairs | CH113: 0
A114: SERVICE COMPONENT | B114: 36 | C114: 7 | D114: =D111+1 -> 31 | E114: =COUNT(R114:AV114)*F114 -> 7 | F114: =C114 -> 7 | G114: Each | H114: Air Handling Units, Fan Coil Units, Common | I114: 30 to 35 | J114: =$CE$20+M114 -> 2033 | K114: to 43 | L114: 5 | M114: =BD114+BE114+BF114+BG114+BH114 -> 8 | N114: 5800 | O114: 55137.92446 | P114: =F114*N114 -> 40600 | Q114: =$P114*(1+$CE$17)^Q$77 -> 40600 | Z114: =$P114*(1+$CE$17)^Z$77 -> 55137.92446 | BB114: =IF('Reserve Plan'!L114=1,"Poor",IF('Reserve Plan'!L114=2,"Poor",IF('Reserve Plan'!L114=3,"Fair",IF('Reserve Plan'!L114=4,"Fair",IF('Reserve Plan'!L114=5,"Fair",IF('Reserve Plan'!L114=6,"Good",IF('Reserve Plan'!L114=7,"Good",IF('Reserve Plan'!L114=8,"Good",IF('Reserve Plan'!L114=9,"Very Good",IF('Reserve Plan'!L114=10,"Very Good","")))))))))) -> Fair | BD114: 8 | BE114: 0 | BF114: 0 | BG114: =IF($BF114<7,0,IF(AN114>1,0,IF(AO114>1,1,IF(AP114>1,2,IF(AQ114>1,3,IF(AR114>1,4,IF(AS114>1,5, IF(AT114>1,6,7)))))))) -> 0 | BH114: =IF($BG114<7,0, IF(AU114>1,0, IF($AV114>1,1,1))) -> 0 | BL114: =C114 -> 7 | BM114: 0.001634845986 | BN114: =SUM(R114:W114) -> 0 | BP114: =E114/C114 -> 1 | BS114: =IF(BP114<1,"Partial","Full") -> Full | BU114: =A114 -> SERVICE COMPONENT | BY114: =#REF! ->  | CA114: =#REF!+1 ->  | CB114: =IF(BY114=$BY$77,CA114,1) ->  | CD114: 0 | CE114: Boilers, Domestic Hot Water, XXX-MBH, Phased Replacement | CF114: 0 | CG114: Chiller, XXX tons, Replacement | CH114: 31
A115: SERVICE COMPONENT | B115: 37 | C115: 2 | D115: =D114+1 -> 32 | E115: 2 | F115: =C115/2 -> 1 | G115: Each | H115: Air Handling Units, Make-Up-Air Unit, Hallways and Lobby, Phased | I115: to 30+ | J115: =$CE$20+M115 -> 2029 | K115: Varies | L115: 6 | M115: =BD115+BE115+BF115+BG115+BH115 -> 4 | N115: 67500 | O115: 235281.6722 | P115: =F115*N115 -> 67500 | Q115: 67500 | V115: =$P115*(1+$CE$17)^V$77 -> 78662.17729 | AN115: =$P115*(1+$CE$17)^AN$77 -> 156619.4949 | BB115: =IF('Reserve Plan'!L115=1,"Poor",IF('Reserve Plan'!L115=2,"Poor",IF('Reserve Plan'!L115=3,"Fair",IF('Reserve Plan'!L115=4,"Fair",IF('Reserve Plan'!L115=5,"Fair",IF('Reserve Plan'!L115=6,"Good",IF('Reserve Plan'!L115=7,"Good",IF('Reserve Plan'!L115=8,"Good",IF('Reserve Plan'!L115=9,"Very Good",IF('Reserve Plan'!L115=10,"Very Good","")))))))))) -> Good | BD115: 4 | BE115: 0 | BF115: 0 | BG115: =IF($BF115<7,0,IF(AN115>1,0,IF(AO115>1,1,IF(AP115>1,2,IF(AQ115>1,3,IF(AR115>1,4,IF(AS115>1,5, IF(AT115>1,6,7)))))))) -> 0 | BH115: =IF($BG115<7,0, IF(AU115>1,0, IF($AV115>1,1,1))) -> 0 | BL115: =C115 -> 2 | BM115: 0.006976129426 | BN115: =SUM(R115:W115) -> 78662.17729 | BP115: =E115/C115 -> 1 | BS115: =IF(BP115<1,"Partial","Full") -> Full | BU115: =A115 -> SERVICE COMPONENT | BY115: =#REF! ->  | CA115: =#REF!+1 ->  | CB115: =IF(BY115=$BY$77,CA115,1) ->  | CD115: 0 | CE115: Boilers, Domestic Hot Water, XXX-MBH, Phased Replacement | CF115: 0 | CG115: Chiller, XXX tons, Replacement | CH115: 32
A116: SERVICE COMPONENT | B116: 38 | C116: 1 | D116: =D115+1 -> 33 | E116: 1 | F116: 1 | G116: Each | H116: Air Handling Unit, Packaged, 12.5-Ton, Skybridge Atrium and Skyway, Shared at 50% with MPR (Incl. Fan) | I116: 20 to 25 | J116: =$CE$20+M116 -> 2046 | K116: 1 | L116: 9 | M116: =BD116+BE116+BF116+BG116+BH116 -> 21 | N116: =67088.65*0.5 -> 33544.325 | O116: 74910.99332 | P116: =F116*N116 -> 33544.325 | Q116: 33544.325 | AM116: =$P116*(1+$CE$17)^AM$77 -> 74910.99332 | BB116: =IF('Reserve Plan'!L116=1,"Poor",IF('Reserve Plan'!L116=2,"Poor",IF('Reserve Plan'!L116=3,"Fair",IF('Reserve Plan'!L116=4,"Fair",IF('Reserve Plan'!L116=5,"Fair",IF('Reserve Plan'!L116=6,"Good",IF('Reserve Plan'!L116=7,"Good",IF('Reserve Plan'!L116=8,"Good",IF('Reserve Plan'!L116=9,"Very Good",IF('Reserve Plan'!L116=10,"Very Good","")))))))))) -> Very Good | BD116: 8 | BE116: 7 | BF116: 6 | BG116: 0 | BH116: 0 | BL116: 1 | BM116: 0.002221119818 | BN116: 0 | BP116: 1 | BS116: Full | BU116: SERVICE COMPONENT | BY116: =#REF! ->  | CA116: =#REF!+1 ->  | CD116: 0 | CE116: Boilers, Domestic Hot Water, XXX-MBH, Phased Replacement | CF116: 0 | CG116: Chiller, XXX tons, Replacement | CH116: 33
A117: SERVICE COMPONENT | B117: 39 | C117: 2 | D117: 34 | E117: =COUNT(R117:AV117)*F117 -> 3 | F117: =C117/2 -> 1 | G117: Each | H117: Air Handling Units, Split Systems, Common, 2.5- to 4-Ton, Phased Replacement | I117: 15 to 20 | J117: =$CE$20+M117 -> 2028 | K117: 4, 15 | L117: 5 | M117: =BD117+BE117+BF117+BG117+BH117 -> 3 | N117: 9000 | O117: =SUM(R117:AV117) -> 48390.97876 | P117: =F117*N117 -> 9000 | Q117: 9000 | U117: =$P117*(1+$CE$17)^U$77 -> 10094.60087 | AH117: =$P117*(1+$CE$17)^AH$77 -> 16599.35719 | AO117: =$P117*(1+$CE$17)^AO$77 -> 21697.0207 | BB117: =IF('Reserve Plan'!L117=1,"Poor",IF('Reserve Plan'!L117=2,"Poor",IF('Reserve Plan'!L117=3,"Fair",IF('Reserve Plan'!L117=4,"Fair",IF('Reserve Plan'!L117=5,"Fair",IF('Reserve Plan'!L117=6,"Good",IF('Reserve Plan'!L117=7,"Good",IF('Reserve Plan'!L117=8,"Good",IF('Reserve Plan'!L117=9,"Very Good",IF('Reserve Plan'!L117=10,"Very Good","")))))))))) -> Fair | BD117: 3 | BE117: 0 | BF117: 0 | BG117: =IF($BF117<7,0,IF(AN117>1,0,IF(AO117>1,1,IF(AP117>1,2,IF(AQ117>1,3,IF(AR117>1,4,IF(AS117>1,5, IF(AT117>1,6,7)))))))) -> 0 | BH117: =IF($BG117<7,0, IF(AU117>1,0, IF($AV117>1,1,1))) -> 0 | BL117: =C117 -> 2 | BM117: 0.001434798247 | BN117: =SUM(R117:W117) -> 10094.60087 | BP117: =E117/C117 -> 1.5 | BS117: =IF(BP117<1,"Partial","Full") -> Full | BU117: =A117 -> SERVICE COMPONENT | BY117: =#REF! ->  | CA117: =#REF!+1 ->  | CB117: =IF(BY117=$BY$77,CA117,1) ->  | CD117: 0 | CE117: Boilers, Domestic Hot Water, XXX-MBH, Phased Replacement | CF117: 0 | CG117: Chiller, XXX tons, Replacement | CH117: =D117 -> 34
A118: SERVICE COMPONENT | B118: 40 | C118: 4 | D118: 35 | E118: 4 | F118: 4 | G118: Each | H118: Doors, Automatic Openers, Partially Shared | I118: to 20 | J118: 2036 | K118: Not Available | L118: 5 | M118: 11 | N118: 5700 | O118: =SUM(R118:AV118) -> 34730.08691 | P118: 22800 | Q118: 22800 | AC118: =$P118*(1+$CE$17)^AC$77 -> 34730.08691 | BB118: =IF('Reserve Plan'!L118=1,"Poor",IF('Reserve Plan'!L118=2,"Poor",IF('Reserve Plan'!L118=3,"Fair",IF('Reserve Plan'!L118=4,"Fair",IF('Reserve Plan'!L118=5,"Fair",IF('Reserve Plan'!L118=6,"Good",IF('Reserve Plan'!L118=7,"Good",IF('Reserve Plan'!L118=8,"Good",IF('Reserve Plan'!L118=9,"Very Good",IF('Reserve Plan'!L118=10,"Very Good","")))))))))) -> Fair | BD118: 8 | BE118: 3 | BF118: 0 | BG118: =IF($BF118<7,0,IF(AN118>1,0,IF(AO118>1,1,IF(AP118>1,2,IF(AQ118>1,3,IF(AR118>1,4,IF(AS118>1,5, IF(AT118>1,6,7)))))))) -> 0 | BH118: =IF($BG118<7,0, IF(AU118>1,0, IF($AV118>1,1,1))) -> 0 | BL118: =C118 -> 4 | BM118: 0.001029751187 | BN118: =SUM(R118:W118) -> 0 | BP118: =E118/C118 -> 1 | BS118: =IF(BP118<1,"Partial","Full") -> Full | BU118: =A118 -> SERVICE COMPONENT | BY118: =D118 -> 35 | CA118: =#REF!+1 ->  | CB118: =IF(BY118=$BY$77,CA118,1) ->  | CD118: 0 | CE118: Exhaust Fans, Kitchen and Bathroom | CF118: 0 | CG118: Furnaces, Phased Replacements | CH118: =D118 -> 35
A119: SERVICE COMPONENT | B119: 41 | C119: 1 | D119: 36 | E119: =COUNT(R119:AV119)*F119 -> 3 | F119: =C119 -> 1 | G119: Allowance | H119: Electrical System, Thermoscans and Capital Repairs | I119: 10 to 15 | J119: =$CE$20+M119 -> 2029 | K119: to 43 | L119: 5 | M119: =BD119+BE119+BF119+BG119+BH119 -> 4 | N119: 17000 | O119: =SUM(R119:AV119) -> 100788.6977 | P119: =F119*N119 -> 17000 | Q119: 17000 | V119: =$P119*(1+$CE$17)^V$77 -> 19811.21502 | AH119: =$P119*(1+$CE$17)^AH$77 -> 31354.34136 | AT119: =$P119*(1+$CE$17)^AT$77 -> 49623.1413 | BB119: =IF('Reserve Plan'!L119=1,"Poor",IF('Reserve Plan'!L119=2,"Poor",IF('Reserve Plan'!L119=3,"Fair",IF('Reserve Plan'!L119=4,"Fair",IF('Reserve Plan'!L119=5,"Fair",IF('Reserve Plan'!L119=6,"Good",IF('Reserve Plan'!L119=7,"Good",IF('Reserve Plan'!L119=8,"Good",IF('Reserve Plan'!L119=9,"Very Good",IF('Reserve Plan'!L119=10,"Very Good","")))))))))) -> Fair | BD119: 4 | BE119: 0 | BF119: 0 | BG119: =IF($BF119<7,0,IF(AN119>1,0,IF(AO119>1,1,IF(AP119>1,2,IF(AQ119>1,3,IF(AR119>1,4,IF(AS119>1,5, IF(AT119>1,6,7)))))))) -> 0 | BH119: =IF($BG119<7,0, IF(AU119>1,0, IF($AV119>1,1,1))) -> 0 | BL119: =C119 -> 1 | BM119: 0.002988396814 | BN119: =SUM(R119:W119) -> 19811.21502 | BP119: =E119/C119 -> 3 | BS119: =IF(BP119<1,"Partial","Full") -> Full | BU119: =A119 -> SERVICE COMPONENT | BY119: =D119 -> 36 | CA119: =#REF!+1 ->  | CB119: =IF(BY119=$BY$77,CA119,1) ->  | CD119: 0 | CE119: Exhaust Fans, Kitchen and Bathroom | CF119: 0 | CG119: Furnaces, Phased Replacements | CH119: =D119 -> 36
A120: SERVICE COMPONENT | B120: 42 | C120: 2 | D120: 37 | E120: 2 | F120: 2 | G120: Each | H120: Elevator Modernization, Traction, Controls | I120: to 35 | J120: 2040 | K120: 19 | L120: 6 | M120: 15 | N120: 240000 | O120: 852068.3833 | P120: 480000 | Q120: 480000 | AG120: =$P120*(1+$CE$17)^AG$77 -> 852068.3833 | BB120: =IF('Reserve Plan'!L120=1,"Poor",IF('Reserve Plan'!L120=2,"Poor",IF('Reserve Plan'!L120=3,"Fair",IF('Reserve Plan'!L120=4,"Fair",IF('Reserve Plan'!L120=5,"Fair",IF('Reserve Plan'!L120=6,"Good",IF('Reserve Plan'!L120=7,"Good",IF('Reserve Plan'!L120=8,"Good",IF('Reserve Plan'!L120=9,"Very Good",IF('Reserve Plan'!L120=10,"Very Good","")))))))))) -> Good | BD120: 8 | BE120: 7 | BF120: 0 | BG120: 0 | BH120: 0 | BL120: 2 | BM120: 0.02526392841 | BN120: 0 | BP120: 1 | BS120: Full | BU120: SERVICE COMPONENT | BY120: 37 | CA120: =#REF!+1 ->  | CD120: 0 | CE120: Exhaust Fans, Kitchen and Bathroom | CF120: 0 | CG120: Furnaces, Phased Replacements | CH120: 37
A121: SERVICE COMPONENT | B121: 43 | C121: 2 | D121: 38 | E121: =COUNT(R121:AV121)*F121 -> 2 | F121: =C121 -> 2 | G121: Each | H121: Elevator Modernization, Traction, Hoist and Motors | I121: to 50+ | J121: =$CE$20+M121 -> 2035 | K121: 43 | L121: 6 | M121: =BD121+BE121+BF121+BG121+BH121 -> 10 | N121: 70000 | O121: =SUM(R121:AV121) -> 205250.1633 | P121: =F121*N121 -> 140000 | Q121: 140000 | AB121: =$P121*(1+$CE$17)^AB$77 -> 205250.1633 | BB121: =IF('Reserve Plan'!L121=1,"Poor",IF('Reserve Plan'!L121=2,"Poor",IF('Reserve Plan'!L121=3,"Fair",IF('Reserve Plan'!L121=4,"Fair",IF('Reserve Plan'!L121=5,"Fair",IF('Reserve Plan'!L121=6,"Good",IF('Reserve Plan'!L121=7,"Good",IF('Reserve Plan'!L121=8,"Good",IF('Reserve Plan'!L121=9,"Very Good",IF('Reserve Plan'!L121=10,"Very Good","")))))))))) -> Good | BD121: 8 | BE121: 2 | BF121: 0 | BG121: =IF($BF121<7,0,IF(AN121>1,0,IF(AO121>1,1,IF(AP121>1,2,IF(AQ121>1,3,IF(AR121>1,4,IF(AS121>1,5, IF(AT121>1,6,7)))))))) -> 0 | BH121: =IF($BG121<7,0, IF(AU121>1,0, IF($AV121>1,1,1))) -> 0 | BL121: =C121 -> 2 | BM121: 0.006085691632 | BN121: =SUM(R121:W121) -> 0 | BP121: =E121/C121 -> 1 | BS121: =IF(BP121<1,"Partial","Full") -> Full | BU121: =A121 -> SERVICE COMPONENT | BY121: =D121 -> 38 | CA121: =#REF!+1 ->  | CB121: =IF(BY121=$BY$77,CA121,1) ->  | CD121: 0 | CE121: Exhaust Fans, Kitchen and Bathroom | CF121: 0 | CG121: Furnaces, Phased Replacements | CH121: =D121 -> 38
A122: SERVICE COMPONENT | B122: 44 | C122: 19 | D122: 39 | E122: 31.66666667 | F122: =C122/6 -> 3.166666667 | G122: Each | H122: Exhaust Fans, Kitchen, Bathroom and Stairs, Phased Replacement | I122: 15 to 20 | J122: 2027 | K122: Varies | L122: 5 | M122: 2 | N122: 3500 | O122: 211619.1779 | P122: 11083.33333 | Q122: 11083.33333 | T122: =$P122*(1+$CE$17)^T$77 -> 11964.69108 | W122: =$P122*(1+$CE$17)^W$77 -> 13419.86456 | Z122: =$P122*(1+$CE$17)^Z$77 -> 15052.01961 | AC122: =$P122*(1+$CE$17)^AC$77 -> 16882.68114 | AF122: =$P122*(1+$CE$17)^AF$77 -> 18935.99197 | AI122: =$P122*(1+$CE$17)^AI$77 -> 21239.03122 | AL122: =$P122*(1+$CE$17)^AL$77 -> 23822.17146 | AO122: =$P122*(1+$CE$17)^AO$77 -> 26719.47919 | AR122: =$P122*(1+$CE$17)^AR$77 -> 29969.16421 | AU122: =$P122*(1+$CE$17)^AU$77 -> 33614.08346 | BB122: =IF('Reserve Plan'!L122=1,"Poor",IF('Reserve Plan'!L122=2,"Poor",IF('Reserve Plan'!L122=3,"Fair",IF('Reserve Plan'!L122=4,"Fair",IF('Reserve Plan'!L122=5,"Fair",IF('Reserve Plan'!L122=6,"Good",IF('Reserve Plan'!L122=7,"Good",IF('Reserve Plan'!L122=8,"Good",IF('Reserve Plan'!L122=9,"Very Good",IF('Reserve Plan'!L122=10,"Very Good","")))))))))) -> Fair | BD122: 2 | BE122: 0 | BF122: 0 | BG122: 0 | BH122: 0 | BL122: 19 | BM122: 0.00627453367 | BN122: 25384.55564 | BP122: 1.666666667 | BS122: Full | BU122: SERVICE COMPONENT | BY122: 39 | CA122: =#REF!+1 ->  | CD122: 0 | CE122: Chiller, XXX tons, Replacement | CF122: 0 | CG122: Condensers | CH122: 39
A123: SERVICE COMPONENT | B123: 45 | C123: 1 | D123: 40 | E123: 1 | F123: 1 | G123: System | H123: Fire Detection, Control Panel and Emergency Devices | I123: 15 to 25 | J123: 2047 | K123: 2 | L123: 9 | M123: 22 | N123: 430000 | O123: 997724.1899 | P123: 430000 | Q123: 430000 | AN123: =$P123*(1+$CE$17)^AN$77 -> 997724.1899 | BB123: =IF('Reserve Plan'!L123=1,"Poor",IF('Reserve Plan'!L123=2,"Poor",IF('Reserve Plan'!L123=3,"Fair",IF('Reserve Plan'!L123=4,"Fair",IF('Reserve Plan'!L123=5,"Fair",IF('Reserve Plan'!L123=6,"Good",IF('Reserve Plan'!L123=7,"Good",IF('Reserve Plan'!L123=8,"Good",IF('Reserve Plan'!L123=9,"Very Good",IF('Reserve Plan'!L123=10,"Very Good","")))))))))) -> Very Good | BD123: 8 | BE123: 7 | BF123: 7 | BG123: 0 | BH123: 0 | BL123: 1 | BM123: 0.02958264031 | BN123: 0 | BP123: 1 | BS123: Full | BU123: SERVICE COMPONENT | BY123: 40 | CA123: =#REF!+1 ->  | CD123: 0 | CE123: Condensing Unit, Phased Replacement | CF123: 0 | CG123: Cooling Tower, XXX tons, Capital Repairs | CH123: 40
A124: SERVICE COMPONENT | B124: 46 | C124: 1 | D124: 41 | E124: 2 | F124: 1 | G124: Allowance | H124: Fire Suppression, Automatic Sprinkler System, Capital Repairs | I124: to 15 | J124: 2031 | K124: to 43 | L124: 5 | M124: 6 | N124: 73000 | O124: 254859.8531 | P124: 73000 | Q124: 73000 | X124: =$P124*(1+$CE$17)^X$77 -> 91836.67373 | AM124: =$P124*(1+$CE$17)^AM$77 -> 163023.1794 | BB124: =IF('Reserve Plan'!L124=1,"Poor",IF('Reserve Plan'!L124=2,"Poor",IF('Reserve Plan'!L124=3,"Fair",IF('Reserve Plan'!L124=4,"Fair",IF('Reserve Plan'!L124=5,"Fair",IF('Reserve Plan'!L124=6,"Good",IF('Reserve Plan'!L124=7,"Good",IF('Reserve Plan'!L124=8,"Good",IF('Reserve Plan'!L124=9,"Very Good",IF('Reserve Plan'!L124=10,"Very Good","")))))))))) -> Fair | BD124: 6 | BE124: 0 | BF124: 0 | BG124: 0 | BH124: 0 | BL124: 1 | BM124: 0.007556624808 | BN124: 0 | BP124: 2 | BS124: Full | BU124: SERVICE COMPONENT | BY124: 41 | CA124: =#REF!+1 ->  | CD124: 0 | CE124: Condensing Unit, Phased Replacement | CF124: 0 | CG124: Cooling Tower, XXX tons, Capital Repairs | CH124: 41
A125: SERVICE COMPONENT | B125: 47 | C125: 1 | D125: 42 | E125: 1 | F125: 1 | G125: Each | H125: Generator, Emergency, Common, Diesel, 350-kW (Incl. Transfer Switch and Fuel Tank) | I125: 30 to 35 | J125: 2055 | K125: 4 | L125: 8 | M125: 30 | N125: 190000 | O125: 598714.8466 | P125: 190000 | Q125: 190000 | AV125: =$P125*(1+$CE$17)^AV$77 -> 598714.8466 | BB125: =IF('Reserve Plan'!L125=1,"Poor",IF('Reserve Plan'!L125=2,"Poor",IF('Reserve Plan'!L125=3,"Fair",IF('Reserve Plan'!L125=4,"Fair",IF('Reserve Plan'!L125=5,"Fair",IF('Reserve Plan'!L125=6,"Good",IF('Reserve Plan'!L125=7,"Good",IF('Reserve Plan'!L125=8,"Good",IF('Reserve Plan'!L125=9,"Very Good",IF('Reserve Plan'!L125=10,"Very Good","")))))))))) -> Good | BD125: 8 | BE125: 7 | BF125: 7 | BG125: 7 | BH125: 1 | BL125: 1 | BM125: 0.01775196606 | BN125: 0 | BP125: 1 | BS125: Full | BU125: SERVICE COMPONENT | BY125: 42 | CA125: =#REF!+1 ->  | CD125: 0 | CE125: Chiller, XXX tons, Capital Repairs | CF125: 0 | CG125: Condensing Unit, Phased Replacement | CH125: 42
A126: SERVICE COMPONENT | B126: 48 | C126: 5 | D126: 43 | E126: 5 | F126: 5 | G126: Each | H126: Heat Exchanger, Plate and Frame, HVAC | I126: 25 to 35 | J126: 2040 | K126: 22 | L126: 6 | M126: 15 | N126: 44000 | O126: 390531.3423 | P126: 220000 | Q126: 220000 | AG126: =$P126*(1+$CE$17)^AG$77 -> 390531.3423 | BB126: =IF('Reserve Plan'!L126=1,"Poor",IF('Reserve Plan'!L126=2,"Poor",IF('Reserve Plan'!L126=3,"Fair",IF('Reserve Plan'!L126=4,"Fair",IF('Reserve Plan'!L126=5,"Fair",IF('Reserve Plan'!L126=6,"Good",IF('Reserve Plan'!L126=7,"Good",IF('Reserve Plan'!L126=8,"Good",IF('Reserve Plan'!L126=9,"Very Good",IF('Reserve Plan'!L126=10,"Very Good","")))))))))) -> Good | BD126: 8 | BE126: 7 | BF126: 0 | BG126: 0 | BH126: 0 | BL126: 5 | BM126: 0.01157930052 | BN126: 0 | BP126: 1 | BS126: Full | BU126: SERVICE COMPONENT | BY126: 43 | CD126: 0 | CE126: Chiller, XXX tons, Replacement | CF126: 0 | CG126: Condensers | CH126: 43
A127: SERVICE COMPONENT | B127: 49 | C127: 94 | D127: 44 | E127: 235 | F127: =C127/4 -> 23.5 | G127: Each | H127: Laundry Equipment, Phased Replacement | I127: 10 to 15 | J127: 2028 | K127: Varies | L127: 5 | M127: 3 | N127: 1050 | O127: 489505.2307 | P127: 24675 | Q127: 24675 | U127: =$P127*(1+$CE$17)^U$77 -> 27676.03072 | X127: =$P127*(1+$CE$17)^X$77 -> 31042.05376 | AA127: =$P127*(1+$CE$17)^AA$77 -> 34817.46032 | AD127: =$P127*(1+$CE$17)^AD$77 -> 39052.04059 | AG127: 43801.64033 | AJ127: =$P127*(1+$CE$17)^AJ$77 -> 49128.8974 | AM127: =$P127*(1+$CE$17)^AM$77 -> 55104.06783 | AP127: =$P127*(1+$CE$17)^AP$77 -> 61805.95235 | AS127: =$P127*(1+$CE$17)^AS$77 -> 69322.9356 | AV127: =$P127*(1+$CE$17)^AV$77 -> 77754.15179 | BB127: =IF('Reserve Plan'!L127=1,"Poor",IF('Reserve Plan'!L127=2,"Poor",IF('Reserve Plan'!L127=3,"Fair",IF('Reserve Plan'!L127=4,"Fair",IF('Reserve Plan'!L127=5,"Fair",IF('Reserve Plan'!L127=6,"Good",IF('Reserve Plan'!L127=7,"Good",IF('Reserve Plan'!L127=8,"Good",IF('Reserve Plan'!L127=9,"Very Good",IF('Reserve Plan'!L127=10,"Very Good","")))))))))) -> Fair | BD127: 3 | BE127: 0 | BF127: 0 | BG127: 0 | BH127: 0 | BL127: 94 | BM127: 0.01451388802 | BN127: 27676.03072 | BP127: 2.5 | BS127: Full | BU127: SERVICE COMPONENT | BY127: 44 | CA127: =#REF!+1 ->  | CD127: 0 | CE127: Cooling Tower, XXX tons, Replacements | CF127: 0 | CG127: Elevator, Hydraulic Pumps and Controls | CH127: 44
A128: SERVICE COMPONENT | B128: 50 | C128: 3250 | D128: 45 | E128: =COUNT(R128:AV128)*F128 -> 2600 | F128: =C128*0.8/11 -> 236.3636364 | G128: Riser Sections | H128: Pipes, Riser Sections and Common Plumbing, Partial Replacement | I128: to 75+ | J128: =$CE$20+M128 -> 2026 | K128: to 43 | L128: 5 | M128: =BD128+BE128+BF128+BG128+BH128 -> 1 | N128: 2115 | O128: =SUM(R128:AV128) -> 12170409.13 | P128: =F128*N128 -> 499909.0909 | Q128: =$P128*(1+$CE$17)^Q$77 -> 499909.0909 | S128: =$P128*(1+$CE$17)^S$77 -> 519405.5455 | Y128: =$P128*(1+$CE$17)^Y$77 -> 653431.2002 | AC128: =$P128*(1+$CE$17)^AC$77 -> 761486.2358 | AG128: =$P128*(1+$CE$17)^AG$77 -> 887409.856 | AK128: =$P128*(1+$CE$17)^AK$77 -> 1034156.91 | AN128: =$P128*(1+$CE$17)^AN$77 -> 1159933.471 | AP128: =$P128*(1+$CE$17)^AP$77 -> 1252172.541 | AR128: =$P128*(1+$CE$17)^AR$77 -> 1351746.554 | AT128: =$P128*(1+$CE$17)^AT$77 -> 1459238.791 | AU128: =$P128*(1+$CE$17)^AU$77 -> 1516149.104 | AV128: =$P128*(1+$CE$17)^AV$77 -> 1575278.919 | BB128: =IF('Reserve Plan'!L128=1,"Poor",IF('Reserve Plan'!L128=2,"Poor",IF('Reserve Plan'!L128=3,"Fair",IF('Reserve Plan'!L128=4,"Fair",IF('Reserve Plan'!L128=5,"Fair",IF('Reserve Plan'!L128=6,"Good",IF('Reserve Plan'!L128=7,"Good",IF('Reserve Plan'!L128=8,"Good",IF('Reserve Plan'!L128=9,"Very Good",IF('Reserve Plan'!L128=10,"Very Good","")))))))))) -> Fair | BD128: =IF($R128>1,0,IF($S128>1,1,IF($T128>1,2,IF($U128>1,3,IF($V128>1,4,IF($W128>1,5,IF($X128>1,6,IF($Y128>1,7,8)))))))) -> 1 | BE128: =IF($BD128<8,0,IF($Z128>1,0,IF($AA128>1,1,IF($AB128>1,2,IF($AC128>1,3,IF($AD128>1,4,IF($AE128>1,5,IF($AF128>1,6,7)))))))) -> 0 | BF128: =IF($BE128<7,0,IF($AG128>1,0,IF($AH128>1,1,IF($AI128>1,2,IF($AJ128>1,3,IF($AK128>1,4,IF($AL128>1,5,IF($AM128>1,6,7)))))))) -> 0 | BG128: =IF($BF128<7,0,IF(AN128>1,0,IF(AO128>1,1,IF(AP128>1,2,IF(AQ128>1,3,IF(AR128>1,4,IF(AS128>1,5, IF(AT128>1,6,7)))))))) -> 0 | BH128: =IF($BG128<7,0, IF(AU128>1,0, IF($AV128>1,1,1))) -> 0 | BL128: =C128 -> 3250 | BM128: 0.360854071 | BN128: =SUM(R128:W128) -> 519405.5455 | BP128: =E128/C128 -> 0.8 | BS128: =IF(BP128<1,"Partial","Full") -> Partial | BU128: =A128 -> SERVICE COMPONENT | BY128: =D128 -> 45 | CA128: =#REF!+1 ->  | CB128: =IF(BY128=$BY$77,CA128,1) ->  | CD128: 0 | CE128: Condensers | CF128: 0 | CG128: Cooling Tower, XXX tons, Replacements | CH128: =D128 -> 45
A129: SERVICE COMPONENT | B129: 51 | C129: 2 | D129: 46 | E129: 2 | F129: 2 | G129: Each | H129: Pump, Domestic Cold Water, 15-HP (Incl. Controls) | I129: to 25 | J129: 2038 | K129: <12 | L129: 6 | M129: 13 | N129: 26000 | O129: 85507.74666 | P129: 52000 | Q129: 52000 | AE129: =$P129*(1+$CE$17)^AE$77 -> 85507.74666 | BB129: =IF('Reserve Plan'!L129=1,"Poor",IF('Reserve Plan'!L129=2,"Poor",IF('Reserve Plan'!L129=3,"Fair",IF('Reserve Plan'!L129=4,"Fair",IF('Reserve Plan'!L129=5,"Fair",IF('Reserve Plan'!L129=6,"Good",IF('Reserve Plan'!L129=7,"Good",IF('Reserve Plan'!L129=8,"Good",IF('Reserve Plan'!L129=9,"Very Good",IF('Reserve Plan'!L129=10,"Very Good","")))))))))) -> Good | BD129: 8 | BE129: 5 | BF129: 0 | BG129: 0 | BH129: 0 | BL129: 2 | BM129: 0.002535314808 | BN129: 0 | BP129: 1 | BS129: Full | BU129: SERVICE COMPONENT | BY129: 46 | CA129: =#REF!+1 ->  | CD129: 0 | CE129: Exhaust Fans, Kitchen and Bathroom | CF129: 0 | CG129: Furnaces, Phased Replacements | CH129: 46
A130: SERVICE COMPONENT | B130: 52 | C130: 3 | D130: 47 | E130: 3 | F130: =C130/3 -> 1 | G130: Each | H130: Pumps, HVAC, Core Loop, 25-HP, Phased Replacement | I130: 20 to 30 | J130: =$CE$20+M130 -> 2035 | K130: Varies | L130: 5 | M130: =BD130+BE130+BF130+BG130+BH130 -> 10 | N130: 22500 | O130: 127152.3705 | P130: =F130*N130 -> 22500 | Q130: 22500 | AB130: =$P130*(1+$CE$17)^AB$77 -> 32986.63338 | AD130: 35609.76346 | AQ130: =$P130*(1+$CE$17)^AQ$77 -> 58555.9737 | BB130: =IF('Reserve Plan'!L130=1,"Poor",IF('Reserve Plan'!L130=2,"Poor",IF('Reserve Plan'!L130=3,"Fair",IF('Reserve Plan'!L130=4,"Fair",IF('Reserve Plan'!L130=5,"Fair",IF('Reserve Plan'!L130=6,"Good",IF('Reserve Plan'!L130=7,"Good",IF('Reserve Plan'!L130=8,"Good",IF('Reserve Plan'!L130=9,"Very Good",IF('Reserve Plan'!L130=10,"Very Good","")))))))))) -> Fair | BD130: 8 | BE130: 2 | BF130: 0 | BG130: 0 | BH130: 0 | BL130: 3 | BM130: 0.003770082835 | BN130: 0 | BP130: 1 | BS130: Full | BU130: SERVICE COMPONENT | BY130: =D130 -> 47 | CA130: =#REF!+1 ->  | CD130: 0 | CE130: Chiller, XXX tons, Capital Repairs | CF130: 0 | CG130: Condensing Unit, Phased Replacement | CH130: 47
A131: SERVICE COMPONENT | B131: 53 | C131: 1 | D131: 48 | E131: 1 | F131: 1 | G131: Each | H131: Pump, Fire Suppression, 75-HP (Incl. Controller) | I131: to 50 | J131: 2031 | K131: 43 | L131: 4 | M131: =BD131+BE131+BF131+BG131+BH131 -> 6 | N131: 110000 | O131: 138384.0289 | P131: 110000 | Q131: 110000 | X131: =$P131*(1+$CE$17)^X$77 -> 138384.0289 | BB131: =IF('Reserve Plan'!L131=1,"Poor",IF('Reserve Plan'!L131=2,"Poor",IF('Reserve Plan'!L131=3,"Fair",IF('Reserve Plan'!L131=4,"Fair",IF('Reserve Plan'!L131=5,"Fair",IF('Reserve Plan'!L131=6,"Good",IF('Reserve Plan'!L131=7,"Good",IF('Reserve Plan'!L131=8,"Good",IF('Reserve Plan'!L131=9,"Very Good",IF('Reserve Plan'!L131=10,"Very Good","")))))))))) -> Fair | BD131: 6 | BE131: 0 | BF131: 0 | BG131: =IF($BF131<7,0,IF(AN131>1,0,IF(AO131>1,1,IF(AP131>1,2,IF(AQ131>1,3,IF(AR131>1,4,IF(AS131>1,5, IF(AT131>1,6,7)))))))) -> 0 | BH131: =IF($BG131<7,0, IF(AU131>1,0, IF($AV131>1,1,1))) -> 0 | BL131: 1 | BM131: 0.004103102835 | BN131: =SUM(R131:W131) -> 0 | BP131: 1 | BS131: =IF(BP131<1,"Partial","Full") -> Full | BU131: SERVICE COMPONENT | BY131: 48 | CA131: =CA130+1 ->  | CB131: =IF(BY131=$BY$77,CA131,1) ->  | CD131: 0 | CE131: Condensing Unit, Phased Replacement | CF131: 0 | CG131: Cooling Tower, XXX tons, Capital Repairs | CH131: 48
A132: SERVICE COMPONENT | B132: 54 | C132: 18 | D132: 49 | E132: =COUNT(R132:AV132)*F132 -> 18 | F132: =C132 -> 18 | G132: Card Readers | H132: Security System, FOB Access | I132: 15 to 20 | J132: =$CE$20+M132 -> 2041 | K132: 2 | L132: 9 | M132: =BD132+BE132+BF132+BG132+BH132 -> 16 | N132: 2125 | O132: =SUM(R132:AV132) -> 70547.26806 | P132: =F132*N132 -> 38250 | Q132: 38250 | AH132: =$P132*(1+$CE$17)^AH$77 -> 70547.26806 | BB132: =IF('Reserve Plan'!L132=1,"Poor",IF('Reserve Plan'!L132=2,"Poor",IF('Reserve Plan'!L132=3,"Fair",IF('Reserve Plan'!L132=4,"Fair",IF('Reserve Plan'!L132=5,"Fair",IF('Reserve Plan'!L132=6,"Good",IF('Reserve Plan'!L132=7,"Good",IF('Reserve Plan'!L132=8,"Good",IF('Reserve Plan'!L132=9,"Very Good",IF('Reserve Plan'!L132=10,"Very Good","")))))))))) -> Very Good | BD132: 8 | BE132: 7 | BF132: 1 | BG132: =IF($BF132<7,0,IF(AN132>1,0,IF(AO132>1,1,IF(AP132>1,2,IF(AQ132>1,3,IF(AR132>1,4,IF(AS132>1,5, IF(AT132>1,6,7)))))))) -> 0 | BH132: =IF($BG132<7,0, IF(AU132>1,0, IF($AV132>1,1,1))) -> 0 | BL132: =C132 -> 18 | BM132: 0.002091734847 | BN132: =SUM(R132:W132) -> 0 | BP132: =E132/C132 -> 1 | BS132: =IF(BP132<1,"Partial","Full") -> Full | BU132: =A132 -> SERVICE COMPONENT | BY132: =D132 -> 49 | CA132: =#REF!+1 ->  | CB132: =IF(BY132=$BY$77,CA132,1) ->  | CD132: 0 | CE132: Cooling Tower, XXX tons, Replacements | CF132: 0 | CG132: Elevator, Hydraulic Pumps and Controls | CH132: =D132 -> 49
A133: SERVICE COMPONENT | B133: 55 | C133: 15 | D133: 50 | E133: =COUNT(R133:AV133)*F133 -> 30 | F133: =C133/3 -> 5 | G133: Cameras | H133: Security System, Surveillance, Phased Replacement | I133: 10 to 15 | J133: 2029 | K133: Varies | L133: 5 | M133: 4 | N133: 1500 | O133: 89184.43637 | P133: 7500 | Q133: 7500 | V133: =$P133*(1+$CE$17)^V$77 -> 8740.241921 | AA133: =$P133*(1+$CE$17)^AA$77 -> 10582.81469 | AF133: =$P133*(1+$CE$17)^AF$77 -> 12813.82915 | AK133: =$P133*(1+$CE$17)^AK$77 -> 15515.17459 | AP133: =$P133*(1+$CE$17)^AP$77 -> 18786.00375 | AU133: =$P133*(1+$CE$17)^AU$77 -> 22746.37227 | BB133: =IF('Reserve Plan'!L133=1,"Poor",IF('Reserve Plan'!L133=2,"Poor",IF('Reserve Plan'!L133=3,"Fair",IF('Reserve Plan'!L133=4,"Fair",IF('Reserve Plan'!L133=5,"Fair",IF('Reserve Plan'!L133=6,"Good",IF('Reserve Plan'!L133=7,"Good",IF('Reserve Plan'!L133=8,"Good",IF('Reserve Plan'!L133=9,"Very Good",IF('Reserve Plan'!L133=10,"Very Good","")))))))))) -> Fair | BD133: 4 | BE133: 0 | BF133: 0 | BG133: 0 | BH133: 0 | BL133: 15 | BM133: 0.002644329093 | BN133: 8740.241921 | BP133: 2 | BS133: Full | BU133: SERVICE COMPONENT | BY133: 50 | CA133: =#REF!+1 ->  | CB133: =IF(BY133=$BY$77,CA133,1) ->  | CD133: 0 | CE133: Cooling Tower, XXX tons, Capital Repairs | CF133: 0 | CG133: Elevator, Controls | CH133: 50
A134: SERVICE COMPONENT | B134: 56 | C134: 3 | D134: 51 | E134: 3 | F134: 3 | G134: Each | H134: Tanks, Storage, Domestic Hot Water, 200-Gallon | I134: to 30 | J134: =$CE$20+M134 -> 2052 | K134: 2 to 4 | L134: 9 | M134: =BD134+BE134+BF134+BG134+BH134 -> 27 | N134: 18200 | O134: 153395.432 | P134: =F134*N134 -> 54600 | Q134: 54600 | AS134: =$P134*(1+$CE$17)^AS$77 -> 153395.432 | BB134: =IF('Reserve Plan'!L134=1,"Poor",IF('Reserve Plan'!L134=2,"Poor",IF('Reserve Plan'!L134=3,"Fair",IF('Reserve Plan'!L134=4,"Fair",IF('Reserve Plan'!L134=5,"Fair",IF('Reserve Plan'!L134=6,"Good",IF('Reserve Plan'!L134=7,"Good",IF('Reserve Plan'!L134=8,"Good",IF('Reserve Plan'!L134=9,"Very Good",IF('Reserve Plan'!L134=10,"Very Good","")))))))))) -> Very Good | BD134: 8 | BE134: 7 | BF134: =IF($BE134<7,0,IF($AG134>1,0,IF($AH134>1,1,IF($AI134>1,2,IF($AJ134>1,3,IF($AK134>1,4,IF($AL134>1,5,IF($AM134>1,6,7)))))))) -> 7 | BG134: =IF($BF134<7,0,IF(AN134>1,0,IF(AO134>1,1,IF(AP134>1,2,IF(AQ134>1,3,IF(AR134>1,4,IF(AS134>1,5, IF(AT134>1,6,7)))))))) -> 5 | BH134: =IF($BG134<7,0, IF(AU134>1,0, IF($AV134>1,1,1))) -> 0 | BL134: =C134 -> 3 | BM134: 0.004548192712 | BN134: =SUM(R134:W134) -> 0 | BP134: =E134/C134 -> 1 | BS134: =IF(BP134<1,"Partial","Full") -> Full | BU134: =A134 -> SERVICE COMPONENT | BY134: =D134 -> 51 | CA134: =#REF!+1 ->  | CB134: =IF(BY134=$BY$77,CA134,1) ->  | CD134: 0 | CE134: Exhaust Fans, Kitchen and Bathroom | CF134: 0 | CG134: Furnaces, Phased Replacements | CH134: 51
A135: SERVICE COMPONENT | B135: 57 | C135: 27 | D135: 52 | E135: 27 | F135: 27 | G135: Floors | H135: Trash Chute and Doors | I135: 50+ | J135: 2045 | K135: 43 | L135: 5 | M135: 20 | N135: 3300 | O135: 191508.7648 | P135: 89100 | Q135: 89100 | AL135: =$P135*(1+$CE$17)^AL$77 -> 191508.7648 | BB135: =IF('Reserve Plan'!L135=1,"Poor",IF('Reserve Plan'!L135=2,"Poor",IF('Reserve Plan'!L135=3,"Fair",IF('Reserve Plan'!L135=4,"Fair",IF('Reserve Plan'!L135=5,"Fair",IF('Reserve Plan'!L135=6,"Good",IF('Reserve Plan'!L135=7,"Good",IF('Reserve Plan'!L135=8,"Good",IF('Reserve Plan'!L135=9,"Very Good",IF('Reserve Plan'!L135=10,"Very Good","")))))))))) -> Fair | BD135: 8 | BE135: 7 | BF135: 5 | BG135: 0 | BH135: 0 | BL135: 27 | BM135: 0.005678257542 | BN135: 0 | BP135: 1 | BS135: Full | BU135: SERVICE COMPONENT | BY135: 52 | CA135: =#REF!+1 ->  | CB135: =IF(BY135=$BY$77,CA135,1) ->  | CD135: 0 | CE135: Exhaust Fans, Kitchen and Bathroom | CF135: 0 | CG135: Furnaces, Phased Replacements | CH135: 52
A136: SERVICE COMPONENT | B136: 58 | C136: 1 | D136: 53 | E136: =COUNT(R136:AV136)*F136 -> 2 | F136: =C136 -> 1 | G136: Each | H136: =IF(C136>1,"Trash Compactors","Trash Compactor") -> Trash Compactor | I136: 20 to 25 | J136: =$CE$20+M136 -> 2028 | K136: 22 | L136: 4 | M136: 3 | N136: 18000 | O136: =SUM(R136:AV136) -> 72731.35135 | P136: =F136*N136 -> 18000 | Q136: 18000 | U136: =$P136*(1+$CE$17)^U$77 -> 20189.20174 | AT136: =$P136*(1+$CE$17)^AT$77 -> 52542.14961 | BB136: =IF('Reserve Plan'!L136=1,"Poor",IF('Reserve Plan'!L136=2,"Poor",IF('Reserve Plan'!L136=3,"Fair",IF('Reserve Plan'!L136=4,"Fair",IF('Reserve Plan'!L136=5,"Fair",IF('Reserve Plan'!L136=6,"Good",IF('Reserve Plan'!L136=7,"Good",IF('Reserve Plan'!L136=8,"Good",IF('Reserve Plan'!L136=9,"Very Good",IF('Reserve Plan'!L136=10,"Very Good","")))))))))) -> Fair | BD136: 3 | BE136: =IF($BD136<8,0,IF($Z136>1,0,IF($AA136>1,1,IF($AB136>1,2,IF($AC136>1,3,IF($AD136>1,4,IF($AE136>1,5,IF($AF136>1,6,7)))))))) -> 0 | BF136: 0 | BG136: 0 | BH136: 0 | BL136: =C136 -> 1 | BM136: 0.002156493175 | BN136: 20189.20174 | BP136: =E136/C136 -> 2 | BS136: Full | BU136: =A136 -> SERVICE COMPONENT | BY136: =D136 -> 53 | CA136: =#REF!+1 ->  | CD136: 0 | CE136: Fire Detection System (control panel and emergency devices) | CF136: 0 | CG136: Generator, Emergency | CH136: =D136 -> 53
A137: SERVICE COMPONENT | B137: 59 | C137: 3 | D137: 54 | E137: =COUNT(R137:AV137)*F137 -> 6 | F137: =C137 -> 3 | G137: Each | H137: Variable Frequency Drives | I137: to 20 | J137: =$CE$20+M137 -> 2036 | K137: 5 to 7 | L137: 4 | M137: =BD137+BE137+BF137+BG137+BH137 -> 11 | N137: 7000 | O137: =SUM(R137:AV137) -> 95678.0803 | P137: =F137*N137 -> 21000 | Q137: 21000 | AC137: =$P137*(1+$CE$17)^AC$77 -> 31988.23794 | AU137: =$P137*(1+$CE$17)^AU$77 -> 63689.84235 | BB137: =IF('Reserve Plan'!L137=1,"Poor",IF('Reserve Plan'!L137=2,"Poor",IF('Reserve Plan'!L137=3,"Fair",IF('Reserve Plan'!L137=4,"Fair",IF('Reserve Plan'!L137=5,"Fair",IF('Reserve Plan'!L137=6,"Good",IF('Reserve Plan'!L137=7,"Good",IF('Reserve Plan'!L137=8,"Good",IF('Reserve Plan'!L137=9,"Very Good",IF('Reserve Plan'!L137=10,"Very Good","")))))))))) -> Fair | BD137: 8 | BE137: 3 | BF137: 0 | BG137: =IF($BF137<7,0,IF(AN137>1,0,IF(AO137>1,1,IF(AP137>1,2,IF(AQ137>1,3,IF(AR137>1,4,IF(AS137>1,5, IF(AT137>1,6,7)))))))) -> 0 | BH137: =IF($BG137<7,0, IF(AU137>1,0, IF($AV137>1,1,1))) -> 0 | BL137: =C137 -> 3 | BM137: 0.002836866404 | BN137: =SUM(R137:W137) -> 0 | BP137: =E137/C137 -> 2 | BS137: =IF(BP137<1,"Partial","Full") -> Full | BU137: =A137 -> SERVICE COMPONENT | BY137: =D137 -> 54 | CA137: =#REF!+1 ->  | CB137: =IF(BY137=$BY$77,CA137,1) ->  | CD137: 0 | CE137: Fire Detection System (control panel and emergency devices) | CF137: 0 | CG137: Generator, Emergency | CH137: =D137 -> 54
A138: SERVICE COMPONENT | B138: 60 | C138: 1 | D138: 55 | E138: 2 | F138: 1 | G138: Each | H138: Vehicle, Honda Rubicon | I138: to 20 | J138: 2030 | K138: Not Available | L138: 4 | M138: =BD138+BE138+BF138+BG138+BH138 -> 5 | N138: 13000 | O138: 49572.93338 | P138: 13000 | Q138: 13000 | W138: =$P138*(1+$CE$17)^W$77 -> 15740.59302 | AQ138: =$P138*(1+$CE$17)^AQ$77 -> 33832.34036 | BB138: =IF('Reserve Plan'!L138=1,"Poor",IF('Reserve Plan'!L138=2,"Poor",IF('Reserve Plan'!L138=3,"Fair",IF('Reserve Plan'!L138=4,"Fair",IF('Reserve Plan'!L138=5,"Fair",IF('Reserve Plan'!L138=6,"Good",IF('Reserve Plan'!L138=7,"Good",IF('Reserve Plan'!L138=8,"Good",IF('Reserve Plan'!L138=9,"Very Good",IF('Reserve Plan'!L138=10,"Very Good","")))))))))) -> Fair | BD138: 5 | BE138: 0 | BF138: 0 | BG138: =IF($BF138<7,0,IF(AN138>1,0,IF(AO138>1,1,IF(AP138>1,2,IF(AQ138>1,3,IF(AR138>1,4,IF(AS138>1,5, IF(AT138>1,6,7)))))))) -> 0 | BH138: =IF($BG138<7,0, IF(AU138>1,0, IF($AV138>1,1,1))) -> 0 | BL138: 1 | BM138: 0.001469843342 | BN138: =SUM(R138:W138) -> 15740.59302 | BP138: 2 | BS138: =IF(BP138<1,"Partial","Full") -> Full | BU138: SERVICE COMPONENT | BY138: 55 | CA138: =#REF!+1 ->  | CB138: =IF(BY138=$BY$77,CA138,1) ->  | CD138: 0 | CE138: Fire Detection System (control panel and emergency devices) | CF138: 0 | CG138: Generator, Emergency | CH138: 55
B139: 61 | O139: =SUM(R139:AV139) -> 0 | BB139: =IF('Reserve Plan'!L139=1,"Poor",IF('Reserve Plan'!L139=2,"Poor",IF('Reserve Plan'!L139=3,"Fair",IF('Reserve Plan'!L139=4,"Fair",IF('Reserve Plan'!L139=5,"Fair",IF('Reserve Plan'!L139=6,"Good",IF('Reserve Plan'!L139=7,"Good",IF('Reserve Plan'!L139=8,"Good",IF('Reserve Plan'!L139=9,"Very Good",IF('Reserve Plan'!L139=10,"Very Good","")))))))))) ->  | BD139: 8 | BE139: 7 | BF139: 7 | BG139: 7 | BH139: 1 | BL139: =C139 -> 0 | BM139: 0 | BN139: 0 | BP139: =E139/C139 ->  | BU139: =A139 -> 0 | BY139: =#REF! ->  | CA139: =#REF!+1 ->  | CD139: 0 | CE139: Asphalt Pavement, Repaving, Total Replacement, Phased | CF139: 0 | CG139: Concrete Driveways, Partial Replacement | CH139: =D139 -> 0
A140: POOL COMPONENT | B140: 62 | H140: POOL COMPONENTS | BB140: =IF('Reserve Plan'!L140=1,"Poor",IF('Reserve Plan'!L140=2,"Poor",IF('Reserve Plan'!L140=3,"Fair",IF('Reserve Plan'!L140=4,"Fair",IF('Reserve Plan'!L140=5,"Fair",IF('Reserve Plan'!L140=6,"Good",IF('Reserve Plan'!L140=7,"Good",IF('Reserve Plan'!L140=8,"Good",IF('Reserve Plan'!L140=9,"Very Good",IF('Reserve Plan'!L140=10,"Very Good","")))))))))) ->  | BD140: =IF($R140>1,0,IF($S140>1,1,IF($T140>1,2,IF($U140>1,3,IF($V140>1,4,IF($W140>1,5,IF($X140>1,6,IF($Y140>1,7,8)))))))) -> 8 | BE140: =IF($BD140<8,0,IF($Z140>1,0,IF($AA140>1,1,IF($AB140>1,2,IF($AC140>1,3,IF($AD140>1,4,IF($AE140>1,5,IF($AF140>1,6,7)))))))) -> 7 | BF140: =IF($BE140<7,0,IF($AG140>1,0,IF($AH140>1,1,IF($AI140>1,2,IF($AJ140>1,3,IF($AK140>1,4,IF($AL140>1,5,IF($AM140>1,6,7)))))))) -> 7 | BG140: =IF($BF140<7,0,IF(AN140>1,0,IF(AO140>1,1,IF(AP140>1,2,IF(AQ140>1,3,IF(AR140>1,4,IF(AS140>1,5, IF(AT140>1,6,7)))))))) -> 7 | BH140: =IF($BG140<7,0, IF(AU140>1,0, IF($AV140>1,1,1))) -> 1 | BL140: 0 | BM140: 0 | BN140: =SUM(R140:W140) -> 0 | BS140: =IF(BP140<1,"Partial","Full") ->  | BU140: POOL COMPONENT | BY140: =D140 -> 0 | CA140: =#REF!+1 ->  | CD140: 0 | CE140: Interior Renovations, Partial | CF140: 0 | CG140: Cover | CH140: =D140 -> 0
A141: POOL COMPONENT | B141: 63 | C141: 1 | D141: =D138+1 -> 56 | E141: =COUNT(R141:AV141)*F141 -> 3 | F141: =C141 -> 1 | G141: Allowance | H141: Pool Furniture | I141: to 12 | J141: =$CE$20+M141 -> 2032 | K141: 3 | L141: 7 | M141: =BD141+BE141+BF141+BG141+BH141 -> 7 | N141: 10000 | O141: =SUM(R141:AV141) -> 60328.4377 | P141: =F141*N141 -> 10000 | Q141: =$P141*(1+$CE$17)^Q$77 -> 10000 | Y141: =$P141*(1+$CE$17)^Y$77 -> 13071.00055 | AI141: =$P141*(1+$CE$17)^AI$77 -> 19163.03569 | AS141: =$P141*(1+$CE$17)^AS$77 -> 28094.40146 | BB141: =IF('Reserve Plan'!L141=1,"Poor",IF('Reserve Plan'!L141=2,"Poor",IF('Reserve Plan'!L141=3,"Fair",IF('Reserve Plan'!L141=4,"Fair",IF('Reserve Plan'!L141=5,"Fair",IF('Reserve Plan'!L141=6,"Good",IF('Reserve Plan'!L141=7,"Good",IF('Reserve Plan'!L141=8,"Good",IF('Reserve Plan'!L141=9,"Very Good",IF('Reserve Plan'!L141=10,"Very Good","")))))))))) -> Good | BD141: 7 | BE141: 0 | BF141: 0 | BG141: =IF($BF141<7,0,IF(AN141>1,0,IF(AO141>1,1,IF(AP141>1,2,IF(AQ141>1,3,IF(AR141>1,4,IF(AS141>1,5, IF(AT141>1,6,7)))))))) -> 0 | BH141: =IF($BG141<7,0, IF(AU141>1,0, IF($AV141>1,1,1))) -> 0 | BL141: =C141 -> 1 | BM141: =O141/$O$712 -> 0.001788745318 | BN141: =SUM(R141:W141) -> 0 | BP141: =E141/C141 -> 3 | BS141: =IF(BP141<1,"Partial","Full") -> Full | BU141: =A141 -> POOL COMPONENT | BY141: =D141 -> 56 | CA141: =#REF!+1 ->  | CB141: =IF(BY141=$BY$77,CA141,1) ->  | CD141: 0 | CE141: Concrete Deck, Inspections, Partial Replacement and Repairs | CF141: 0 | CG141: Paint Finish | CH141: =D141 -> 56
A142: POOL COMPONENT | B142: 64 | C142: 390 | D142: =D141+1 -> 57 | E142: 390 | F142: =C142 -> 390 | G142: Hor. Sq. Ft. | H142: Pool Liner, Fiberglass | I142: 20 to 30 | J142: =$CE$20+M142 -> 2038 | K142: 12 | L142: 6 | M142: 13 | N142: 60 | O142: 38478.486 | P142: 23400 | Q142: 23400 | AE142: =$P142*(1+$CE$17)^AE$77 -> 38478.486 | BB142: =IF('Reserve Plan'!L142=1,"Poor",IF('Reserve Plan'!L142=2,"Poor",IF('Reserve Plan'!L142=3,"Fair",IF('Reserve Plan'!L142=4,"Fair",IF('Reserve Plan'!L142=5,"Fair",IF('Reserve Plan'!L142=6,"Good",IF('Reserve Plan'!L142=7,"Good",IF('Reserve Plan'!L142=8,"Good",IF('Reserve Plan'!L142=9,"Very Good",IF('Reserve Plan'!L142=10,"Very Good","")))))))))) -> Good | BD142: 8 | BE142: 5 | BF142: 0 | BG142: 0 | BH142: 0 | BL142: 390 | BM142: 0.001140891664 | BN142: 0 | BP142: 1 | BS142: Full | BU142: POOL COMPONENT | BY142: 57 | CA142: =CA141+1 ->  | CD142: 0 | CE142: Cover | CF142: 0 | CG142: Plaster Finish Replacement and Tile Repairs | CH142: 57
B143: 65 | O143: =SUM(R143:AV143) -> 0 | BB143: =IF('Reserve Plan'!L143=1,"Poor",IF('Reserve Plan'!L143=2,"Poor",IF('Reserve Plan'!L143=3,"Fair",IF('Reserve Plan'!L143=4,"Fair",IF('Reserve Plan'!L143=5,"Fair",IF('Reserve Plan'!L143=6,"Good",IF('Reserve Plan'!L143=7,"Good",IF('Reserve Plan'!L143=8,"Good",IF('Reserve Plan'!L143=9,"Very Good",IF('Reserve Plan'!L143=10,"Very Good","")))))))))) ->  | BD143: 8 | BE143: 7 | BF143: 7 | BG143: 7 | BH143: 1 | BL143: =C143 -> 0 | BM143: 0 | BN143: 0 | BP143: =E143/C143 ->  | BU143: =A143 -> 0 | BY143: =#REF! ->  | CA143: =#REF!+1 ->  | CB143: =IF(BY143=$BY$77,CA143,1) ->  | CD143: 0 | CE143: Mechanical Equipment | CF143: 0 | CG143: Concrete, Elevated Floors, Inspection and Capital Repairs | CH143: 0
A144: GARAGE COMPONENT | B144: 66 | H144: GARAGE COMPONENTS | BB144: =IF('Reserve Plan'!L144=1,"Poor",IF('Reserve Plan'!L144=2,"Poor",IF('Reserve Plan'!L144=3,"Fair",IF('Reserve Plan'!L144=4,"Fair",IF('Reserve Plan'!L144=5,"Fair",IF('Reserve Plan'!L144=6,"Good",IF('Reserve Plan'!L144=7,"Good",IF('Reserve Plan'!L144=8,"Good",IF('Reserve Plan'!L144=9,"Very Good",IF('Reserve Plan'!L144=10,"Very Good","")))))))))) ->  | BD144: 8 | BE144: 7 | BF144: 7 | BG144: 7 | BH144: 1 | BL144: 0 | BM144: 0 | BN144: 0 | BU144: GARAGE COMPONENT | BY144: =D144 -> 0 | CD144: 0 | CE144: Paint Finish | CF144: 0 | CG144: Concrete, On-grade, Partial Replacements | CH144: 0
A145: GARAGE COMPONENT | B145: =B144+1 -> 67 | C145: 4365 | D145: =D142+1 -> 58 | E145: =COUNT(R145:AV145)*F145 -> 4365 | F145: =C145 -> 4365 | G145: Square Feet | H145: Acoustical Tile and Grid System, Garage, P11 | I145: to 30+ | J145: =$CE$20+M145 -> 2034 | K145: Not Available | L145: 4 | M145: =BD145+BE145+BF145+BG145+BH145 -> 9 | N145: 9 | O145: 55432.78333 | P145: =F145*N145 -> 39285 | Q145: =$P145*(1+$CE$17)^Q$77 -> 39285 | AA145: =$P145*(1+$CE$17)^AA$77 -> 55432.78333 | BB145: =IF('Reserve Plan'!L145=1,"Poor",IF('Reserve Plan'!L145=2,"Poor",IF('Reserve Plan'!L145=3,"Fair",IF('Reserve Plan'!L145=4,"Fair",IF('Reserve Plan'!L145=5,"Fair",IF('Reserve Plan'!L145=6,"Good",IF('Reserve Plan'!L145=7,"Good",IF('Reserve Plan'!L145=8,"Good",IF('Reserve Plan'!L145=9,"Very Good",IF('Reserve Plan'!L145=10,"Very Good","")))))))))) -> Fair | BD145: 8 | BE145: 1 | BF145: 0 | BG145: 0 | BH145: 0 | BL145: =C145 -> 4365 | BM145: 0.001643588586 | BN145: 0 | BP145: =E145/C145 -> 1 | BS145: Full | BU145: =A145 -> GARAGE COMPONENT | BY145: =D145 -> 58 | CA145: =#REF!+1 ->  | CD145: 0 | CE145: Door and Operator | CF145: 0 | CG145: Unit Heaters | CH145: 58
A146: GARAGE COMPONENT | B146: 68 | C146: 71110 | D146: =D145+1 -> 59 | E146: =COUNT(R146:AV146)*F146 -> 213330 | F146: =C146 -> 71110 | G146: Square Feet | H146: Concrete Garage Floors P9-P11, Capital Repairs and Traffic Membrane | I146: 8 to 12 | J146: =$CE$20+M146 -> 2034 | K146: 5+ | L146: 4 | M146: =BD146+BE146+BF146+BG146+BH146 -> 9 | N146: 7 | O146: =SUM(R146:AV146) -> 3241767.713 | P146: =F146*N146 -> 497770 | Q146: 497770 | AA146: =$P146*(1+$CE$17)^AA$77 -> 702374.3556 | AK146: =$P146*(1+$CE$17)^AK$77 -> 1029731.794 | AU146: =$P146*(1+$CE$17)^AU$77 -> 1509661.563 | BB146: =IF('Reserve Plan'!L146=1,"Poor",IF('Reserve Plan'!L146=2,"Poor",IF('Reserve Plan'!L146=3,"Fair",IF('Reserve Plan'!L146=4,"Fair",IF('Reserve Plan'!L146=5,"Fair",IF('Reserve Plan'!L146=6,"Good",IF('Reserve Plan'!L146=7,"Good",IF('Reserve Plan'!L146=8,"Good",IF('Reserve Plan'!L146=9,"Very Good",IF('Reserve Plan'!L146=10,"Very Good","")))))))))) -> Fair | BD146: 8 | BE146: 1 | BF146: 0 | BG146: =IF($BF146<7,0,IF(AN146>1,0,IF(AO146>1,1,IF(AP146>1,2,IF(AQ146>1,3,IF(AR146>1,4,IF(AS146>1,5, IF(AT146>1,6,7)))))))) -> 0 | BH146: =IF($BG146<7,0, IF(AU146>1,0, IF($AV146>1,1,1))) -> 0 | BL146: =C146 -> 71110 | BM146: 0.09611879635 | BN146: =SUM(R146:W146) -> 0 | BP146: =E146/C146 -> 3 | BS146: =IF(BP146<1,"Partial","Full") -> Full | BU146: =A146 -> GARAGE COMPONENT | BY146: =D146 -> 59 | CA146: =#REF!+1 ->  | CB146: =IF(BY146=$BY$77,CA146,1) ->  | CD146: 0 | CE146: Door and Operator | CF146: 0 | CG146: Unit Heaters | CH146: =D146 -> 59
A147: GARAGE COMPONENT | B147: 69 | C147: 2 | D147: =D146+1 -> 60 | E147: 4 | F147: =C147 -> 2 | G147: Sets | H147: Garage Gates and Operators, P8 | I147: 20 to 25 | J147: =$CE$20+M147 -> 2030 | K147: ~30 | L147: 5 | M147: =BD147+BE147+BF147+BG147+BH147 -> 5 | N147: 15000 | O147: =SUM(R147:AV147) -> 130858.3686 | P147: =F147*N147 -> 30000 | Q147: 30000 | W147: =$P147*(1+$CE$17)^W$77 -> 36324.44542 | AV147: =$P147*(1+$CE$17)^AV$77 -> 94533.92315 | BB147: =IF('Reserve Plan'!L147=1,"Poor",IF('Reserve Plan'!L147=2,"Poor",IF('Reserve Plan'!L147=3,"Fair",IF('Reserve Plan'!L147=4,"Fair",IF('Reserve Plan'!L147=5,"Fair",IF('Reserve Plan'!L147=6,"Good",IF('Reserve Plan'!L147=7,"Good",IF('Reserve Plan'!L147=8,"Good",IF('Reserve Plan'!L147=9,"Very Good",IF('Reserve Plan'!L147=10,"Very Good","")))))))))) -> Fair | BD147: 5 | BE147: 0 | BF147: 0 | BG147: =IF($BF147<7,0,IF(AN147>1,0,IF(AO147>1,1,IF(AP147>1,2,IF(AQ147>1,3,IF(AR147>1,4,IF(AS147>1,5, IF(AT147>1,6,7)))))))) -> 0 | BH147: =IF($BG147<7,0, IF(AU147>1,0, IF($AV147>1,1,1))) -> 0 | BL147: =C147 -> 2 | BM147: 0.003879966115 | BN147: =SUM(R147:W147) -> 36324.44542 | BP147: =E147/C147 -> 2 | BS147: =IF(BP147<1,"Partial","Full") -> Full | BU147: =A147 -> GARAGE COMPONENT | BY147: =D147 -> 60 | CA147: =#REF!+1 ->  | CB147: =IF(BY147=$BY$77,CA147,1) ->  | CD147: 0 | CE147: Concrete, On-grade, Partial Replacements | CF147: 0 | CG147: Traffic Membrane, Elevated Floors | CH147: =D147 -> 60
A148: GARAGE COMPONENT | B148: 70 | C148: 63 | D148: 61 | E148: =COUNT(R148:AV148)*F148 -> 63 | F148: =C148 -> 63 | G148: Each | H148: Light Fixtures, Garage, P8-P11 | I148: 25 to 30 | J148: =$CE$20+M148 -> 2045 | K148: ~10 | L148: 7 | M148: =BD148+BE148+BF148+BG148+BH148 -> 20 | N148: 300 | O148: =SUM(R148:AV148) -> 40623.07132 | P148: =F148*N148 -> 18900 | Q148: 18900 | AL148: =$P148*(1+$CE$17)^AL$77 -> 40623.07132 | BB148: =IF('Reserve Plan'!L148=1,"Poor",IF('Reserve Plan'!L148=2,"Poor",IF('Reserve Plan'!L148=3,"Fair",IF('Reserve Plan'!L148=4,"Fair",IF('Reserve Plan'!L148=5,"Fair",IF('Reserve Plan'!L148=6,"Good",IF('Reserve Plan'!L148=7,"Good",IF('Reserve Plan'!L148=8,"Good",IF('Reserve Plan'!L148=9,"Very Good",IF('Reserve Plan'!L148=10,"Very Good","")))))))))) -> Good | BD148: 8 | BE148: 7 | BF148: 5 | BG148: =IF($BF148<7,0,IF(AN148>1,0,IF(AO148>1,1,IF(AP148>1,2,IF(AQ148>1,3,IF(AR148>1,4,IF(AS148>1,5, IF(AT148>1,6,7)))))))) -> 0 | BH148: =IF($BG148<7,0, IF(AU148>1,0, IF($AV148>1,1,1))) -> 0 | BL148: =C148 -> 63 | BM148: 0.001204478872 | BN148: =SUM(R148:W148) -> 0 | BP148: =E148/C148 -> 1 | BS148: =IF(BP148<1,"Partial","Full") -> Full | BU148: =A148 -> GARAGE COMPONENT | BY148: =#REF! ->  | CA148: =#REF!+1 ->  | CB148: =IF(BY148=$BY$77,CA148,1) ->  | CD148: 0 | CE148: Plaster Finish Replacement and Tile Repairs | CF148: 0 | CG148: Door and Operator | CH148: =D148 -> 61
A149: GARAGE COMPONENT | B149: 71 | C149: 1125 | D149: 62 | E149: 3375 | F149: 1125 | G149: Linear Feet | H149: Railings, Garage Levels P8-P11, Paint Finishes and Capital Repairs | I149: 6 to 8 | J149: 2039 | K149: Not Available | L149: 9 | M149: 14 | N149: =10880/1125 -> 9.671111111 | O149: =SUM(R149:AV149) -> 78117.63991 | P149: 10880 | Q149: 10880 | AF149: =$P149*(1+$CE$17)^AF$77 -> 18588.59482 | AN149: =$P149*(1+$CE$17)^AN$77 -> 25244.74229 | AV149: =$P149*(1+$CE$17)^AV$77 -> 34284.30279 | BB149: =IF('Reserve Plan'!L149=1,"Poor",IF('Reserve Plan'!L149=2,"Poor",IF('Reserve Plan'!L149=3,"Fair",IF('Reserve Plan'!L149=4,"Fair",IF('Reserve Plan'!L149=5,"Fair",IF('Reserve Plan'!L149=6,"Good",IF('Reserve Plan'!L149=7,"Good",IF('Reserve Plan'!L149=8,"Good",IF('Reserve Plan'!L149=9,"Very Good",IF('Reserve Plan'!L149=10,"Very Good","")))))))))) -> Very Good | BD149: 8 | BE149: 6 | BF149: 0 | BG149: 0 | BH149: 0 | BL149: 1125 | BM149: 0.002316197268 | BN149: 0 | BP149: 3 | BS149: Full | BU149: GARAGE COMPONENT | BY149: =D149 -> 62 | CA149: =#REF!+1 ->  | CD149: 0 | CE149: Chimney Caps, Metal | CF149: 0 | CG149: Chimney Caps, Metal | CH149: 62
A150: GARAGE COMPONENT | B150: 72 | C150: 1125 | D150: 63 | E150: 1125 | F150: 1125 | G150: Linear Feet | H150: Railings, Garage Levels P8-P11, Replacement | I150: to 50 | J150: 2031 | K150: 43 | L150: 5 | M150: 6 | N150: 135 | O150: =SUM(R150:AV150) -> 191064.3126 | P150: 151875 | Q150: 151875 | X150: =$P150*(1+$CE$17)^X$77 -> 191064.3126 | BB150: =IF('Reserve Plan'!L150=1,"Poor",IF('Reserve Plan'!L150=2,"Poor",IF('Reserve Plan'!L150=3,"Fair",IF('Reserve Plan'!L150=4,"Fair",IF('Reserve Plan'!L150=5,"Fair",IF('Reserve Plan'!L150=6,"Good",IF('Reserve Plan'!L150=7,"Good",IF('Reserve Plan'!L150=8,"Good",IF('Reserve Plan'!L150=9,"Very Good",IF('Reserve Plan'!L150=10,"Very Good","")))))))))) -> Fair | BD150: 6 | BE150: 0 | BF150: 0 | BG150: 0 | BH150: 0 | BL150: 1125 | BM150: 0.005665079482 | BN150: 0 | BP150: 1 | BS150: Full | BU150: GARAGE COMPONENT | BY150: 63 | CA150: =#REF!+1 ->  | CD150: 0 | CE150: Chimney Caps, Metal | CF150: 0 | CG150: Chimney Caps, Metal | CH150: 63
B151: 73 | O151: 0 | P151: =F151*N151 -> 0 | Q151: =$P151*(1+$CE$17)^Q$77 -> 0 | BB151: =IF('Reserve Plan'!L151=1,"Poor",IF('Reserve Plan'!L151=2,"Poor",IF('Reserve Plan'!L151=3,"Fair",IF('Reserve Plan'!L151=4,"Fair",IF('Reserve Plan'!L151=5,"Fair",IF('Reserve Plan'!L151=6,"Good",IF('Reserve Plan'!L151=7,"Good",IF('Reserve Plan'!L151=8,"Good",IF('Reserve Plan'!L151=9,"Very Good",IF('Reserve Plan'!L151=10,"Very Good","")))))))))) ->  | BD151: 8 | BE151: 7 | BF151: 7 | BG151: 7 | BH151: 1 | BL151: 0 | BM151: 0 | BN151: 0 | BU151: 0 | BY151: =#REF! ->  | CA151: =#REF!+1 ->  | CG151: POOL COMPONENTS | CH151: 0
A152: OTHER COMPONENTS | B152: 74 | H152: OTHER COMPONENTS | P152: 0 | Q152: 0 | BB152: =IF('Reserve Plan'!L152=1,"Poor",IF('Reserve Plan'!L152=2,"Poor",IF('Reserve Plan'!L152=3,"Fair",IF('Reserve Plan'!L152=4,"Fair",IF('Reserve Plan'!L152=5,"Fair",IF('Reserve Plan'!L152=6,"Good",IF('Reserve Plan'!L152=7,"Good",IF('Reserve Plan'!L152=8,"Good",IF('Reserve Plan'!L152=9,"Very Good",IF('Reserve Plan'!L152=10,"Very Good","")))))))))) ->  | BD152: 8 | BE152: 7 | BF152: 7 | BG152: 7 | BH152: 1 | BL152: 0 | BM152: 0 | BN152: 0 | BU152: OTHER COMPONENTS | BY152: =D152 -> 0 | CA152: =#REF!+1 ->  | CH152: 0
A153: OTHER COMPONENTS | B153: 75 | C153: 1 | D153: =D150+1 -> 64 | E153: =COUNT(R153:AV153)*F153 -> 30 | F153: =C153 -> 1 | G153: Allowance | H153: Contingency Allowance | I153: N/A | J153: =$CE$20+M153 -> 2026 | K153: ongoing | L153: N/A | M153: =BD153+BE153+BF153+BG153+BH153 -> 1 | N153: 10000 | O153: =SUM(R153:AV153) -> 573083.3004 | P153: =F153*N153 -> 10000 | Q153: 10000 | S153: =$P153*(1+$CE$17)^S$77 -> 10390 | T153: 10795.21 | U153: 11216.22319 | V153: 11653.65589 | W153: 12108.14847 | X153: 12580.36626 | Y153: 13071.00055 | Z153: 13580.76957 | AA153: 14110.41958 | AB153: 14660.72595 | AC153: 15232.49426 | AD153: =$P153*(1+$CE$17)^AD$77 -> 15826.56154 | AE153: =$P153*(1+$CE$17)^AE$77 -> 16443.79744 | AF153: =$P153*(1+$CE$17)^AF$77 -> 17085.10554 | AG153: =$P153*(1+$CE$17)^AG$77 -> 17751.42465 | AH153: =$P153*(1+$CE$17)^AH$77 -> 18443.73021 | AI153: =$P153*(1+$CE$17)^AI$77 -> 19163.03569 | AJ153: =$P153*(1+$CE$17)^AJ$77 -> 19910.39408 | AK153: =$P153*(1+$CE$17)^AK$77 -> 20686.89945 | AL153: =$P153*(1+$CE$17)^AL$77 -> 21493.68853 | AM153: =$P153*(1+$CE$17)^AM$77 -> 22331.94238 | AN153: =$P153*(1+$CE$17)^AN$77 -> 23202.88814 | AO153: =$P153*(1+$CE$17)^AO$77 -> 24107.80077 | AP153: =$P153*(1+$CE$17)^AP$77 -> 25048.005 | AQ153: =$P153*(1+$CE$17)^AQ$77 -> 26024.8772 | AR153: =$P153*(1+$CE$17)^AR$77 -> 27039.84741 | AS153: =$P153*(1+$CE$17)^AS$77 -> 28094.40146 | AT153: =$P153*(1+$CE$17)^AT$77 -> 29190.08312 | AU153: =$P153*(1+$CE$17)^AU$77 -> 30328.49636 | AV153: =$P153*(1+$CE$17)^AV$77 -> 31511.30772 | BB153: =IF('Reserve Plan'!L153=1,"Poor",IF('Reserve Plan'!L153=2,"Poor",IF('Reserve Plan'!L153=3,"Fair",IF('Reserve Plan'!L153=4,"Fair",IF('Reserve Plan'!L153=5,"Fair",IF('Reserve Plan'!L153=6,"Good",IF('Reserve Plan'!L153=7,"Good",IF('Reserve Plan'!L153=8,"Good",IF('Reserve Plan'!L153=9,"Very Good",IF('Reserve Plan'!L153=10,"Very Good,","")))))))))) ->  | BD153: 1 | BE153: 0 | BF153: 0 | BG153: =IF($BF153<7,0,IF(AN153>1,0,IF(AO153>1,1,IF(AP153>1,2,IF(AQ153>1,3,IF(AR153>1,4,IF(AS153>1,5, IF(AT153>1,6,7)))))))) -> 0 | BH153: =IF($BG153<7,0, IF(AU153>1,0, IF($AV153>1,1,1))) -> 0 | BL153: =C153 -> 1 | BM153: 0.01699198768 | BN153: =SUM(R153:W153) -> 56163.23756 | BP153: =E153/C153 -> 30 | BS153: =IF(BP153<1,"Partial","Full") -> Full | BU153: =A153 -> OTHER COMPONENTS | BY153: =D153 -> 64 | CA153: =CA151+1 ->  | CB153: =IF(BY153=$BY$77,CA153,1) ->  | CG153: OTHER COMPONENTS | CH153: =D153 -> 64
A154: OTHER COMPONENTS | B154: 76 | C154: 1 | D154: =D153+1 -> 65 | E154: =COUNT(R154:AV154)*F154 -> 1 | F154: =C154 -> 1 | G154: Allowance | H154: Additional Reserve Contributions | I154: N/A | J154: =$CE$20+M154 -> 2055 | K154: N/A | L154: N/A | M154: 30 | N154: -42000 | O154: -42000 | P154: -42000 | Q154: -42000 | S154: =Q154 -> -42000 | BB154: =IF('Reserve Plan'!L154=1,"Poor",IF('Reserve Plan'!L154=2,"Poor",IF('Reserve Plan'!L154=3,"Fair",IF('Reserve Plan'!L154=4,"Fair",IF('Reserve Plan'!L154=5,"Fair",IF('Reserve Plan'!L154=6,"Good",IF('Reserve Plan'!L154=7,"Good",IF('Reserve Plan'!L154=8,"Good",IF('Reserve Plan'!L154=9,"Very Good",IF('Reserve Plan'!L154=10,"Very Good,","")))))))))) ->  | BD154: 8 | BE154: 7 | BF154: 7 | BG154: 7 | BH154: 1 | BL154: 1 | BM154: -0.001245304971 | BN154: -42000 | BP154: 1 | BS154: Full | BU154: OTHER COMPONENTS | BY154: 65 | CA154: =CA152+1 ->  | CG154: OTHER COMPONENTS | CH154: 65
B155: 77 | BY155: 0 | CA155: =#REF!+1 ->  | CH155: 0
B156: 78 | BY156: 0 | CA156: =CA155+1 ->  | CH156: 0
B157: 79 | BY157: 0 | CH157: 0
B158: 80 | BY158: 0 | CA158: =CA157+1 ->  | CH158: 0
B159: 81 | BY159: 0 | CH159: 0
B160: 82 | BY160: 0 | CH160: =D160 -> 0
B161: 83 | BY161: 0 | CH161: 0
B162: 84 | BY162: 0 | CH162: 0
B163: 85 | BY163: 0 | CH163: 0
B164: 86 | BY164: 0 | CH164: 0
B165: 87 | BY165: 0 | CH165: 0
B166: 88 | BY166: 0 | CB166: =IF(BY166=$BY$77,CA166,1) ->  | CH166: 0
B167: 89 | BY167: 0 | CH167: 0
B168: 90 | BY168: 0 | CA168: =CA167+1 ->  | CH168: 0
B169: 91 | BY169: 0 | CH169: 0
B170: 92 | BY170: 0 | CH170: 0
B171: 93 | BY171: 0 | CH171: 0
B172: 94 | BY172: 0 | CH172: 0
B173: 95 | BY173: 0 | CH173: 0
B174: 96 | BY174: 0 | CH174: 0
B175: 97 | BY175: 0 | CH175: 0
B176: 98 | BY176: 0 | CH176: 0
B177: 99 | BY177: 0 | CH177: 0
B178: 100 | BY178: 0 | CH178: 0
B179: 101 | BY179: 0 | CH179: 0
B180: 102 | BY180: 0 | CH180: 0
B181: 103 | BY181: 0 | CH181: 0
B182: 104 | BY182: 0 | CH182: 0
B183: 105 | BY183: 0 | CH183: 0
B184: 106 | BY184: 0 | CH184: 0
B185: 107 | BY185: =D185 -> 0 | CH185: 0
B186: 108 | BY186: 0 | CH186: 0
B187: 109 | BY187: 0 | CH187: 0
B188: 110 | BY188: 0 | CH188: 0
B189: 111 | BY189: 0 | CH189: 0
B190: 112 | BY190: 0 | CH190: 0
B191: 113 | BY191: 0 | CH191: 0
B192: 114 | BY192: 0 | CH192: 0
B193: 115 | BY193: 0 | CH193: 0
B194: 116 | BY194: 0 | CH194: 0
B195: 117 | BY195: 0 | CH195: 0
B196: 118 | BY196: 0 | CH196: 0
B197: 119 | BY197: 0 | CH197: 0
B198: 120 | BY198: 0 | CH198: 0
B199: 121 | BY199: 0 | CH199: 0
B200: 122 | BY200: 0 | CH200: 0
B201: 123 | BY201: 0 | CH201: 0
B202: 124 | BY202: 0 | CH202: 0
B203: 125 | BY203: 0 | CH203: 0
B204: 126 | BY204: 0 | CH204: 0
B205: 127 | BY205: 0 | CH205: 0
B206: 128 | BY206: 0 | CH206: 0
B207: 129 | BY207: 0 | CH207: 0
B208: 130 | BY208: 0 | CH208: 0
B209: =B208+1 -> 131 | BY209: 0 | CH209: 0
B210: 132 | BY210: 0 | CH210: 0
B211: 133 | BY211: 0 | CH211: 0
B212: 134 | BY212: 0 | CH212: 0
B213: 135 | BY213: 0 | CH213: 0
B214: 136 | BY214: 0 | CH214: 0
B215: 137 | CH215: 0
B216: 138 | CH216: 0
B217: 139 | CH217: 0
B218: 140 | CH218: 0
... 1245 more rows

Sheet Property Info (hidden)
A1: Input
A2: No Input
A3: Association Information
A4: Client Name
A5: Name of Association Long | B5: City Walk Condominium Association
A6: City and State of Client | B6: St Paul, MN
A7: Client Reference Number
A8: Associations Property Address | B8: 66 9th Street East
A9: Date Contract was Signed (Please See Signed Contract Date) | B9: 2024-08-19
A11: Date and Type of Inspection
A12: Type of Study: | B12: Full Reserve Study
A13: Date of Inspection: | B13: 2024-12-03
A15: Client Contact Information
A16: Relation To Property | B16: Property Manager | J16: Property Manager
A17: Contact Name | B17: Steve Anderson | J17: Board Member
A18: Contact Email | B18: sanderson@cedarmanagement.com
A19: Contact Phone | B19: 763-231-0398
A20: Management Company Name | B20: Cedar Management, Inc.
A21: Management Company Address | B21: 7260 University Ave. NE #200
A22: Management City, State and Zip | B22: Fridley, MN 55432 | D22: Economic Factors
A24: Board Member Contact Information
A25: Board Member #1 Name | B25: Tony Harmelink
A26: Board Member #1 Email | B26: tony.harmelink@gmail.com
A27: Board Member #1 Phone | B27: 651-998-9356
A28: Board Member #2 Name
A29: Board Member #2 Email
A30: Board Member #2 Phone
A31: Board Member #3 Name
A32: Board Member #3 Email
A33: Board Member #3 Phone
A34: Board Member #4 Name
A35: Board Member #4 Email
A36: Board Member #4 Phone
D37: Current Yield on Invested Reserves | E37: ='Reserve Plan'!CE16 -> 0.04
A38: Job Reference Number | B38: 240279 | D38: Local Construction Inflation Rate | E38: ='Reserve Plan'!CE17 -> 0.039 | K38: John Aiello, Engineer, Reserve Specialist
A39: PM? | B39: Yes | K39: Mike Bentley, Engineer, Reserve Specialist
A40: IAR? | B40: No | K40: Andrew Herland, Reserve Specialist
A41: Prepared and Reviewed By | D41: Recommended Funding | K41: Brittany Eggert, Reserve Specialist
A42: Prepared and Inspected by | B42: Mike Bentley, Engineer, Reserve Specialist | D42: Recommended Reserve Contribution | E42: ='Reserve Plan'!CE35 -> 457000 | K42: Erik Salmon, Reserve Analyst
A43: Reviewed by | B43: Brittany Eggert, Reserve Specialist | D43: Recommended Special Assessment | E43: ='Reserve Plan'!S70 -> 0 | K43: Jon Schreiner, Engineer, Reserve Specialist
D44: Recommended Percentage Adjustment in Operating Budget | E44: ='Reserve Plan'!CE33 -> 0.02512824923
D45: Recommended Adjustment in 2008 Reserve Contributions | E45: ='Reserve Plan'!CE31 -> 43614.87
A46: Recommended Funding | D46: Recommended Reserve Contribution per Unit per Month | E46: ='Reserve Plan'!CE36 -> 164.8629149
A47: Operating Budget Cut-Off $ | B47: =#REF! ->  | D47: Recommended Monthly Difference per Unit per Month | E47: ='Reserve Plan'!CE37 -> 15.73408009
D49: Current Reserve Status
D50: Current Operating Budget | E50: ='Reserve Plan'!CE25 -> 1735690.76
A51: Development Description | D51: Current Reserve Balance as of Date | E51: ='Reserve Plan'!CE23 -> 2025-12-31
A52: Type of Development | B52: High Rise | D52: Current Reserve Balance | E52: ='Reserve Plan'!R67 -> 965000
A53: Number of Buildings - Descriptive (optional) | B53: =B54 -> 1 | D53: Current Reserve Contribution | E53: ='Reserve Plan'!CE17 -> 0.039
A54: Number of Buildings - # | B54: 1 | D54: Current Reserve Contribution | E54: ='Reserve Plan'!CE18 -> 413385.13
A55: Number of Units - # | B55: 231
A56: Number of Units - Descriptive (optional) | B56: =B55 -> 231
A57: Year(s) Built | B57: 1982 | D57: Current Annual Percentage Contribution to Reserves from Operating Budget | E57: =(E54/E50) -> 0.2381675005
A58: For Reference Only: Original Item Ages, Based upon Above Build Year & Current Year: | B58: =IFERROR('Reserve Plan'!D56-'Property Info'!B57, 'Reserve Plan'!D56-RIGHT('Property Info'!B57,4)&" to "&'Reserve Plan'!D56-LEFT('Property Info'!B57,4)) -> 43
A59: Description of Development by Property Class | D59: Current Reserve Contribution per Unit per Month | E59: =((E54/12)/B56) -> 149.1288348
A60: EXTERNAL BUILDING COMPONENTS
A61: INTERNAL BUILDING COMPONENTS | D61: Current and Future Funding
A62: SERVICE COMPONENTS | D62: Year of likely shortage at current Funding | E62: ='Reserve Plan'!BD75 -> 2031
A63: SITE COMPONENTS | D63: Critical Point1 | E63: ='Reserve Plan'!C67 -> 2055
A64: CLUBHOUSE COMPONENTS | D64: Critical Point2 | E64: ='Reserve Plan'!D67 -> 0
A65: POOL COMPONENTS
A66: GARAGE COMPONENTS
A68: Financial Inputs
A70: Current Yield on Invested Reserves | B70: ='Reserve Plan'!I56 -> 0.04
A71: Construction Inflation Rate | B71: ='Reserve Plan'!I57 -> 0.039
A73: Date on (Balance Sheet) | B73: ='Reserve Plan'!I59 -> 2025-12-31
A74: Current Annual Reserve Contributions on (Budget Sheet) | B74: ='Reserve Plan'!I61 -> 413385.13
A76: Current Operating Budget on (Budget Sheet) | B76: ='Reserve Plan'!I60 -> 1735690.76
A77: Current Year | B77: ='Reserve Plan'!D56 -> 2025
A78: Fiscal Year | B78: ='Reserve Plan'!I62 -> Jan 1 - Dec 31
A79: Total Remaining Months In Current Year Based on Balance Sheet Date | B79: ='Reserve Plan'!D57 -> 0
A80: Starting Year of Recommendations | B80: ='Reserve Plan'!D58 -> 2026
A81: Starting Date of Recommendations | B81: ='Reserve Plan'!D59 -> 2026-01-01
A82: Date of Study Shipment | B82: =NOW() -> 2025-09-03T09:04:24.230

Sheet PMP-X (hidden)
A1: Present? | B1: COMPONENT NAME IN REPORT | C1: COMPONENT NAME, DETAILED | D1: ANNUALLY | E1: SEMI-ANNUALLY | F1: QUARTERLY | G1: MONTHLY | H1: WEEKLY | I1: DAILY | J1: AS-NEEDED | K1: NOTES
B2: EXTERIOR BUILDING COMPONENTS
A3: x | B3: Air Handling Units | C3: Air Handling Units, Generic | D3: -- | E3: If located at grade, ensure that vegetation and other landscaping does not infringe on the unit. Trim back landscaping as needed so that it does not come in direct contact with the unit or impede airflow. Replace the air filter element within the air handling unit. Refer to specific manufacturer recommendations on filter type, size, orientation and recommended replacement methods. | F3: Visually assess the air filter element within the air handling unit, looking for accumulated dirt, dust or foreign matter. Replace if necessary. Inspect motors and belts to ensure proper operation. Inspect wiring for loose connections and/or signs of damage. Clean and adjust blower components. | G3: Lubricate and grease bearings. Inspect the air handling unit's doors, handles, latches and hinges to ensure they are properly fastened and operate correctly. If applicable, check gas connections and gas pressure levels. | H3: Visually assess the environment around the air handling unit to ensure that the area is free from trip hazards and to ensure that a safe path to the equipment is maintained. Observe the air handling unit in operation to assess any unusual noises or vibrations coming from unit. Check control settings and ensure that the unit is maintaining ideal temperature ranges. Check fan housings, motor bases, wheels, frames, bearings and shafts to ensure all components are properly positioned and operate correctly. | I3: -- | J3: -- | K3: --
B4: Balconies, Wood | C4: Balconies / Decks, / Porches / Stairs, Wood | D4: -- | E4: Visually inspect all surfaces for signs of rot, cracks, splits, or warping. If the issue is minimal, the board may be left in place. Replace all boards or wood members that create an unsafe condition. Visually and physically inspect all structural framing, railings and decking components. Look for any signs of deterioration including loose boards, deteriorated or loose fasteners, loose railings, warped posts, etc. These components should be sound and secure. Repair all areas that are loose or deteriorated. Replace any portion of the structure that cannot be repaired. Alternatively, perform the visual inspection as noted above and create a punch list of items that need to be addressed. Contact a qualified contractor to conduct repairs as needed. | F4: -- | G4: -- | H4: -- | I4: -- | J4: Visually and physically inspect all structural framing, railings and decking components. Look for any signs of deterioration including loose boards, deteriorated or loose fasteners, loose railings, warped posts, etc. These components should be sound and secure. Repair all areas that are loose or deteriorated. Replace any portion of the structure that cannot be repaired. Protect wood surfaces by ensuring that non-treated surfaces are treated with a sealant, paint application, or stain application. For painted surfaces, finishes should be reapplied every 3 to 5 years, or more frequently in areas of high use or in areas of extreme weather exposure. Lightly sand surfaces to remove flaked / chipped paint to ensure a smooth wood surface. Apply spot primer in areas of bare wood, then apply one to two coats of an exterior grade paint suitable for wood surfaces. For stained surfaces, finishes should be reapplied every 3 to 5 years, or more frequently in areas of high use or in areas of extreme weather exposure. Lightly sand surfaces to ensure a smooth wood surface, then apply two coats of an exterior grade stain suitable for wood surfaces. For non-treated wood surfaces that are not painted or stained, consider applying a wood preserve sealant or water-repellent sealant to protect wood surfaces from exterior water and moisture exposure. Refer to specific manufacturer's recommendations for product application frequencies and methods. | K4: --
A5: x | B5: Appliances | C5: Appliances (kitchen, dehumidifier, television, residential washer/dryer) | D5: -- | E5: -- | F5: Refrigerators: Clean gaskets at doors and ensure they close securely, clean condenser coil at bottom or back of unit, clean condenser fan, check temperatures are set at desired temp. Dishwasher: Clean gasket at doors to ensure tight fit, clean interior walls and corners with warm soapy water to prevent mildew, remove debris from filter. Oven/stovetop: Remove grates and soak in warm soapy water, wipe down all surfaces. If using self cleaning function, refer to manufacturer's directions. Garbage disposal: Clean by feeding half a lemon into it and turning it on until the lemon is pulverized. Laundry equipment: Clean dryer exhaust vents (replace corrugated metal or plastic with smooth metal). Clean gaskets at doors of dirt or debris. Dehumidifier: Set humidistat to between 45% and 50% relative humidity. Repair or clean filter. Clean water container with warm soapy water. Clean air filter, condenser coils and casing. Ensure appropriate placement in room, at least 6 inches from obstructions. | G5: -- | H5: -- | I5: -- | J5: Refrigerators: Clean interior walls and drawers. Unplug and allow freezer to defrost. Oven/stovetop: Clean all food and grease spills after each use. Garbage disposal: Do not use as a garbage. Large food waste, stringy food or hard waste should be disposed of in garbage. Run cool water anytime disposal is in use and run hot water after use to clear. Laundry equipment: Clean lint filter after every use. Listen and observe that laundry equipment is level. Television: Wipe away dust as needed. | K5: Follow all manufacturer's recommendations for scheduled maintenance and appropriate cleaning products.
B6: Porches, Wood | C6: Balconies / Decks, / Porches / Stairs, Wood | D6: -- | E6: Visually inspect all surfaces for signs of rot, cracks, splits, or warping. If the issue is minimal, the board may be left in place. Replace all boards or wood members that create an unsafe condition. Visually and physically inspect all structural framing, railings and decking components. Look for any signs of deterioration including loose boards, deteriorated or loose fasteners, loose railings, warped posts, etc. These components should be sound and secure. Repair all areas that are loose or deteriorated. Replace any portion of the structure that cannot be repaired. Alternatively, perform the visual inspection as noted above and create a punch list of items that need to be addressed. Contact a qualified contractor to conduct repairs as needed. | F6: -- | G6: -- | H6: -- | I6: -- | J6: Visually and physically inspect all structural framing, railings and decking components. Look for any signs of deterioration including loose boards, deteriorated or loose fasteners, loose railings, warped posts, etc. These components should be sound and secure. Repair all areas that are loose or deteriorated. Replace any portion of the structure that cannot be repaired. Protect wood surfaces by ensuring that non-treated surfaces are treated with a sealant, paint application, or stain application. For painted surfaces, finishes should be reapplied every 3 to 5 years, or more frequently in areas of high use or in areas of extreme weather exposure. Lightly sand surfaces to remove flaked / chipped paint to ensure a smooth wood surface. Apply spot primer in areas of bare wood, then apply one to two coats of an exterior grade paint suitable for wood surfaces. For stained surfaces, finishes should be reapplied every 3 to 5 years, or more frequently in areas of high use or in areas of extreme weather exposure. Lightly sand surfaces to ensure a smooth wood surface, then apply two coats of an exterior grade stain suitable for wood surfaces. For non-treated wood surfaces that are not painted or stained, consider applying a wood preserve sealant or water-repellent sealant to protect wood surfaces from exterior water and moisture exposure. Refer to specific manufacturer's recommendations for product application frequencies and methods. | K6: --
B7: Stair Structures, Wood | C7: Balconies / Decks, / Porches / Stairs, Wood | D7: -- | E7: Visually inspect all surfaces for signs of rot, cracks, splits, or warping. If the issue is minimal, the board may be left in place. Replace all boards or wood members that create an unsafe condition. Visually and physically inspect all structural framing, railings and decking components. Look for any signs of deterioration including loose boards, deteriorated or loose fasteners, loose railings, warped posts, etc. These components should be sound and secure. Repair all areas that are loose or deteriorated. Replace any portion of the structure that cannot be repaired. Alternatively, perform the visual inspection as noted above and create a punch list of items that need to be addressed. Contact a qualified contractor to conduct repairs as needed. | F7: -- | G7: -- | H7: -- | I7: -- | J7: Visually and physically inspect all structural framing, railings and decking components. Look for any signs of deterioration including loose boards, deteriorated or loose fasteners, loose railings, warped posts, etc. These components should be sound and secure. Repair all areas that are loose or deteriorated. Replace any portion of the structure that cannot be repaired. Protect wood surfaces by ensuring that non-treated surfaces are treated with a sealant, paint application, or stain application. For painted surfaces, finishes should be reapplied every 3 to 5 years, or more frequently in areas of high use or in areas of extreme weather exposure. Lightly sand surfaces to remove flaked / chipped paint to ensure a smooth wood surface. Apply spot primer in areas of bare wood, then apply one to two coats of an exterior grade paint suitable for wood surfaces. For stained surfaces, finishes should be reapplied every 3 to 5 years, or more frequently in areas of high use or in areas of extreme weather exposure. Lightly sand surfaces to ensure a smooth wood surface, then apply two coats of an exterior grade stain suitable for wood surfaces. For non-treated wood surfaces that are not painted or stained, consider applying a wood preserve sealant or water-repellent sealant to protect wood surfaces from exterior water and moisture exposure. Refer to specific manufacturer's recommendations for product application frequencies and methods. | K7: --
A8: x | B8: Awnings, Fabric and Frame | C8: Awnings, Stretched Fabric over Metal Frame | D8: Conduct a visual inspection of the awning frame structure and note surface finish deterioration at metal surfaces, such as scratches or peeling paint finishes. Surfaces with finish deterioration should be cleaned, flaked / chipped paint should be removed, surfaces should be spot primed, and two coats of exterior grade paint specified for metal surfaces should be applied where needed. | F8: Visually inspect the awning canvas to ensure that it is properly secured to the metal frame. Tighten lacing or fasteners as needed. Clean canvas awning by brushing off loose dirt, washing with water and a mild detergent with a soft bristle brush, and rinsing thoroughly. Allow to air dry. | G8: -- | H8: -- | I8: -- | J8: -- | K8: --
B9: Balconies, Wood and Composite | C9: Balconies / Decks / Porches / Stairs, Wood and Composite | D9: -- | E9: Visually inspect all wood surfaces for signs of rot, cracks, splits, or warping. If the issue is minimal, the board may be left in place. Replace all boards or wood members that create an unsafe condition. Visually and physically inspect all wood structural framing and railings. Look for any signs of deterioration including loose boards, deteriorated or loose fasteners, loose railings, warped posts, etc. These components should be sound and secure. Repair all areas that are loose or deteriorated. Replace any portion of the structure that cannot be repaired. Alternatively, perform the visual inspection as noted above and create a punch list of items that need to be addressed. Contact a qualified contractor to conduct repairs as needed. Clean the composite decking with a garden hose or low pressure power washer to remove dirt and accumulated debris. Use a soft bristle brush to scrub the composite decking as needed. Follow the manufacturer's directions for the correct type of cleaner to use for the specific composite material. | F9: -- | G9: Clean the composite decking with a garden hose or low pressure power washer to remove dirt and accumulated debris. Use a soft bristle brush to scrub the composite decking as needed. Follow the manufacturer's directions for the correct type of cleaner to use for the specific composite material. | H9: -- | I9: -- | J9: Protect wood surfaces by ensuring that non-treated surfaces are treated with a sealant, paint application, or stain application. For painted surfaces, finishes should be reapplied every 3 to 5 years, or more frequently in areas of high use or in areas of extreme weather exposure. Lightly sand surfaces to remove flaked / chipped paint to ensure a smooth wood surface. Apply spot primer in areas of bare wood, then apply one to two coats of an exterior grade paint suitable for wood surfaces. For stained surfaces, finishes should be reapplied every 3 to 5 years, or more frequently in areas of high use or in areas of extreme weather exposure. Lightly sand surfaces to ensure a smooth wood surface, then apply two coats of an exterior grade stain suitable for wood surfaces. For non-treated wood surfaces that are not painted or stained, consider applying a wood preserve sealant or water-repellent sealant to protect wood surfaces from exterior water and moisture exposure. Refer to specific manufacturer's recommendations for product application frequencies. | K9: --
B10: Decks, Wood and Composite | C10: Balconies / Decks / Porches / Stairs, Wood and Composite | D10: -- | E10: Visually inspect all wood surfaces for signs of rot, cracks, splits, or warping. If the issue is minimal, the board may be left in place. Replace all boards or wood members that create an unsafe condition. Visually and physically inspect all wood structural framing and railings. Look for any signs of deterioration including loose boards, deteriorated or loose fasteners, loose railings, warped posts, etc. These components should be sound and secure. Repair all areas that are loose or deteriorated. Replace any portion of the structure that cannot be repaired. Alternatively, perform the visual inspection as noted above and create a punch list of items that need to be addressed. Contact a qualified contractor to conduct repairs as needed. Clean the composite decking with a garden hose or low pressure power washer to remove dirt and accumulated debris. Use a soft bristle brush to scrub the composite decking as needed. Follow the manufacturer's directions for the correct type of cleaner to use for the specific composite material. | F10: -- | G10: Clean the composite decking with a garden hose or low pressure power washer to remove dirt and accumulated debris. Use a soft bristle brush to scrub the composite decking as needed. Follow the manufacturer's directions for the correct type of cleaner to use for the specific composite material. | H10: -- | I10: -- | J10: Protect wood surfaces by ensuring that non-treated surfaces are treated with a sealant, paint application, or stain application. For painted surfaces, finishes should be reapplied every 3 to 5 years, or more frequently in areas of high use or in areas of extreme weather exposure. Lightly sand surfaces to remove flaked / chipped paint to ensure a smooth wood surface. Apply spot primer in areas of bare wood, then apply one to two coats of an exterior grade paint suitable for wood surfaces. For stained surfaces, finishes should be reapplied every 3 to 5 years, or more frequently in areas of high use or in areas of extreme weather exposure. Lightly sand surfaces to ensure a smooth wood surface, then apply two coats of an exterior grade stain suitable for wood surfaces. For non-treated wood surfaces that are not painted or stained, consider applying a wood preserve sealant or water-repellent sealant to protect wood surfaces from exterior water and moisture exposure. Refer to specific manufacturer's recommendations for product application frequencies. | K10: --
B11: Porches, Wood and Composite | C11: Balconies / Decks / Porches / Stairs, Wood and Composite | D11: -- | E11: Visually inspect all wood surfaces for signs of rot, cracks, splits, or warping. If the issue is minimal, the board may be left in place. Replace all boards or wood members that create an unsafe condition. Visually and physically inspect all wood structural framing and railings. Look for any signs of deterioration including loose boards, deteriorated or loose fasteners, loose railings, warped posts, etc. These components should be sound and secure. Repair all areas that are loose or deteriorated. Replace any portion of the structure that cannot be repaired. Alternatively, perform the visual inspection as noted above and create a punch list of items that need to be addressed. Contact a qualified contractor to conduct repairs as needed. Clean the composite decking with a garden hose or low pressure power washer to remove dirt and accumulated debris. Use a soft bristle brush to scrub the composite decking as needed. Follow the manufacturer's directions for the correct type of cleaner to use for the specific composite material. | F11: -- | G11: Clean the composite decking with a garden hose or low pressure power washer to remove dirt and accumulated debris. Use a soft bristle brush to scrub the composite decking as needed. Follow the manufacturer's directions for the correct type of cleaner to use for the specific composite material. | H11: -- | I11: -- | J11: Protect wood surfaces by ensuring that non-treated surfaces are treated with a sealant, paint application, or stain application. For painted surfaces, finishes should be reapplied every 3 to 5 years, or more frequently in areas of high use or in areas of extreme weather exposure. Lightly sand surfaces to remove flaked / chipped paint to ensure a smooth wood surface. Apply spot primer in areas of bare wood, then apply one to two coats of an exterior grade paint suitable for wood surfaces. For stained surfaces, finishes should be reapplied every 3 to 5 years, or more frequently in areas of high use or in areas of extreme weather exposure. Lightly sand surfaces to ensure a smooth wood surface, then apply two coats of an exterior grade stain suitable for wood surfaces. For non-treated wood surfaces that are not painted or stained, consider applying a wood preserve sealant or water-repellent sealant to protect wood surfaces from exterior water and moisture exposure. Refer to specific manufacturer's recommendations for product application frequencies. | K11: --
B12: Stair Structures, Wood and Composite | C12: Balconies / Decks / Porches / Stairs, Wood and Composite | D12: -- | E12: Visually inspect all wood surfaces for signs of rot, cracks, splits, or warping. If the issue is minimal, the board may be left in place. Replace all boards or wood members that create an unsafe condition. Visually and physically inspect all wood structural framing and railings. Look for any signs of deterioration including loose boards, deteriorated or loose fasteners, loose railings, warped posts, etc. These components should be sound and secure. Repair all areas that are loose or deteriorated. Replace any portion of the structure that cannot be repaired. Alternatively, perform the visual inspection as noted above and create a punch list of items that need to be addressed. Contact a qualified contractor to conduct repairs as needed. Clean the composite decking with a garden hose or low pressure power washer to remove dirt and accumulated debris. Use a soft bristle brush to scrub the composite decking as needed. Follow the manufacturer's directions for the correct type of cleaner to use for the specific composite material. | F12: -- | G12: Clean the composite decking with a garden hose or low pressure power washer to remove dirt and accumulated debris. Use a soft bristle brush to scrub the composite decking as needed. Follow the manufacturer's directions for the correct type of cleaner to use for the specific composite material. | H12: -- | I12: -- | J12: Protect wood surfaces by ensuring that non-treated surfaces are treated with a sealant, paint application, or stain application. For painted surfaces, finishes should be reapplied every 3 to 5 years, or more frequently in areas of high use or in areas of extreme weather exposure. Lightly sand surfaces to remove flaked / chipped paint to ensure a smooth wood surface. Apply spot primer in areas of bare wood, then apply one to two coats of an exterior grade paint suitable for wood surfaces. For stained surfaces, finishes should be reapplied every 3 to 5 years, or more frequently in areas of high use or in areas of extreme weather exposure. Lightly sand surfaces to ensure a smooth wood surface, then apply two coats of an exterior grade stain suitable for wood surfaces. For non-treated wood surfaces that are not painted or stained, consider applying a wood preserve sealant or water-repellent sealant to protect wood surfaces from exterior water and moisture exposure. Refer to specific manufacturer's recommendations for product application frequencies. | K12: --
B13: Balconies, Membrane and Composite Decking | C13: Balconies, Membrane and Composite Decking | D13: -- | E13: Visually inspect all balcony membrane surfaces, including flashing. Look for any signs of damage to any balcony membrane, including holes in the membrane, separation of seams, or damaged flashing. Note all areas that require attention. Contact a qualified contractor to conduct repairs. Separation of seams is one of the biggest issues with single-ply membrane roofs since there is no redundancy in waterproofing. Visually inspect the balcony floor surface for signs of organic growth (e.g. mildew, algae, etc.). Note locations and clean as necessary. Use caution when attempting to clean organic growth as there is a likelihood of causing damage to the membrane during the cleaning process. Light organic growth is not a large concern, however, an abundance of organic growth can lead to premature deterioration of the membrane system. Alternatively, contact a qualified contractor to spot clean as necessary. Clean all debris from balcony surface to ensure proper drainage. This includes loose nails, bolts, scrap metal or any other objects with sharp edges that could damage the membrane. Alternatively, contact a qualified contractor to remove debris Clean the composite decking with a garden hose to remove dirt and accumulated debris. Use a soft bristle brush to scrub the composite decking as needed. Follow the manufacturer's directions for the correct type of cleaner to use for the specific composite material. | F13: -- | G13: -- | H13: -- | I13: -- | J13: Understand and store the membrane warranty such that the Association can comply with requirements. Report any leaks to management. Contact a qualified contractor to conduct repairs as needed. Inspect balcony surfaces after major storm events. Clear debris and make repairs as needed. | K13: --
B14: Balconies, Metal | C14: Balconies, Metal | D14: -- | E14: Visually inspect the metal balcony structures semi-annually or at the frequency required by local code / statutes, to identify signs of rust, deterioration, loose fasteners, deteriorated fasteners or damage. Tighten or replace any deteriorated or loose fasteners. These components should be sound and secure. Visually inspect all metal surfaces and note surface finish deterioration at metal surfaces, such as scratches or peeling paint finishes. Metal surfaces with finish deterioration should be cleaned, flaked / chipped paint should be removed, surfaces should be spot primed, and two coats of exterior grade paint specified for metal surfaces should be applied where needed. Alternatively, perform the visual inspection as noted above and create a punch list of items that need to be addressed. Contact a qualified contractor to conduct repairs as needed. | F14: -- | G14: -- | H14: -- | I14: -- | J14: -- | K14: --
B15: Balconies, Metal with Composite Decking | C15: Balconies, Metal with Composite Decking | D15: -- | E15: Visually inspect the metal balcony structures semi-annually or at the frequency required by local code / statutes, to identify signs of rust, deterioration, loose fasteners, deteriorated fasteners or damage. Tighten or replace any deteriorated or loose fasteners. These components should be sound and secure. Visually inspect all metal surfaces and note surface finish deterioration at metal surfaces, such as scratches or peeling paint finishes. Metal surfaces with finish deterioration should be cleaned, flaked / chipped paint should be removed, surfaces should be spot primed, and two coats of exterior grade paint specified for metal surfaces should be applied where needed. Alternatively, perform the visual inspection as noted above and create a punch list of items that need to be addressed. Contact a qualified contractor to conduct repairs as needed. Clean the composite decking with a garden hose or low pressure power washer to remove dirt and accumulated debris. Use a soft bristle brush to scrub the composite decking as needed. Follow the manufacturer's directions for the correct type of cleaner to use for the specific composite material. | F15: -- | G15: Clean the composite decking with a garden hose or low pressure power washer to remove dirt and accumulated debris. Use a soft bristle brush to scrub the composite decking as needed. Follow the manufacturer's directions for the correct type of cleaner to use for the specific composite material. | H15: -- | I15: -- | J15: -- | K15: --
B16: Balconies, Membrane and Wood Decking | C16: Balconies, Membrane and Composite Decking | D16: -- | E16: Visually inspect all balcony membrane surfaces, including flashing. Look for any signs of damage to any balcony membrane, including holes in the membrane, separation of seams, or damaged flashing. Note all areas that require attention. Contact a qualified contractor to conduct repairs. Separation of seams is one of the biggest issues with single-ply membrane roofs since there is no redundancy in waterproofing. Visually inspect the balcony floor surface for signs of organic growth (e.g. mildew, algae, etc.). Note locations and clean as necessary. Use caution when attempting to clean organic growth as there is a likelihood of causing damage to the membrane during the cleaning process. Light organic growth is not a large concern, however, an abundance of organic growth can lead to premature deterioration of the membrane system. Alternatively, contact a qualified contractor to spot clean as necessary. Clean all debris from balcony surface to ensure proper drainage. This includes loose nails, bolts, scrap metal or any other objects with sharp edges that could damage the membrane. Alternatively, contact a qualified contractor to remove debris. Visually inspect all wood deck surfaces for signs of rot, cracks, splits, or warping. If the issue is minimal, the board may be left in place. Replace all boards or wood members that create an unsafe condition. | F16: -- | G16: -- | H16: -- | I16: -- | J16: Understand and store the membrane warranty such that the Association can comply with requirements. Report any leaks to management. Contact a qualified contractor to conduct repairs as needed. Inspect balcony surfaces after major storm events. Clear debris and make repairs as needed. Look for any signs of wood deterioration including loose boards, deteriorated or loose fasteners, etc. These components should be sound and secure. Repair all areas that are loose or deteriorated. Replace any portion that cannot be repaired. Protect wood surfaces by ensuring that non-treated surfaces are treated with a sealant, paint application, or stain application. For painted surfaces, finishes should be reapplied every 3 to 5 years, or more frequently in areas of high use or in areas of extreme weather exposure. Lightly sand surfaces to remove flaked / chipped paint to ensure a smooth wood surface. Apply spot primer in areas of bare wood, then apply one to two coats of an exterior grade paint suitable for wood surfaces. For stained surfaces, finishes should be reapplied every 3 to 5 years, or more frequently in areas of high use or in areas of extreme weather exposure. Lightly sand surfaces to ensure a smooth wood surface, then apply two coats of an exterior grade stain suitable for wood surfaces. For non-treated wood surfaces that are not painted or stained, consider applying a wood preserve sealant or water-repellent sealant to protect wood surfaces from exterior water and moisture exposure. Refer to specific manufacturer's recommendations for product application frequencies and methods. | K16: --
B17: Chimney Caps, Concrete | C17: Chimney Caps, Concrete | D17: Visually inspect concrete surfaces annually at a minimum, or at the frequency required by code, to identify signs of deterioration, settlement, cracks, leaking, water infiltration, spalling, efflorescence, or exposed reinforcing bars. Alternatively, contract with a qualified engineering consultant to prepare a professional inspection/condition report. Locate and monitor all identified cracks. Contract with a qualified vendor to route and fill all cracks over 1/8" in width. Contract with a qualified vendor to conduct spot patching and repairs at all areas that exhibit spalling, severe cracking or other forms of deterioration. Inspect all sealants at penetrations. Ensure sealants are intact, flexible, and have not failed. Replace sealants as required. Alternatively, contract with a qualified vendor to replace deteriorated or missing sealants. Conduct a water beading test at a representative sampling of balcony surfaces to determine if the concrete surfaces are well sealed, or if a sealing application is required. If water does not bead upon the concrete surface or if the concrete surface darkens (sign of water absorption), contract with a qualified vendor to conduct spot touch-ups as required, or to fully reapply the concrete sealer, depending upon observed condition. | E17: -- | F17: -- | G17: -- | H17: -- | I17: -- | J17: -- | K17: Proper maintenance of the chimney chase caps will help prevent water infiltration.
B18: Chimney Caps, Metal | C18: Chimney Caps, Metal | D18: -- | E18: Visually inspect the chimney chase caps for signs of rust, holes, gaps or damage. Visually assess the chimney cap to ensure that there is a positive slope. The cap should drain away from the center. Repair or replace the chimney cap as needed. Visually inspect sealants (if present) at all penetrations and look for gaps or deterioration. Replace sealants as needed. | F18: -- | G18: -- | H18: -- | I18: -- | J18: -- | K18: Proper maintenance of the chimney chase caps will help prevent water infiltration.
B19: Chimney Caps / Screens / Flues / Accessories | C19: Chimney Caps / Screens / Flues / Accessories | D19: -- | E19: Visually inspect the chimney flue caps/screens/accessories for signs of rust, holes, gaps or damage. Repair or replace the chimney cap as needed. Visually inspect the flue caps and components for any accumulation of debris. Remove all debris to ensure proper function. Visually inspect sealants (if present) at all penetrations and look for gaps or deterioration. Replace sealants as needed. (For caps serving wood burning or fireplace inserts) - Visually inspect the flue caps and components for accumulation of creosote or other combustible solids. Remove accumulation as needed. | F19: -- | G19: -- | H19: -- | I19: -- | J19: -- | K19: Proper maintenance and inspection of the chimney flue caps/screens/accessories will help prevent water infiltration and pests from entering the chimney flue.
B20: Deck Structures, Aluminum | C20: Deck Structures, Aluminum | D20: Conduct a visual inspection of the railings, either annually or at the frequency required by local code / statutes, to identify damaged railing components, displaced panels, detached or displaced guardrail assemblies, loose rails, leaning sections, bent surfaces, and/or damaged or missing post caps. Visually inspect structural components and connections and identify crooked / missing bolts, loose nuts / set screws, and/or missing sealant at base plates or base connections. Visually inspect aluminum floor grating and check to ensure that the grating panels are securely fastened to the aluminum structure. Check floor joists, stair stringers and stair treads for structural soundness. Compile noted defects in a maintenance log and conduct capital repair projects as needed or consult with a qualified contractor to address issues. Conduct a visual inspection of the aluminum surfaces and note surface finish deterioration at metal surfaces, such as scratches or peeling finishes. Metal surfaces with finish deterioration should be cleaned, flaked / chipped finishes should be removed, surfaces should be spot primed, and two coats of exterior grade coating specified for aluminum surfaces should be applied where needed. | E20: -- | F20: -- | G20: -- | H20: -- | I20: -- | J20: Clean aluminum surfaces by hose spraying to remove dirt and accumulated debris. Allow to air dry, or wipe dry with a soft cloth. For heavily soiled areas, rinse surfaces with water and use a sponge with water and a mild non-abrasive detergent. Rinse with fresh water after cleaning to remove any residue. | K20: --
A21: x | B21: Balconies, Concrete | C21: Balconies, Concrete (Sealer Only, No Commercial Deck Coating) | D21: Visually inspect balcony surfaces annually at a minimum, or at the frequency required by code, to identify signs of deterioration, settlement, cracks, leaking, water infiltration, spalling, efflorescence, or exposed reinforcing bars. Alternatively, contract with a qualified engineering consultant to prepare a professional inspection/condition report. Locate and monitor all identified cracks. Contract with a qualified vendor to route and fill all cracks over 1/8" in width. Contract with a qualified vendor to conduct spot patching and repairs at all areas that exhibit spalling, severe cracking or other forms of deterioration. Inspect all sealants at floor perimeters, floor-to-wall connections and at control joints. Ensure sealants are intact, flexible, and have not failed. Replace sealants as required. Alternatively, contract with a qualified vendor to replace deteriorated or missing sealants. Conduct a water beading test at a representative sampling of balcony surfaces to determine if the concrete surfaces are well sealed, or if a sealing application is required. If water does not bead upon the concrete surface or if the concrete surface darkens (sign of water absorption), contract with a qualified vendor to conduct spot touch-ups as required, or to fully reapply the concrete sealer, depending upon observed condition. | E21: -- | F21: -- | G21: -- | H21: -- | I21: -- | J21: -- | K21: Many state or local statutes / ordinances require routine façade examinations, including concrete balcony structures. Refer to local codes for guidance on inspection frequencies, methods, and requirements. The Association may wish to consider the application of a commercial elastomeric deck coating system at concrete balcony surfaces to reduce deterioration from moisture.
A22: x | B22: Cabinetry | C22: Cabinetry (Incl. Shelving) | D22: For wood casework, visually inspect surfaces for scratches or nicks. Fill nicks with a high quality wood putty and gently sand smooth. Apply touch-up finishes as required. If the surface damage is significant, consult a professional cabinet or casework refinisher. For laminate casework, inspect surfaces, including edges, for chips, cracks, burn marks or cut marks that may require attention and/or immediate repairs. Check for delamination at laminate seams and/or edging. If delamination is found, conduct spot repairs immediately in order to prevent water damage to the substrate. Use a quality contact adhesive applied with a putty knife, heat gun, roller, and the application of temporary clamps or weighted objects. Inspect casework hardware, and tighten hinge screws, realign drawers, and adjust runners as needed. | E22: For wood cabinets, wash and polish casework using a light coat of a high quality, oil-based furniture polish. | F22: -- | G22: -- | H22: Dust cabinets with a slightly dampened soft cloth or a spray-type dust remover. | I22: -- | J22: Wipe casework with a soft cloth and mild soap or detergent solution, avoiding abrasive cleaners. Rinse and remove any soap residue left on the countertop surfaces. Dry the countertop after washing to prevent water from pooling. Pay special attention to sink areas, wet areas, and high-traffic / high-use areas. | K22: --
B23: Doors, Entry with Glass/Sidelites | C23: Doors, Entry, Townhome Style with Glass/Sidelites | D23: -- | E23: -- | F23: -- | G23: Physically inspect and operate the doors and hardware for proper function. Tighten all fasteners as needed. Visually inspect all door components for finish deterioration, such as scratches, rust or peeling paint finishes. Surfaces with finish deterioration should be cleaned, flaked / chipped paint should be removed, surfaces should be spot primed, and two coats of exterior grade paint/stain specified for the surfaces should be applied where needed. Visually inspect the door perimeter from the interior, looking for signs of daylight. Install / repair / replace weatherstripping and/or door sweeps as needed to ensure a proper seal. Visually inspect all glass surfaces for signs of cracks, chips or failed seals (insulated glass only). Replace the glass section as needed. Lubricate all hinges, hardware and keyholes. Clean all surfaces with a cloth or sponge dipped in soapy water. Rinse with water. | H23: -- | I23: -- | J23: Replace hardware if it is not operational. Tighten all fasteners as needed. Replace glass panes if cracked, damaged or broken. Lubricate all hinges, hardware and keyholes. Clean all surfaces with a cloth or sponge using a mild detergent. Rinse with water. | K23: --
B24: Doors, Entry, Wood, Historic | C24: Doors, Entry, Wood, Historic | D24: -- | E24: -- | F24: -- | G24: Physically inspect and operate the doors and hardware for proper function. Tighten all fasteners as needed. Visually inspect all door components for finish deterioration, such as scratches, wood rot, metal rust or peeling paint finishes. Wood surfaces with scratches or light damage should be touched up to ensure a uniform aesthetic appearance. Replace all wood components with signs of rot or damage. Metal surfaces with finish deterioration should be cleaned, flaked / chipped paint should be removed, surfaces should be spot primed, and two coats of exterior grade paint specified for metal surfaces should be applied where needed. Visually inspect all glass surfaces for signs of cracks, chips or failed seals (insulated glass only). Replace the glass section as needed. Visually inspect the door perimeter from the interior, looking for signs of daylight. Install / repair / replace weatherstripping and/or door sweeps as needed to ensure a proper seal. Lubricate all hinges, hardware and keyholes. Clean all surfaces with a cloth or sponge. | H24: -- | I24: -- | J24: Replace hardware if it is not operational. Tighten all fasteners as needed. Lubricate all hinges, hardware and keyholes. Clean all surfaces with a cloth or sponge dipped in soapy water. Rinse with water. | K24: --
B25: Doors, Entry, Wood and Glass | C25: Doors, Entry, Wood and Glass | D25: -- | E25: -- | F25: -- | G25: Physically inspect and operate the doors and hardware for proper function. Tighten all fasteners as needed. Visually inspect all door components for finish deterioration, such as scratches, wood rot, metal rust or peeling paint finishes. Wood surfaces with scratches or light damage should be touched up to ensure a uniform aesthetic appearance. Replace all wood components with signs of rot or damage. Metal surfaces with finish deterioration should be cleaned, flaked / chipped paint should be removed, surfaces should be spot primed, and two coats of exterior grade paint specified for metal surfaces should be applied where needed. Visually inspect all glass surfaces for signs of cracks, chips or failed seals (insulated glass only). Replace the glass section as needed. Visually inspect the door perimeter from the interior, looking for signs of daylight. Install / repair / replace weatherstripping and/or door sweeps as needed to ensure a proper seal. Lubricate all hinges, hardware and keyholes. Clean all surfaces with a cloth or sponge. | H25: -- | I25: -- | J25: Replace hardware if it is not operational. Tighten all fasteners as needed. Lubricate all hinges, hardware and keyholes. Clean all surfaces with a cloth or sponge dipped in soapy water. Rinse with water. | K25: --
A26: x | B26: Ceilings, Acoustical Tiles | C26: Ceilings, Acoustical Tiles | D26: -- | E26: Remove dust and loose dirt with vacuum cleaner and upholstery attachments. Clean in one direction only. Remove smudges or clinging dirt with a wall cleaner. Replace tiles that are damaged by water or permanently stained with dirt (usually near forced air grilles). | F26: -- | G26: -- | H26: -- | I26: -- | J26: Water stains at ceiling tiles are an indication of a leak from the plumbing or roof system. Investigate and repair as needed. | K26: --
B27: Garage Doors, Metal Sectional | C27: Garage Doors, Metal Sectional, No Operators | D27: Lubricate all moving parts, including opener chain, rollers, hinges and springs. Test auto-reverse safety function. If the door uses a photoelectric system, place object in the path of the beam while the door is operation. If the door uses a mechanical system, place an object on the ground while door is in operation. If door does not reverse in either situation, contact a specialist. | E27: Test the balance of the door. Detach opener and manually lift door about half way. The door should remain stationary. If the door moves, the springs will need adjustment. Inspect springs for wear. The springs are under great pressure. Only a professional should attempt any repairs to the springs. Inspect rollers; replace any that are cracked, worn or chipped. Clear tracks of any debris. | F27: Examine and tighten bolts and roller brackets. Inspect door for rust or chipped paint. Clean rust and debris and apply touch up paint as needed. | G27: -- | H27: -- | I27: Listen each time the door and operator are used. Identify any noises or motion that is atypical. | J27: Replace weather stripping at base of door. | K27: --
B28: Garage Doors, Composite | C28: Garage Doors, Composite | D28: Lubricate all moving parts, including opener chain, rollers, hinges and springs. Test auto-reverse safety function. If the door uses a photoelectric system, place object in the path of the beam while the door is operation. If the door uses a mechanical system, place an object on the ground while door is in operation. If door does not reverse in either situation, contact a specialist. | E28: Test the balance of the door. Detach opener and manually lift door about half way. The door should remain stationary. If the door moves, the springs will need adjustment. Inspect springs for wear. The springs are under great pressure. Only a professional should attempt any repairs to the springs. Inspect rollers; replace any that are cracked, worn or chipped. Clear tracks of any debris. | F28: Examine and tighten bolts and roller brackets. | G28: -- | H28: -- | I28: Listen each time the door and operator are used. Identify any noises or motion that is atypical. | J28: Replace weather stripping at base of door. Clean dirt or debris from door to maintain attractive appearance. | K28: --
B29: Garage Doors, Sectional | C29: Garage Doors, Sectional, Generic | D29: Lubricate all moving parts, including opener chain, rollers, hinges and springs. Test auto-reverse safety function. If the door uses a photoelectric system, place object in the path of the beam while the door is operation. If the door uses a mechanical system, place an object on the ground while door is in operation. If door does not reverse in either situation, contact a specialist. | E29: Test the balance of the door. Detach opener and manually lift door about half way. The door should remain stationary. If the door moves, the springs will need adjustment. Inspect springs for wear. The springs are under great pressure. Only a professional should attempt any repairs to the springs. Inspect rollers; replace any that are cracked, worn or chipped. Clear tracks of any debris. | F29: Examine and tighten bolts and roller brackets. Inspect door for water damage or chipped paint. Repair damaged portions and apply touch up paint as needed. | G29: -- | H29: -- | I29: Listen each time the door and operator are used. Identify any noises or motion that is atypical. | J29: Replace weather stripping at base of door. | K29: --
B30: Gutters and Downspouts, Aluminum | C30: Gutters and Downspouts, Aluminum | D30: -- | E30: Inspect gutters and downspouts for debris (leaves, sticks, buds, balls, nests, seeds, etc.). Clear with hand, hose or plumber's snake. Inspect for pooling water. If water is pooling away from downspouts, the alignment of the gutter may be incorrect or the gutter may dented. Refasten gutter with a 1/16" drop for every 1' in length. Dented sections may require replacement. Inspect joints and end caps for leaks. If leaks exist, clean area and apply gutter sealant. If water leaks from rear of downspout, the seam may have burst and the section of downspout will require replacement. If water leaks from holes in the gutter, repair with roofing cement or gutter tape. Check and tighten hangers and brackets Observe where the downspouts discharge to ensure there is a positive slope away from the buildings, that there is no visible erosion, and that the discharge is ideally 6' from building foundation. If downspouts discharge into buried pipes, inspect and clean out buried pipes with plumber's snake. Address poor discharge conditions. | F30: -- | G30: -- | H30: -- | I30: -- | J30: Observe the downspouts and gutters during rainfall events. Look for water overtopping gutters. Water overtopping gutters near downspouts indicated a clogged downspout. Water overtopping in other areas indicated poor slope of gutter. If ice accumulates in during winter, investigate the use of electric heat trace cables to melt accumulation. Standing freezing water can burst downspouts and will put excess stress on brackets and hangers. | K30: --
B31: Gutters and Downspouts, Copper | C31: Gutters and Downspouts, Copper | D31: -- | E31: Inspect gutters and downspouts for debris (leaves, sticks, buds, balls, nests, seeds, etc.). Clear with hand, hose or plumber's snake. Inspect for pooling water. If water is pooling away from downspouts, the alignment of the gutter may be incorrect or the gutter may dented. Refasten gutter with a 1/16" drop for every 1' in length. Dented sections may require replacement. Inspect joints and end caps for leaks. If leaks exist, clean area and solder. If water leaks from holes in the gutter, repair with roofing cement or solder. Check and tighten hangers and brackets. Observe where the downspouts discharge that ensure there is a positive slope away from the buildings, that there is no visible erosion, and that the discharge is ideally 6' from building foundation. If downspouts discharge into buried pipes, inspect and clean out buried pipes with plumber's snake. Address poor discharge conditions. | F31: -- | G31: -- | H31: -- | I31: -- | J31: Observe the downspouts and gutters during rainfall events. Look for water overtopping gutters. Water overtopping gutters near downspouts indicated a clogged downspout. Water overtopping in other areas indicated poor slope of gutter. If ice accumulates in during winter, investigate the use of electric heat trace cables to melt accumulation. Standing freezing water can burst downspouts and will put excess stress on brackets and hangers. | K31: --
B32: Gutters, Downspouts, and Scuppers | C32: Gutters, Downspouts, and Scuppers | D32: -- | E32: Inspect scuppers, gutters and downspouts for debris (leaves, sticks, buds, balls, nests, seeds, etc.). Clear with hand, hose or plumber's snake. Inspect for pooling water. If water is pooling away from scupper or downspouts, the alignment of the gutter may be incorrect or the gutter may dented. Refasten gutter with a 1/16" drop for every 1' in length. Dented sections may require replacement. Inspect joints and end caps for leaks. If leaks exist, clean area and apply gutter sealant. If water leaks from rear of downspout, the seam may have burst and the section of downspout will require replacement. If water leaks from holes in the gutter, repair with roofing cement or gutter tape. Check and tighten hangers and brackets. Observe where the downspouts discharge that ensure there is a positive slope away from the buildings, that there is no visible erosion, and that the discharge is ideally 6' from building foundation. If downspouts discharge into buried pipes, inspect and clean out buried pipes with plumber's snake. Address poor discharge conditions. | F32: -- | G32: -- | H32: -- | I32: -- | J32: Observe the scuppers, downspouts and gutters during rainfall events. Look for water overtopping gutters. Water overtopping gutters near scuppers or downspouts indicated a clogged scupper or downspout. Water overtopping in other areas indicated poor slope of gutter. If ice accumulates in during winter, investigate the use of electric heat trace cables to melt accumulation. Standing freezing water can burst downspouts and will put excess stress on brackets and hangers. | K32: --
B33: De-Icing Systems, Electric | D33: Visually inspect system wiring, T and end connection points, and heating cable assemblies to ensure the system components are free of debris and are properly positioned. Visually inspect cable assemblies for breaks / tears / or holes in the outer jackets. Test system, controller, timers, and thermostats for proper function. Visually inspect and perform an insulation resistance test of all circuits. Ensure clips and ties are in place to ensure proper cable positioning. Ensure system sensors are free of debris and clean. Ensure vegetation and roof accessories are not close to sensors. Check ground fault protection device for proper operation per manufacturer's recommendations. Ensure gutters and downspouts are free of leaves and other debris, prior to winter operation. | E33: -- | F33: -- | G33: -- | H33: -- | I33: -- | J33: -- | K33: --
B34: Downspouts and Scuppers | C34: Downspouts and Scuppers | D34: -- | E34: Inspect scuppers and downspouts for debris. Clear with hand, hose or plumber's snake. If water leaks from rear of downspout, the seam may have burst and the section of downspout will require replacement. Check and tighten hangers and brackets. Observe where the downspouts discharge to ensure that there is a positive slope away from the buildings, that there is no visible erosion, and that the discharge is ideally 6' from building foundation. If downspouts discharge into buried pipes, inspect and clean out buried pipes with plumber's snake. Address poor discharge conditions. | F34: -- | G34: -- | H34: -- | I34: -- | J34: Observe the scuppers and downspouts during rainfall events. Look for water overtopping scuppers or coming from seams at downspout. These conditions are symptomatic of clogs. If ice accumulates in during winter, investigate the use of electric heat trace cables to melt accumulation. Standing freezing water can burst downspouts and will put excess stress on brackets and hangers. | K34: --
B35: Hurricane Screens | D35: -- | E35: Visually inspect all screen surfaces for signs of deterioration or damage. Clean and remove debris as needed. If applicable, ensure proper grommet and bolt alignment. If applicable, visually inspect track surface for signs of deterioration. Clean and remove debris as needed. Test track operation to ensure proper function. Replace motors as needed. Check and test cleats and tensioner components. Visually inspect fabric surfaces for signs of deterioration, wear, tears, or rips. Repair or replace fabric as needed. | F35: -- | G35: -- | H35: -- | I35: -- | J35: -- | K35: --
A36: x | B36: Concrete Flatwork | C36: Concrete Flatwork | D36: Visually inspect the concrete flatwork to identify areas of deterioration, large cracks, settlement, standing water or damage. Create a punch list of all areas that require replacement. Concrete with hairline cracks or displacement of less than 1/4" do not require replacement but should be monitored on an annual basis. Route and fill all cracks that are 1/4" or less (excluding hairline cracks). Cracks in excess of 1/4" should be noted for slab replacement. Replace areas of concrete flatwork that exhibits deterioration or damage. Trip hazards (vertical change of more than 1/4") at concrete flatwork may be ground down or hydraulically leveled (mud-jack) to create a level transition between slabs. If grinding is not desirable, replace the shifted slab(s). Alternatively, perform the visual inspection as noted above and create a punch list of items that need to be addressed. Contact a qualified contractor to conduct repairs as needed. | E36: -- | F36: -- | G36: -- | H36: -- | I36: -- | J36: Ensure that flatwork is free of debris. Remove any accumulated debris. Areas of flatwork that are painted should be scraped and painted as-needed. Clean flatwork with a hose or power washer. | K36: Ongoing maintenance of the concrete flatwork will help ensure a safe surface for pedestrians, and reduce the likelihood of accidents from falling/tripping.
B37: Paint Finishes, Exterior, Metal and Wood | C37: Paint Finishes, Exterior (Front Doors, Garage Doors, Trim, Meter Banks) | D37: Conduct a visual inspection of the painted surfaces and note surface finish deterioration, such as scratches or peeling paint finishes. Metal surfaces with finish deterioration should be cleaned, flaked / chipped paint should be removed, surfaces should be spot primed, and two coats of exterior grade paint specified for exterior metal surfaces should be applied where needed. For painted wood surfaces, finishes should be reapplied every 3 to 5 years, or more frequently in areas of high use or in areas of extreme weather exposure. Lightly sand surfaces to remove flaked / chipped paint and to ensure a smooth wood surface. Apply spot primer in areas of bare wood, then apply one to two coats of an exterior grade paint suitable for wood surfaces. | E37: -- | F37: -- | G37: -- | H37: -- | I37: -- | J37: -- | K37: --
B38: Railings, Aluminum | C38: Railings, Aluminum | D38: Conduct a visual inspection of the railings, either annually or at the frequency required by local code / statutes, to identify damaged railing components, displaced panels, detached or displaced guardrail assemblies, loose rails, leaning sections, bent surfaces, and/or missing post caps, finials, or decorative details. Visually inspect base connections and identify crooked / missing bolts, loose nuts / set screws, and/or missing sealant at base plates or base connections. Compile noted defects in a maintenance log and conduct capital repair projects as needed, or consult with a qualified contractor to address issues. Conduct a visual inspection of the aluminum surfaces and note surface finish deterioration at metal surfaces, such as scratches or peeling paint finishes. Metal surfaces with finish deterioration should be cleaned, flaked / chipped paint should be removed, surfaces should be spot primed, and two coats of exterior grade paint specified for aluminum surfaces should be applied where needed. | E38: -- | F38: -- | G38: -- | H38: -- | I38: -- | J38: Clean aluminum surfaces using a sponge with water and a mild non-abrasive detergent. Rinse with fresh water after cleaning to remove any residue. Allow to air dry, or wipe dry with a soft cloth. | K38: --
A39: x | B39: Concrete Garage Floors, Elevated, with Traffic Membrane | C39: Concrete Garage Floors, Elevated (With Traffic Membrane) | D39: Visually inspect garage surfaces annually at a minimum, or at the frequency required by code, to identify signs of deterioration, settlement, cracks, leaking, water infiltration, spalling, efflorescence, exposed reinforcing bars or movement at floor surfaces (when compared to the condition from the previous year). If accessible, visually inspect the underside of concrete floor structures as well. Alternatively, contract with a qualified engineering consultant to prepare a professional garage inspection/condition report. Inspect all sealants at floor perimeters, floor-to-wall connections and at control joints. Ensure sealants are intact, flexible, and have not failed. Replace sealants as required. Alternatively, contract with a qualified vendor to replace deteriorated or missing sealants. Inspect garage control joints to ensure that gaskets, sealants and other flexible components are intact and show no signs of deterioration or failure. Locate and monitor all identified cracks. Contract with a qualified vendor to route and fill all cracks over 1/8" wide. Contract with a qualified vendor to conduct spot patching and repairs at all areas that exhibit spalling or other forms of deterioration. Visually inspect floor striping, stall numbering and other garage signage at floor surfaces and touch-up as needed. | E39: Visually inspect the elastomeric deck coating system and look for signs of deterioration at the traffic membrane, including cracks, chips, flaking, delamination, or areas of heavy wear. Note deficiencies in a detailed log. Touch-up areas of deteriorated traffic membrane. Alternatively, contract with a qualified vendor to conduct capital repairs. Power wash garage concrete floor surfaces to remove dirt, salt, and other undesirable materials. If applicable, notify building residents and personnel of modified or off-site parking arrangements. | F39: Visually inspect garage floor surfaces for areas of heavy oil, grease or vehicular staining. Apply a degreasing agent per manufacturer's recommendations. Sweep concrete garage floor surfaces with a broom or commercial sweeper to remove dirt, dust and debris. | G39: -- | H39: -- | I39: -- | J39: -- | K39: --
B40: Railings, Aluminum and Glass | C40: Fences and Railings, Aluminum and Glass | D40: Conduct a visual inspection of the metal and glass surfaces, either annually or at the frequency required by local code / statutes, to identify damaged railing components, displaced glass panels, detached or displaced guardrail assemblies, and/or loose rails. Visually inspect base connections and identify crooked / missing bolts, loose nuts / set screws, and/or missing sealant at base plates or base connections. Visually inspect glass surfaces to identify missing or loose gaskets, shrunken gaskets, gaskets that are too long in length, and/or cracked glass surfaces. Note surface finish deterioration at metal surfaces, such as scratches or peeling paint finishes. Metal surfaces with finish deterioration should be cleaned, flaked / chipped paint should be removed, surfaces should be spot primed, and two coats of exterior grade paint specified for aluminum surfaces should be applied where needed. Compile noted defects in a maintenance log and conduct capital repair projects as needed, or consult with a qualified contractor to address issues. | E40: -- | F40: -- | G40: -- | H40: -- | I40: -- | J40: Clean aluminum surfaces by hose spraying to remove dirt and accumulated debris. Allow to air dry, or wipe dry with a soft cloth. For heavily soiled areas, rinse surfaces with water and use a sponge with water and a mild non-abrasive detergent. Rinse with fresh water after cleaning to remove any residue. Clean glass surfaces by applying a mild detergent approved for exterior glass applications with a soft cloth. Follow manufacturer's recommendations for application frequency and methods. | K40: --
B41: Roof Deck, Wood Paver and Pedestal System | C41: Roof Deck, Concrete Paver and Pedestal System | D41: -- | E41: Visually inspect wood paver surfaces and pedestal system to identify areas of deterioration, shifting or settlement. Wood surfaces with deterioration, splitting, or warping should be removed and replaced as needed. Surfaces that exhibit settlement should be removed, corrections should be made to the pedestal or roofing system as necessary to create a safe walking surface. Remove undesirable organic growth. | F41: -- | G41: Visually inspect surfaces for potential trip hazards. Surfaces that pose trip hazards should be corrected to create a level and safe walking surface. | H41: -- | I41: -- | J41: Surfaces may be sealed for added protection from the elements. Follow the manufacturers directions to ensure that the correct type of sealer is applied to the paver surfaces. Apply during favorable weather. | K41: --
B42: Roofs, Cedar Shakes | C42: Roofs, Cedar Shakes | D42: -- | E42: Visually inspect the roofs and look for damage, rot, splits, missing shakes, debris and organic growth. Note all areas that require attention. Contact a qualified contractor to conduct repairs. Clean all debris from roof surface, valleys and between shakes. Alternatively, contact a qualified contractor to remove debris. Clean gutters of all debris to ensure proper drainage. Alternatively, contact a qualified contractor to remove debris. Trim all tree limbs back to ensure that no tree limbs grow over the roof area. | F42: -- | G42: -- | H42: -- | I42: -- | J42: Report any leaks to the interior spaces to management. Contact a qualified contractor to conduct repairs as needed. Visually inspect the roofs and look for damage, rot, splits, missing shakes, debris and organic growth. Note all areas that require attention. Contact a qualified contractor to conduct repairs and clean debris from roof as needed. Clean the roofs (about every 5 to 7 years or as needed) thoroughly. The exact chemicals to be used should be determined at the time of cleaning to address actual issues (e.g. mildew, fungi, algae, etc.). Recommended chemicals include chlorine bleach, oxygen bleach, algaecide, mildewcide, fungicide or a combination of the previously mentioned chemicals. Apply via spray, sponge or brush (soft bristle) and rinse thoroughly in a downward direction. Working on a roof may be dangerous and a liability for the Association. Contact a qualified contractor to conduct a detailed cleaning of the shakes. | K42: --
B43: Roofs, Cedar Shakes | C43: Roofs, Cedar Shakes | D43: -- | E43: Visually inspect the roofs and look for damage, rot, splits, missing shakes, debris and organic growth. Note all areas that require attention. Contact a qualified contractor to conduct repairs. Clean all debris from roof surface, valleys and between shakes. Alternatively, contact a qualified contractor to remove debris. Clean gutters of all debris to ensure proper drainage. Alternatively, contact a qualified contractor to remove debris. Trim all tree limbs back to ensure that no tree limbs grow over the roof area. | F43: -- | G43: -- | H43: -- | I43: -- | J43: Report any leaks to the interior spaces to management. Contact a qualified contractor to conduct repairs as needed. Visually inspect the roofs and look for damage, rot, splits, missing shakes, debris and organic growth. Note all areas that require attention. Contact a qualified contractor to conduct repairs and clean debris from roof as needed. Clean the roofs (about every 5 to 7 years or as needed) thoroughly. The exact chemicals to be used should be determined at the time of cleaning to address actual issues (e.g. mildew, fungi, algae, etc.). Recommended chemicals include chlorine bleach, oxygen bleach, algaecide, mildewcide, fungicide or a combination of the previously mentioned chemicals. Apply via spray, sponge or brush (soft bristle) and rinse thoroughly in a downward direction. Working on a roof may be dangerous and a liability for the Association. Contact a qualified contractor to conduct a detailed cleaning of the shakes. | K43: --
B44: Roofs, Cedar Shakes | C44: Roofs, Cedar Shakes | D44: -- | E44: Visually inspect the roofs and look for damage, rot, splits, missing shakes, debris and organic growth. Note all areas that require attention. Contact a qualified contractor to conduct repairs. Clean all debris from roof surface, valleys and between shakes. Alternatively, contact a qualified contractor to remove debris. Clean gutters of all debris to ensure proper drainage. Alternatively, contact a qualified contractor to remove debris. Trim all tree limbs back to ensure that no tree limbs grow over the roof area. | F44: -- | G44: -- | H44: -- | I44: -- | J44: Report any leaks to the interior spaces to management. Contact a qualified contractor to conduct repairs as needed. Visually inspect the roofs and look for damage, rot, splits, missing shakes, debris and organic growth. Note all areas that require attention. Contact a qualified contractor to conduct repairs and clean debris from roof as needed. Clean the roofs (about every 5 to 7 years or as needed) thoroughly. The exact chemicals to be used should be determined at the time of cleaning to address actual issues (e.g. mildew, fungi, algae, etc.). Recommended chemicals include chlorine bleach, oxygen bleach, algaecide, mildewcide, fungicide or a combination of the previously mentioned chemicals. Apply via spray, sponge or brush (soft bristle) and rinse thoroughly in a downward direction. Working on a roof may be dangerous and a liability for the Association. Contact a qualified contractor to conduct a detailed cleaning of the shakes. | K44: --
B45: Roofs, Cedar Shakes | C45: Roofs, Cedar Shakes | D45: -- | E45: Visually inspect the roofs and look for damage, rot, splits, missing shakes, debris and organic growth. Note all areas that require attention. Contact a qualified contractor to conduct repairs. Clean all debris from roof surface, valleys and between shakes. Alternatively, contact a qualified contractor to remove debris. Clean gutters of all debris to ensure proper drainage. Alternatively, contact a qualified contractor to remove debris. Trim all tree limbs back to ensure that no tree limbs grow over the roof area. | F45: -- | G45: -- | H45: -- | I45: -- | J45: Report any leaks to the interior spaces to management. Contact a qualified contractor to conduct repairs as needed. Visually inspect the roofs and look for damage, rot, splits, missing shakes, debris and organic growth. Note all areas that require attention. Contact a qualified contractor to conduct repairs and clean debris from roof as needed. Clean the roofs (about every 5 to 7 years or as needed) thoroughly. The exact chemicals to be used should be determined at the time of cleaning to address actual issues (e.g. mildew, fungi, algae, etc.). Recommended chemicals include chlorine bleach, oxygen bleach, algaecide, mildewcide, fungicide or a combination of the previously mentioned chemicals. Apply via spray, sponge or brush (soft bristle) and rinse thoroughly in a downward direction. Working on a roof may be dangerous and a liability for the Association. Contact a qualified contractor to conduct a detailed cleaning of the shakes. | K45: --
B46: Roofs, Cedar Shakes | C46: Roofs, Cedar Shakes | D46: -- | E46: Visually inspect the roofs and look for damage, rot, splits, missing shakes, debris and organic growth. Note all areas that require attention. Contact a qualified contractor to conduct repairs. Clean all debris from roof surface, valleys and between shakes. Alternatively, contact a qualified contractor to remove debris. Clean gutters of all debris to ensure proper drainage. Alternatively, contact a qualified contractor to remove debris. Trim all tree limbs back to ensure that no tree limbs grow over the roof area. | F46: -- | G46: -- | H46: -- | I46: -- | J46: Report any leaks to the interior spaces to management. Contact a qualified contractor to conduct repairs as needed. Visually inspect the roofs and look for damage, rot, splits, missing shakes, debris and organic growth. Note all areas that require attention. Contact a qualified contractor to conduct repairs and clean debris from roof as needed. Clean the roofs (about every 5 to 7 years or as needed) thoroughly. The exact chemicals to be used should be determined at the time of cleaning to address actual issues (e.g. mildew, fungi, algae, etc.). Recommended chemicals include chlorine bleach, oxygen bleach, algaecide, mildewcide, fungicide or a combination of the previously mentioned chemicals. Apply via spray, sponge or brush (soft bristle) and rinse thoroughly in a downward direction. Working on a roof may be dangerous and a liability for the Association. Contact a qualified contractor to conduct a detailed cleaning of the shakes. | K46: --
B47: Roofs, Coping, Metal | C47: Roofs, Coping, Aluminum (Can we make this more generic, like "metal" - I think a lot is actually galvanized steel) - [EGGERT] YES CHANGE TO WHATEVER YOU THINK IS MOST APPROPRIATE | D47: -- | E47: Inspect coping for loose, missing, or rusted fasteners. Tighten or replace fasteners as needed. Only use fasteners recommended by coping manufacturer. Inspect sealants at leading edge of coping. Wind-driven rain can force water up the face of the building veneer and into the parapet. Remove and recaulk any areas where sealants are cracked, dry, brittle, or are not adhering to coping or building veneer. Install sealants at overlap joints. Only use sealants recommended by coping manufacturer. Inspect slope of coping such that it directs water back onto the roof so as to prevent staining of the building facade. | F47: -- | G47: -- | H47: -- | I47: -- | J47: After high wind or storm events, visually inspect coping for damage or missing pieces. Repair or replace as needed. Visually inspect all metal surfaces and note surface finish deterioration, such as scratches or peeling paint finishes. Metal surfaces with finish deterioration should be cleaned, flaked / chipped paint should be removed, surfaces should be spot primed, and two coats of exterior grade paint specified for metal surfaces should be applied where needed. | K47: --
B48: Roofs, Metal, Aluminum, Standing Seam | C48: Roofs, Metal, Aluminum, Standing Seam | D48: -- | E48: Visually inspect the roofs and look for damage, corrosion, debris and organic growth. Note all areas that require attention. Contact a qualified contractor to conduct repairs. Clean all debris from roof surface, valleys and between seams. Alternatively, contact a qualified contractor to remove debris. Visually inspect the aluminum surfaces and note surface finish deterioration at metal surfaces, such as scratches or peeling finishes. Aluminum surfaces with finish deterioration should be cleaned, flaked / chipped finishes should be removed, surfaces should be spot primed, and two coats of exterior grade coating specified for aluminum surfaces should be applied where needed. Visually inspect all fastener locations and look for signs of deterioration, loose fasteners, missing fasteners or bent fasteners. Replace as necessary. Alternatively, contact a qualified contractor to conduct repairs as needed. Clean gutters of all debris to ensure proper drainage. Alternatively, contact a qualified contractor to remove debris. | F48: -- | G48: -- | H48: -- | I48: -- | J48: Report any leaks to the interior spaces to management. Contact a qualified contractor to conduct repairs as needed. Visually inspect the roofs and look for damage, corrosion, debris and organic growth. Note all areas that require attention. Contact a qualified contractor to conduct repairs. Clean the roofs as needed to ensure an acceptable aesthetic appearance. The exact chemicals to be used should be determined at the time of cleaning to address actual issues (e.g. mildew, fungi, algae, etc.). Follow the manufacturer's directions for the proper chemicals to select. Apply chemicals (if necessary) via spray, sponge or brush (soft bristle) and rinse thoroughly in a downward direction. Working on a roof may be dangerous and a liability for the Association. Contact a qualified contractor to conduct a detailed cleaning of the aluminum standing seam roofing. | K48: --
B49: Roofs, Metal, Standing Seam | C49: Roofs, Metal, Standing Seam | D49: -- | E49: Visually inspect the roofs and look for damage, corrosion, debris and organic growth. Note all areas that require attention. Contact a qualified contractor to conduct repairs. Clean all debris from roof surface, valleys and between seams. Alternatively, contact a qualified contractor to remove debris. Visually inspect the metal surfaces and note surface finish deterioration at metal surfaces, such as scratches or peeling finishes. Metal surfaces with finish deterioration should be cleaned, flaked / chipped finishes should be removed, surfaces should be spot primed, and two coats of exterior grade coating specified for metal surfaces should be applied where needed. Visually inspect all fastener locations and look for signs of deterioration, loose fasteners, missing fasteners or bent fasteners. Replace as necessary. Alternatively, contact a qualified contractor to conduct repairs as needed. Clean gutters of all debris to ensure proper drainage. Alternatively, contact a qualified contractor to remove debris. | F49: -- | G49: -- | H49: -- | I49: -- | J49: Report any leaks to the interior spaces to management. Contact a qualified contractor to conduct repairs as needed. Visually inspect the roofs and look for damage, corrosion, debris and organic growth. Note all areas that require attention. Contact a qualified contractor to conduct repairs. Clean the roofs as needed to ensure an acceptable aesthetic appearance. The exact chemicals to be used should be determined at the time of cleaning to address actual issues (e.g. mildew, fungi, algae, etc.). Follow the manufacturer's directions for the proper chemicals to select. Apply chemicals (if necessary) via spray, sponge or brush (soft bristle) and rinse thoroughly in a downward direction. Working on a roof may be dangerous and a liability for the Association. Contact a qualified contractor to conduct a detailed cleaning of the metal standing seam roofing. | K49: --
B50: Roofs, Metal, Steel, Standing Seam | C50: Roofs, Metal, Steel, Standing Seam | D50: -- | E50: Visually inspect the roofs and look for damage, corrosion, debris and organic growth. Note all areas that require attention. Contact a qualified contractor to conduct repairs. Clean all debris from roof surface, valleys and between seams. Alternatively, contact a qualified contractor to remove debris. Visually inspect the steel surfaces and note surface finish deterioration at steel surfaces, such as scratches, rust or peeling finishes. Steel surfaces with finish deterioration should be cleaned, flaked / chipped finishes should be removed, surfaces should be spot primed, and two coats of exterior grade coating specified for metal surfaces should be applied where needed. Visually inspect all fastener locations and look for signs of deterioration, loose fasteners, missing fasteners or bent fasteners. Replace as necessary. Alternatively, contact a qualified contractor to conduct repairs as needed. Clean gutters of all debris to ensure proper drainage. Alternatively, contact a qualified contractor to remove debris. | F50: -- | G50: -- | H50: -- | I50: -- | J50: Report any leaks to the interior spaces to management. Contact a qualified contractor to conduct repairs as needed. Visually inspect the roofs and look for damage, corrosion, debris and organic growth. Note all areas that require attention. Contact a qualified contractor to conduct repairs. Clean the roofs as needed to ensure an acceptable aesthetic appearance. The exact chemicals to be used should be determined at the time of cleaning to address actual issues (e.g. mildew, fungi, algae, etc.). Follow the manufacturer's directions for the proper chemicals to select. Apply chemicals (if necessary) via spray, sponge or brush (soft bristle) and rinse thoroughly in a downward direction. Working on a roof may be dangerous and a liability for the Association. Contact a qualified contractor to conduct a detailed cleaning of the steel standing seam roofing. | K50: --
B51: Roofs, Asphalt Shingles | C51: Roofs, Asphalt Shingles (talk about ventilation and insulation) | D51: -- | E51: Visually inspect all roof components, including shingles, flashing, penetrations, ventilation. Look for any signs of damage to any roofing component, including missing shingles, damaged shingles, nail pops, damaged ventilation components or damaged flashing. Note all areas that require attention. Contact a qualified contractor to conduct repairs. Visually inspect the roofs for signs of organic growth (e.g. mildew, algae, etc.). Note locations and clean as necessary. Use caution when attempting to clean organic growth as there is a likelihood of causing damage to the shingles during the cleaning process. Light organic growth is not a large concern, however, an abundance of organic growth can lead to premature deterioration of the roofing system. Alternatively, contact a qualified contractor to spot clean as necessary. Clean all debris from roof surface to ensure proper stormwater drainage. Alternatively, contact a qualified contractor to remove debris. Clean gutters of all debris to ensure proper drainage. Alternatively, contact a qualified contractor to remove debris. Trim all tree limbs back to ensure that no tree limbs grow over the roof area. | F51: -- | G51: -- | H51: -- | I51: -- | J51: Report any leaks to the interior spaces to management. Contact a qualified contractor to conduct repairs as needed. Visually inspect all roof components, including shingles, flashing, penetrations, ventilation. Look for any signs of damage to any roofing component, including missing shingles, damaged shingles, nail pops, damaged ventilation components or damaged flashing. Note all areas that require attention. Contact a qualified contractor to conduct repairs. Conduct an analysis of the insulation and ventilation system. This should be performed by a qualified individual. Inspect the insulation in the attic space to ensure that it is adequate. Lack of proper insulation can result in damage to roofing components and interior spaces via ice dams. Ensure that the ventilation is adequate for a properly functioning roofing system. Add insulation and/or roof vents as needed. | K51: --
B52: Roofs, Built-Up | C52: Roofs, Built-Up | D52: -- | E52: Visually inspect all roof components, including membrane, flashing, penetrations, ventilation. Look for any signs of damage to any roofing component, including holes in the membrane, separation of seams, blistering, damaged ventilation components or damaged flashing. Note all areas that require attention. Contact a qualified contractor to conduct repairs. Blisters may not always need immediate repair. Some repair attempts may result in further roof deterioration. Ponded water may indicate that the underlying insulation is saturated or compressed. This will decrease the insulation R-value and will lead to additional water ponding. Visually inspect the roofs for signs of organic growth (e.g. mildew, algae, etc.). Note locations and clean as necessary. Use caution when attempting to clean organic growth as there is a likelihood of causing damage to the membrane during the cleaning process. Light organic growth is not a large concern, however, an abundance of organic growth can lead to premature deterioration of the roofing system. Alternatively, contact a qualified contractor to spot clean as necessary. Clean all debris from roof surface to ensure proper stormwater drainage. This includes loose nails, bolts, scrap metal or any other objects with sharp edges that could damage the membrane. Alternatively, contact a qualified contractor to remove debris. Clean scuppers of all debris to ensure proper drainage. Alternatively, contact a qualified contractor to remove debris. | F52: Clear roof drains and scuppers of debris. | G52: -- | H52: -- | I52: -- | J52: Understand and store the roof warranty such that the Association can comply with requirements. Report any leaks to the interior spaces to management. Contact a qualified contractor to conduct repairs as needed. Inspect roofs and drains after major storm events. Clear debris and make repairs as needed. Install walk pads around roof hatches, ladders or equipment that is regularly serviced to protect roof membrane from foot traffic or dropped tools. Avoid using wood blocks sitting directly on roof as a method of pipe support. Instead replace wood blocks with pipe hangers, supports or stands specifically designed for this purpose and will not add penetrations through roof. | K52: --
B53: Roof, Coping, Clay | C53: Roof, Coping, Clay (Historic) | D53: -- | E53: Inspect coping for loose or cracked tiles or mortar. Replace cracked tiles where needed. Reset and repack mortar for loose or damaged mortar. Inspect underlying parapet wall as well as flashing or roof termination bar for leaks. Consult with roofing contractor for necessary repairs. | F53: -- | G53: -- | H53: -- | I53: -- | J53: After high wind or storm events, visually inspect coping for damage or missing pieces. Repair or replace as needed. | K53: --
B54: Roofs, EPDM Membrane | C54: Roofs, EPDM Membrane (Non-Ballasted) | D54: -- | E54: Visually inspect all roof components, including membrane, flashing, penetrations, ventilation. Look for any signs of damage to any roofing component, including holes in the membrane, separation of seams, damaged ventilation components or damaged flashing. Note all areas that require attention. Contact a qualified contractor to conduct repairs. Separation of seams is one of the biggest issues with single-ply membrane roofs since there is no redundancy in waterproofing. Ponded water may indicate that the underlying insulation is saturated or compressed. This will decrease the insulation R-value and will lead to additional water ponding. Visually inspect the roofs for signs of organic growth (e.g. mildew, algae, etc.). Note locations and clean as necessary. Use caution when attempting to clean organic growth as there is a likelihood of causing damage to the membrane during the cleaning process. Light organic growth is not a large concern, however, an abundance of organic growth can lead to premature deterioration of the roofing system. Alternatively, contact a qualified contractor to spot clean as necessary. Clean all debris from roof surface to ensure proper stormwater drainage. This includes loose nails, bolts, scrap metal or any other objects with sharp edges that could damage the membrane. Alternatively, contact a qualified contractor to remove debris. Clean scuppers of all debris to ensure proper drainage. Alternatively, contact a qualified contractor to remove debris. | F54: Clear roof drains and scuppers of debris. | G54: -- | H54: -- | I54: -- | J54: Understand and store the roof warranty such that the Association can comply with requirements. Report any leaks to the interior spaces to management. Contact a qualified contractor to conduct repairs as needed. Inspect roofs and drains after major storm events. Clear debris and make repairs as needed. Install walk pads around roof hatches, ladders or equipment that is regularly serviced to protect roof membrane from foot traffic or dropped tools. Avoid using wood blocks sitting directly on roof as a method of pipe support. Instead replace wood blocks with pipe hangers, supports or stands specifically designed for this purpose and will not add penetrations through roof. | K54: --
B55: Roofs, EPDM Membrane (With Ballast) | C55: Roofs, EPDM Membrane (Ballasted) | D55: -- | E55: Visually inspect all roof components, including membrane, flashing, penetrations, ventilation. Look for any signs of damage to any roofing component, including holes in the membrane, separation of seams, damaged ventilation components or damaged flashing. Note all areas that require attention. Contact a qualified contractor to conduct repairs. Ponded water may indicate that the underlying insulation is saturated or compressed. This will decrease the insulation R-value and will lead to additional water ponding. Visually inspect the roofs for signs of organic growth (e.g. mildew, algae, etc.). Note locations and clean as necessary. Use caution when attempting to clean organic growth as there is a likelihood of causing damage to the membrane during the cleaning process. Light organic growth is not a large concern, however, an abundance of organic growth can lead to premature deterioration of the roofing system. Clean all debris from roof surface to ensure proper stormwater drainage. This includes loose nails, bolts, scrap metal or any other objects with sharp edges that could damage the membrane. Clean scuppers of all debris to ensure proper drainage. If stone ballast has shifted, redistribute to achieve even layer over roof and to protect membrane. | F55: Clear roof drains and scuppers of debris. | G55: -- | H55: -- | I55: -- | J55: Understand and store the roof warranty such that the Association can comply with requirements. Report any leaks to the interior spaces to management. Contact a qualified contractor to conduct repairs as needed. Inspect roofs and drains after major storm events. Clear debris and make repairs as needed. Install walk pads around roof hatches, ladders or equipment that is regularly serviced to protect roof membrane from foot traffic or dropped tools. Avoid using wood blocks sitting directly on roof as a method of pipe support. Instead replace wood blocks with pipe hangers, supports or stands specifically designed for this purpose and will not add penetrations through roof. | K55: --
B56: Roofs, TPO | C56: Roofs, TPO | D56: -- | E56: Visually inspect all roof components, including membrane, flashing, penetrations, ventilation. Look for any signs of damage to any roofing component, including holes in the membrane, separation of seams, damaged ventilation components or damaged flashing. Note all areas that require attention. Contact a qualified contractor to conduct repairs. Ponded water may indicate that the underlying insulation is saturated or compressed. This will decrease the insulation R-value and will lead to additional water ponding. Visually inspect the roofs for signs of organic growth (e.g. mildew, algae, etc.). Note locations and clean as necessary. Use caution when attempting to clean organic growth as there is a likelihood of causing damage to the membrane during the cleaning process. Light organic growth is not a large concern, however, an abundance of organic growth can lead to premature deterioration of the roofing system. Clean all debris from roof surface to ensure proper stormwater drainage. This includes loose nails, bolts, scrap metal or any other objects with sharp edges that could damage the membrane. Clean scuppers of all debris to ensure proper drainage. Confirm that any product used for repairs is compatible with TPO materials. | F56: Clear roof drains and scuppers of debris. | G56: -- | H56: -- | I56: -- | J56: Understand and store the roof warranty such that the Association can comply with requirements. Report any leaks to the interior spaces to management. Contact a qualified contractor to conduct repairs as needed. Inspect roofs and drains after major storm events. Clear debris and make repairs as needed. Install walk pads around roof hatches, ladders or equipment that is regularly serviced to protect roof membrane from foot traffic or dropped tools. Avoid using wood blocks sitting directly on roof as a method of pipe support. Instead replace wood blocks with pipe hangers, supports or stands specifically designed for this purpose and will not add penetrations through roof. | K56: --
A57: x | B57: Countertops | C57: Countertops, Stone | D57: Conduct a water beading test to determine if the stone countertop is well sealed, or if a sealing application is required. If water does not bead upon the countertop surface, or if the countertop surface darkens (sign of water absorption), apply a impregnating, penetrating stone sealer to the entire countertop surface, including edges. | E57: -- | F57: -- | G57: -- | H57: Apply a specialty cleaner approved for stone countertop surfaces on the entire countertop surface, including edges, to remove all accumulated dust, dirt and debris. | I57: -- | J57: Wipe countertops to remove acidic and/or oil substances immediately using a sponge or soft cloth with hot water or a specialty cleaner approved for stone countertop surfaces. Dry the countertop after washing to prevent water from pooling. | K57: --
B58: Roofs, Concrete or Clay Tile | C58: Roofs, Concrete or Clay Tile | D58: Visually inspect all roof components, including clay/concrete tiles, flashing, penetrations, ventilation. Look for any signs of damage to any roofing component, including missing tiles, damaged tiles, nail pops, damaged ventilation components or damaged flashing. Note all areas that require attention. Contact a qualified contractor to conduct repairs. Visually inspect the roofs for signs of organic growth (e.g. mildew, algae, etc.). Note locations and clean as necessary. Use caution when attempting to clean organic growth as there is a likelihood of causing damage to the tiles during the cleaning process. Light organic growth is not a large concern; however, an abundance of organic growth could lead to premature deterioration of the roofing system. Alternatively, contact a qualified contractor to spot clean as necessary. Clean all debris from roof surface to ensure proper stormwater drainage. Alternatively, contact a qualified contractor to remove debris. Visually inspect roofs for signs of blocked vents. Inspect soffit vents, ridge / box vents, and wall-mounted vents to ensure that they remain free of debris that could block the opening and cause inadequate air flow into attic / roof cavities. Clean gutters of all debris to ensure proper drainage. Alternatively, contact a qualified contractor to remove debris. Trim all tree limbs back to ensure that no tree limbs grow over the roof area or come into direct contact with roof surfaces. | E58: -- | F58: -- | G58: -- | H58: -- | I58: -- | J58: After high wind or storm events, visually inspect the roofs for damage or missing pieces. Repair or replace as needed. Immediately report any leaks to the interior spaces to management. Contact a qualified contractor to conduct repairs as needed. | K58: --
B59: Roofs, Slate | C59: Roofs, Slate | D59: Visually inspect all roof components, including slate tiles, flashing, penetrations, ventilation. Look for any signs of damage to any roofing component, including missing tiles, damaged tiles, nail pops, damaged ventilation components or damaged flashing. Note all areas that require attention. Contact a qualified contractor to conduct repairs. Visually inspect the roofs for signs of organic growth (e.g. mildew, algae, etc.). Note locations and clean as necessary. Use caution when attempting to clean organic growth as there is a likelihood of causing damage to the tiles during the cleaning process. Light organic growth is not a large concern; however, an abundance of organic growth could lead to premature deterioration of the roofing system. Alternatively, contact a qualified contractor to spot clean as necessary. Clean all debris from roof surface to ensure proper stormwater drainage. Alternatively, contact a qualified contractor to remove debris. Visually inspect roofs for signs of blocked vents. Inspect soffit vents, ridge / box vents, and wall-mounted vents to ensure that they remain free of debris that could block the opening and cause inadequate air flow into attic / roof cavities. Clean gutters of all debris to ensure proper drainage. Alternatively, contact a qualified contractor to remove debris. | E59: -- | F59: -- | G59: -- | H59: -- | I59: -- | J59: After high wind or storm events, visually inspect the roofs for damage or missing pieces. Repair or replace as needed. Immediately report any leaks to the interior spaces to management. Contact a qualified contractor to conduct repairs as needed. | K59: --
B60: Roof Hatch | C60: Roof Hatch (Aluminum with Curb) | D60: -- | E60: Inspect hatch door, swing arms, curb flashing, locks and all other elements in coordination with roof inspections. Door should set on weatherstripping or gasket to create weatherproof seal. Swing arms should be straight and operate without unnecessary force. Lubricate pivoting joints, latch and spring housings. | F60: -- | G60: -- | H60: -- | I60: -- | J60: Apply touch up or full paint finish applications if rust is noted. Metal surfaces with finish deterioration should be cleaned, flaked / chipped paint should be removed, surfaces should be spot primed, and two coats of exterior grade paint specified for metal surfaces should be applied where needed. | K60: --
B61: Roofs, Heat Tape Systems | C61: Roofs, Heat Tape Systems | D61: Visually inspect all heat tape, from end to end. Look for signs of damaged sheathing and exposed wires on the cable; loose, damaged or missing fasteners. Repair/replace damaged cable as needed. Replace damaged or missing fasteners. Attempt to secure loose fasteners, however if the fastener cannot be secured, repair the penetration and relocate the fastener. Conduct a test of the heat tape to ensure proper function via a multimeter. Replace heat tape as necessary. Alternatively, contact a qualified contractor to inspect and conduct repairs as needed. | E61: -- | F61: -- | G61: -- | H61: -- | I61: -- | J61: -- | K61: Heat tape should be tested annually prior to the winter season to ensure proper function. Improperly functioning heat tape may result in damage to building components.
B62: Roofs, Modified Bitumen | C62: Roofs, Modified Bitumen (with Fibered Aluminum Coating) | D62: -- | E62: Visually inspect all roof components, including membrane, flashing, penetrations, ventilation. Look for any signs of damage to any roofing component, including holes in the membrane, separation of seams, damaged ventilation components or damaged flashing. Note all areas that require attention. Contact a qualified contractor to conduct repairs. Ponded water may indicate that the underlying insulation is saturated or compressed. This will decrease the insulation R-value and will lead to additional water ponding. Loss of granular surface may lead to accelerated UV degradation. Recoat bare spots with new granules in adhesive. Visually inspect the roofs for signs of organic growth (e.g. mildew, algae, etc.). Note locations and clean as necessary. Use caution when attempting to clean organic growth as there is a likelihood of causing damage to the membrane during the cleaning process. Light organic growth is not a large concern, however, an abundance of organic growth can lead to premature deterioration of the roofing system. Alternatively, contact a qualified contractor to spot clean as necessary. Clean all debris from roof surface to ensure proper stormwater drainage. This includes loose nails, bolts, scrap metal or any other objects with sharp edges that could damage the membrane. Alternatively, contact a qualified contractor to remove debris. Clean scuppers of all debris to ensure proper drainage. Alternatively, contact a qualified contractor to remove debris. If roof surface is smooth (lacks ceramic granules in surface), the Association should apply a fibered-aluminum coating to protect the roof from UV degradation. This coating does not protect from leaks but increase solar reflectivity and decreases heat absorption and resulting thermal movement. | F62: Clear roof drains and scuppers of debris. | G62: -- | H62: -- | I62: -- | J62: Understand and store the roof warranty such that the Association can comply with requirements. Report any leaks to the interior spaces to management. Contact a qualified contractor to conduct repairs as needed. Inspect roofs and drains after major storm events. Clear debris and make repairs as needed. Install walk pads around roof hatches, ladders or equipment that is regularly serviced to protect roof membrane from foot traffic or dropped tools. Avoid using wood blocks sitting directly on roof as a method of pipe support. Instead replace wood blocks with pipe hangers, supports or stands specifically designed for this purpose and will not add penetrations through roof. | K62: --
B63: Roofs, Composite Polymer Tiles | C63: Roofs, DaVinci Slate Single-Width polymer roofing tiles | D63: Visually inspect all roof components, including tiles, flashing, penetrations, ventilation. Look for any signs of damage to any roofing component, including missing tiles, damaged tiles, nail pops, damaged ventilation components or damaged flashing. Note all areas that require attention. Contact a qualified contractor to conduct repairs. Visually inspect the roofs for signs of organic growth (e.g. mildew, algae, etc.). Note locations and clean as necessary. Use caution when attempting to clean organic growth as there is a likelihood of causing damage to the tiles during the cleaning process. Light organic growth is not a large concern; however, an abundance of organic growth could lead to premature deterioration of the roofing system. Alternatively, contact a qualified contractor to spot clean as necessary. Clean all debris from roof surface to ensure proper stormwater drainage. Alternatively, contact a qualified contractor to remove debris. Visually inspect roofs for signs of blocked vents. Inspect soffit vents, ridge / box vents, and wall-mounted vents to ensure that they remain free of debris that could block the opening and cause inadequate air flow into attic / roof cavities. Clean gutters of all debris to ensure proper drainage. Alternatively, contact a qualified contractor to remove debris. Trim all tree limbs back to ensure that no tree limbs grow over the roof area or come into direct contact with roof surfaces. | E63: -- | F63: -- | G63: -- | H63: -- | I63: -- | J63: Immediately report any leaks to the interior spaces to management. Contact a qualified contractor to conduct repairs as needed. | K63: --
B64: Roof, Translucent Sandwich Panels | C64: Roof, Translucent Sandwich Panels | D64: Hire a contractor to visually inspect roofing materials, fasteners, flashings from ground or roof level. | E64: -- | F64: -- | G64: -- | H64: -- | I64: -- | J64: Understand and store the roof warranty such that the Association can comply with requirements. Report any leaks to the interior spaces to management. Contact a qualified contractor to conduct repairs as needed. Inspect roofs and drains after major storm events. Clear debris and make repairs as needed. Clean panels with mild cleaners and water as needed. Polycarbonate panels are sensitive to alkaline cleaning products. Avoid using materials with acetone, benzene or other organic solvents. | K64: --
B65: Roof Deck, Concrete Paver and Pedestal System | C65: Roof Deck, Concrete Paver and Pedestal System | D65: -- | E65: Visually inspect paver surfaces and pedestal system to identify areas of deterioration, cracks, shifting or settlement. Paver surfaces with deterioration or cracks should be removed and replaced as needed. Surfaces that exhibit settlement should be removed, corrections should be made to the pedestal or roofing system as necessary to create a safe walking surface. Remove undesirable organic growth. | F65: -- | G65: Visually inspect surfaces for potential trip hazards. Surfaces that pose trip hazards should be corrected to create a level and safe walking surface. | H65: -- | I65: -- | J65: Surfaces may be sealed for added protection from the elements. Follow the manufacturers directions to ensure that the correct type of sealer is applied to the masonry surfaces. Apply during favorable weather. | K65: --
A66: x | B66: Decks, Wood | C66: Balconies / Decks, / Porches / Stairs, Wood | D66: -- | E66: Visually inspect all surfaces for signs of rot, cracks, splits, or warping. If the issue is minimal, the board may be left in place. Replace all boards or wood members that create an unsafe condition. Visually and physically inspect all structural framing, railings and decking components. Look for any signs of deterioration including loose boards, deteriorated or loose fasteners, loose railings, warped posts, etc. These components should be sound and secure. Repair all areas that are loose or deteriorated. Replace any portion of the structure that cannot be repaired. Alternatively, perform the visual inspection as noted above and create a punch list of items that need to be addressed. Contact a qualified contractor to conduct repairs as needed. | F66: -- | G66: -- | H66: -- | I66: -- | J66: Visually and physically inspect all structural framing, railings and decking components. Look for any signs of deterioration including loose boards, deteriorated or loose fasteners, loose railings, warped posts, etc. These components should be sound and secure. Repair all areas that are loose or deteriorated. Replace any portion of the structure that cannot be repaired. Protect wood surfaces by ensuring that non-treated surfaces are treated with a sealant, paint application, or stain application. For painted surfaces, finishes should be reapplied every 3 to 5 years, or more frequently in areas of high use or in areas of extreme weather exposure. Lightly sand surfaces to remove flaked / chipped paint to ensure a smooth wood surface. Apply spot primer in areas of bare wood, then apply one to two coats of an exterior grade paint suitable for wood surfaces. For stained surfaces, finishes should be reapplied every 3 to 5 years, or more frequently in areas of high use or in areas of extreme weather exposure. Lightly sand surfaces to ensure a smooth wood surface, then apply two coats of an exterior grade stain suitable for wood surfaces. For non-treated wood surfaces that are not painted or stained, consider applying a wood preserve sealant or water-repellent sealant to protect wood surfaces from exterior water and moisture exposure. Refer to specific manufacturer's recommendations for product application frequencies and methods. | K66: --
B67: Shutters, Vinyl | C67: Shutters, Vinyl / Metal | D67: -- | E67: Visually inspect the shutters to identify damage, warp, excessive color fading, staining, organic growth or loose fasteners. We reference the reader to the "As-Needed" section of this text for recommended shutter cleaning. Replace shutters with damage, warp or excessive color fading. Tighten or replace loose or missing fasteners to ensure that the shutter is secure to the facade. Alternatively, contact a qualified contractor to conduct repairs as needed. | F67: -- | G67: -- | H67: -- | I67: -- | J67: Clean shutters with visual signs of stains or organic growth. Begin by spraying the shutter with a garden hose. If necessary, use a soft bristle brush to lightly scrub the surface and rinse with low pressure water such as from a garden hose. If necessary, chemicals can be used to clean the surface. The exact chemicals to be used should be determined at the time of cleaning to address actual issues (e.g. rust from a fastener, mildew, algae, etc.). Recommended chemicals include soap and water, chlorine bleach, oxygen bleach, algaecide, mildewcide, fungicide or a combination of the previously mentioned chemicals. Care should be given to how the other exterior building elements will be affected by the cleaning chemicals. | K67: --
B68: Shutters, Metal | C68: Shutters, Vinyl / Metal | D68: -- | E68: Visually inspect the shutters to identify damage, warp, excessive color fading, staining, organic growth or loose fasteners. We reference the reader to the "As-Needed" section of this text for recommended shutter cleaning. Replace shutters with damage, warp or excessive color fading. Tighten or replace loose or missing fasteners to ensure that the shutter is secure to the facade. Alternatively, contact a qualified contractor to conduct repairs as needed. | F68: -- | G68: -- | H68: -- | I68: -- | J68: Clean shutters with visual signs of stains or organic growth. Begin by spraying the shutter with a garden hose. If necessary, use a soft bristle brush to lightly scrub the surface and rinse with low pressure water such as from a garden hose. If necessary, chemicals can be used to clean the surface. The exact chemicals to be used should be determined at the time of cleaning to address actual issues (e.g. rust from a fastener, mildew, algae, etc.). Recommended chemicals include soap and water, chlorine bleach, oxygen bleach, algaecide, mildewcide, fungicide or a combination of the previously mentioned chemicals. Care should be given to how the other exterior building elements will be affected by the cleaning chemicals. | K68: --
B69: Shutters, Wood | C69: Shutters, Wood | D69: -- | E69: Visually inspect the shutters to identify damage, rot, warp, excessive color fading, flaking paint, staining, organic growth or loose fasteners. We reference the reader to the "As-Needed" section of this text for recommended shutter cleaning. Replace shutters with damage, rot, warp or excessive color fading. Tighten or replace loose or missing fasteners to ensure that the shutter is secure to the facade. Scrape, prime and paint all surfaces that exhibit flaking, blistering or peeling finish. Attempt to wash stains prior to painting. If the stain cannot be removed, conduct proper paint finishes to the area. Alternatively, contact a qualified contractor to conduct repairs as needed. | F69: -- | G69: -- | H69: -- | I69: -- | J69: Clean shutters with visual signs of stains or organic growth. Begin by spraying the shutter with a garden hose. If necessary, use a soft bristle brush to lightly scrub the surface and rinse with low pressure water such as from a garden hose. If necessary, chemicals can be used to clean the surface. The exact chemicals to be used should be determined at the time of cleaning to address actual issues (e.g. rust from a fastener, mildew, algae, etc.). Recommended chemicals include soap and water, chlorine bleach, oxygen bleach, algaecide, mildewcide, fungicide or a combination of the previously mentioned chemicals. Care should be given to how the other exterior building elements will be affected by the cleaning chemicals. Scrape, prime and paint all surfaces that exhibit flaking, blistering or peeling finish. Attempt to wash stains prior to painting. If the stain cannot be removed, conduct proper paint finishes to the area. | K69: --
A70: x | B70: Door Operators, Automatic | C70: Door Operators, Automatic (pneumatic or electric) | D70: -- | E70: -- | F70: -- | G70: -- | H70: -- | I70: Visually inspect openers, sensors (if applicable) and switches to identify damage, corrosion or wear. Operate the openers to ensure proper/safe function. Refer to the user manual to troubleshoot specific issues. If the unit or any parts do not function properly, call a service technician to make necessary repairs. Replace the unit if it cannot be repaired. Keep the area around the door free of debris and other safety issues (trip hazards, slip hazards, etc.) | J70: Keep the operators and associated parts clean and free of dust and debris. Lubricate all moving parts. Refer to the user manual for the correct locations to lubricate. Frequency of this task will depend on actual usage and conditions. | K70: Proper maintenance of the automatic door operators benefit the useful life, safety and minimize downtime for repairs.
B71: Soffits, Vinyl | C71: Soffits, Vinyl | D71: -- | E71: Visually inspect all soffits for signs of damage, warping, finish deterioration, loose sections, missing sections or any other obvious issues. Conduct repairs to soffits, ensuring that the soffits are securely in place. Replace areas of soffits that cannot be easily repaired. Alternatively, perform the visual inspection as noted above and create a punch list of items that need to be addressed. Contact a qualified contractor to conduct repairs as needed. | F71: -- | G71: -- | H71: -- | I71: -- | J71: Visually inspect the soffits and note any areas that require cleaning. The soffits should be kept clean and all ventilation openings should be free of debris. Use water and a cloth or soft bristle brush to clean the surfaces if within reach. Higher locations of soffits should be cleaned with a low pressure sprayer, such as a garden hose, spraying the outer surface only. Use caution if cleaning with a pressure washer to ensure that water is not driven above the soffit. | K71: Proper maintenance of the soffits will benefit the appearance of the community, as well as help prevent moisture and pest issues.
B72: Soffits and Fascia, Aluminum | C72: Soffits and Fascia, Aluminum | D72: -- | E72: Visually inspect all soffits and fascia for signs of damage, finish deterioration, loose sections, missing sections or any other obvious issues. Conduct repairs to soffits and fascia, ensuring that the all parts are securely in place. Replace areas of soffits and fascia that cannot be easily repaired. Of note, forming aluminum fascia is a skilled trade and is more a suitable task for a qualified contractor. Visually inspect the aluminum surfaces and note surface finish deterioration at metal surfaces, such as scratches or peeling paint finishes. Aluminum surfaces with finish deterioration should be cleaned, flaked / chipped paint should be removed, surfaces should be spot primed, and two coats of exterior grade paint specified for aluminum surfaces should be applied where needed. If the soffit requires paint finishes, be sure to keep all ventilation openings free of paint and other debris. Proper soffit ventilation is critical for proper function of the roofing system. Alternatively, perform the visual inspection as noted above and create a punch list of items that need to be addressed. Contact a qualified contractor to conduct repairs as needed. | F72: -- | G72: -- | H72: -- | I72: -- | J72: Visually inspect the soffits and fascia and note any areas that require cleaning. The soffits and fascia should be kept clean and all ventilation openings in the soffits should be free of debris. Use water and a cloth or soft bristle brush to clean the surfaces if within reach. Higher locations of soffits and fascia should be cleaned with a low pressure sprayer, such as a garden hose, spraying the outer surface only. Use caution if cleaning with a pressure washer to ensure that water is not driven above the soffit or behind the fascia. | K72: Proper maintenance of the soffits and fascia will benefit the appearance of the community, as well as help prevent moisture and pest issues.
B73: Soffits and Fascia, Wood | C73: Soffits and Fascia, Wood | D73: -- | E73: Visually inspect all wood soffits and fascia for signs of damage, rot, deterioration, loose sections, missing sections or any other obvious issues. Conduct repairs to soffits and fascia, ensuring that the all parts are securely in place. Replace areas of soffits and fascia that cannot be easily repaired. If the soffit requires paint finishes, be sure to keep all ventilation openings free of paint and other debris. Proper soffit ventilation is important for proper function of the roofing system. Alternatively, perform the visual inspection as noted above and create a punch list of items that need to be addressed. Contact a qualified contractor to conduct repairs as needed. | F73: -- | G73: -- | H73: -- | I73: -- | J73: Visually inspect the soffits and fascia and note any areas that require cleaning. The soffits and fascia should be kept clean and all ventilation openings in the soffits should be free of debris. Use water and a cloth or soft bristle brush to clean the surfaces if within reach. Higher locations of soffits and fascia should be cleaned with a low pressure sprayer, such as a garden hose, spraying the outer surface only. Use caution if cleaning with a pressure washer to ensure that water is not driven above the soffit or behind the fascia. | K73: Proper maintenance of the soffits and fascia will benefit the appearance of the community, as well as help prevent moisture and pest issues.
B74: Soffit, Wood and Steel | C74: Soffit, Wood and Steel | D74: -- | E74: Visually inspect all wood/metal soffits and fascia for signs of damage, rot, deterioration, loose sections, missing sections or any other obvious issues. Conduct repairs to soffits and fascia, ensuring that the all parts are securely in place. Replace areas of soffits and fascia that cannot be easily repaired. Wood surfaces with scratches or light damage should be touched up to ensure a uniform aesthetic appearance. Replace all wood components with signs of rot or damaged. Metal surfaces with finish deterioration should be cleaned, flaked / chipped paint should be removed, surfaces should be spot primed, and two coats of exterior grade paint specified for metal surfaces should be applied where needed. If the soffit requires paint finishes, be sure to keep all ventilation openings free of paint and other debris. Proper soffit ventilation is important for proper function of the roofing system. Alternatively, perform the visual inspection as noted above and create a punch list of items that need to be addressed. Contact a qualified contractor to conduct repairs as needed. | F74: -- | G74: -- | H74: -- | I74: -- | J74: Visually inspect the soffits and note any areas that require cleaning. The soffits should be kept clean and all ventilation openings should be free of debris. Use water and a cloth or soft bristle brush to clean the surfaces if within reach. Higher locations of soffits should be cleaned with a low pressure sprayer, such as a garden hose, spraying the outer surface only. Use caution if cleaning with a pressure washer to ensure that water is not driven above the soffit. | K74: Proper maintenance of the soffits will benefit the appearance of the community, as well as help prevent moisture and pest issues.
B75: Soffits and Fascia, Composite | C75: Soffits and Fascia, Composite | D75: -- | E75: Visually inspect all composite soffits and fascia for signs of damage, rot, deterioration, loose sections, missing sections or any other obvious issues. Conduct repairs to soffits and fascia, ensuring that all parts are securely in place. Replace areas of soffits and fascia that cannot be easily repaired. If the soffit requires paint finishes, be sure to keep all ventilation openings free of paint and other debris. Proper soffit ventilation is important for proper function of the roofing system. Alternatively, perform the visual inspection as noted above and create a punch list of items that need to be addressed. Contact a qualified contractor to conduct repairs as needed. | F75: -- | G75: -- | H75: -- | I75: -- | J75: Visually inspect the soffits and fascia and note any areas that require cleaning. The soffits and fascia should be kept clean and all ventilation openings in the soffits should be free of debris. Use water and a cloth or soft bristle brush to clean the surfaces if within reach. Higher locations of soffits and fascia should be cleaned with a low pressure sprayer, such as a garden hose, spraying the outer surface only. Use caution if cleaning with a pressure washer to ensure that water is not driven above the soffit or behind the fascia. | K75: Proper maintenance of the soffits and fascia will benefit the appearance of the community, as well as help prevent moisture and pest issues.
A76: x | B76: Doors, Entry, Aluminum/Glass | C76: Doors, Entry, Aluminum/Glass | D76: -- | E76: -- | F76: -- | G76: Physically inspect and operate the doors and hardware for proper function. Tighten all fasteners as needed. Visually inspect all door components for finish deterioration, such as scratches or peeling paint finishes. Aluminum surfaces with finish deterioration should be cleaned, flaked / chipped paint should be removed, surfaces should be spot primed, and two coats of exterior grade paint specified for aluminum surfaces should be applied where needed. Visually inspect the door perimeters from the interior, looking for signs of daylight. Install / repair / replace weatherstripping and/or door sweeps as needed to ensure a proper seal. Visually inspect all glass surfaces for signs of cracks, chips or failed seals (insulated glass only). Replace the glass section as needed. Inspect gaskets to ensure they are present, well positioned, and that there are no visual signs of deterioration. Replace deteriorated or shrunken gaskets as needed. Lubricate all hinges, hardware and keyholes. | H76: -- | I76: -- | J76: Replace hardware if it is not operational. Tighten all fasteners as needed. Lubricate all hinges, hardware and keyholes. Clean all surfaces with a cloth or sponge dipped in soapy water. Rinse with water. | K76: --
B77: Walls, Aluminum Trim | C77: Walls, Aluminum Trim | D77: Visually inspect all aluminum trim for signs of damage, finish deterioration, loose sections, missing sections or any other obvious issues. Conduct repairs to aluminum trim, ensuring that the all parts are securely in place. Replace areas of aluminum trim that cannot be easily repaired. Of note, forming aluminum trim is a skilled trade and is a more suitable task for a qualified contractor. Visually inspect the aluminum surfaces and note surface finish deterioration at metal surfaces, such as scratches or peeling paint finishes. Aluminum surfaces with finish deterioration should be cleaned, flaked / chipped paint should be removed, surfaces should be spot primed, and two coats of exterior grade paint specified for aluminum surfaces should be applied where needed. Alternatively, perform the visual inspection as noted above and create a punch list of items that need to be addressed. Contact a qualified contractor to conduct repairs as needed. | E77: -- | F77: -- | G77: -- | H77: -- | I77: -- | J77: Visually inspect the aluminum trim and note any areas that require cleaning. Use water and a cloth or soft bristle brush to clean the surfaces if within reach. Higher locations of aluminum trim should be cleaned with a low pressure sprayer, such as a garden hose, spraying the outer surface only. Use caution if cleaning with a pressure washer to ensure that water is not driven behind the aluminum trim. | K77: Proper maintenance of the aluminum trim will benefit the appearance of the community, as well as help prevent moisture and pest issues.
B78: Walls, Aluminum Siding | C78: Walls, Aluminum Corrugated Siding | D78: Visually inspect all corrugated aluminum siding for signs of damage, finish deterioration, loose sections, loose fasteners, missing sections or any other obvious issues. Conduct repairs to corrugated aluminum siding, ensuring that all parts are securely in place. Replace areas of corrugated aluminum siding that cannot be easily repaired. Visually inspect the aluminum surfaces and note surface finish deterioration at metal surfaces, such as scratches or peeling paint finishes. Aluminum surfaces with finish deterioration should be cleaned, flaked / chipped paint should be removed, surfaces should be spot primed, and two coats of exterior grade paint specified for aluminum surfaces should be applied where needed. Alternatively, perform the visual inspection as noted above and create a punch list of items that need to be addressed. Contact a qualified contractor to conduct repairs as needed. | E78: -- | F78: -- | G78: -- | H78: -- | I78: -- | J78: Visually inspect the aluminum trim and note any areas that require cleaning. Use water and a cloth or soft bristle brush to clean the surfaces if within reach. Higher locations of aluminum trim should be cleaned with a low pressure sprayer, such as a garden hose, spraying the outer surface only. Use caution if cleaning with a pressure washer to ensure that water is not driven behind the aluminum trim. | K78: Proper maintenance of the corrugated aluminum siding will benefit the appearance of the community, as well as help prevent moisture and pest issues.
B79: Walls, Concrete | C79: Walls, Concrete (Painting, like in a garage) | D79: Visually inspect all surfaces to identify signs of deterioration, settlement, cracks, spalling, efflorescence, exposed reinforcing bar or movement (when compared to the condition from the previous year). Repair the wall as necessary. Rout and fill all cracks over 1/8" wide. Patch and repair all areas that exhibit spalling or other forms of deterioration. In some cases, where excessive moisture or efflorescence is observed, it may be necessary to install additional wall drainage, either with interior drains and sump pumps or exterior drainage improvements. Consult a qualified contractor if this is necessary. Apply touch-up paint applications where necessary. | E79: -- | F79: -- | G79: -- | H79: -- | I79: -- | J79: -- | K79: --
B80: Walls, Masonry, Cultured / Thin Stone Veneer | C80: Walls, Masonry (Cultured / Thin Stone Veneer) | D80: Conduct visual inspection of stone facades. Observe signs of damaged or loose stones. Cracked mortar may be an indication of building settlement. Efflorescence, a white chalky residue, is an indication that water is migrating through the substrate and is evidence of a past or current leak. Conduct further investigation to locate the potential source(s) of leak(s) to repair. For limited locations of mortar deterioration, color-matched grout may be hand applied and tooled. For large cracks or loose stones, contact a specialist. If stained, determine if veneer is actual stone or concrete. Concrete may be more susceptible to stains. Use a soft brush, by hand or rotary tool, to apply a mixture of warm water and vinegar to remove discoloration. Depending if the color is impregnated in the concrete of applied post-cast, the color may be removed completely if cleaning is too aggressive. If actual stone, more abrasive chemicals may be used. Avoid the use of a pressure washer or steel brushes. | E80: -- | F80: -- | G80: -- | H80: -- | I80: -- | J80: Sealer applications may be beneficial in locations where masonry is low to the ground and comes in frequent contact with water or near a chimney where it may be stained with soot. The sealer will make cleaning easier. | K80: --
A81: x | B81: Doors, Exterior, Metal | C81: Doors, Metal | D81: -- | E81: -- | F81: -- | G81: Physically inspect and operate the doors and hardware for proper function. Tighten all fasteners as needed. Visually inspect all door components for finish deterioration, such as scratches, rust or peeling paint finishes. Steel surfaces with finish deterioration should be cleaned, flaked / chipped paint should be removed, surfaces should be spot primed, and two coats of exterior grade paint specified for steel surfaces should be applied where needed. Visually inspect the door perimeters from the interior, looking for signs of daylight. Install / repair / replace weatherstripping and/or door sweeps as needed to ensure a proper seal. Lubricate all hinges, hardware and keyholes. | H81: -- | I81: -- | J81: Replace hardware if it is not operational. Tighten all fasteners as needed. Lubricate all hinges, hardware and keyholes. Clean all surfaces with a cloth or sponge dipped in soapy water. Rinse with water. | K81: --
B82: Walls, Masonry, with Waterproof Coating Application | C82: Walls, Masonry, with Waterproof Coating Application | D82: Conduct visual inspection of masonry facades. Observe signs of damaged or loose masonry. Cracked mortar may be an indication of building settlement. Efflorescence, a white chalky residue, is an indication that water is migrating through the substrate and is evidence of a past or current leak. Conduct further investigation to locate the source(s) of leak(s) to repair. For limited locations of mortar deterioration, color-matched grout may be hand applied and tooled. Do not use flexible sealant or caulk between bricks. For large cracks or loose masonry, contact a specialist. Hose brick walls to remove dirt and debris. For north elevations or shaded elevations, use a solution of 1 cup bleach and a gallon of water, along with a soft or medium brush to remove moss, mold or mildew. Prune back vegetation at least 6 inches from walls. Ivy should be removed from wall surfaces, as the suckers can penetrate the mortar and brick and cause deterioration. Care should be given to methodically remove the ivy by first cutting the trunk and allowing the vines to dry over 2 to 3 weeks. Inspect interface between masonry and other materials, such as window and door frames, or other siding. Flexible sealants should be continuous and soft to the touch. Replace sealants where needed. Inspect flashing at openings in the brick. Steel lintels above windows and doors should be rust free. Weeps should be visible and unobstructed to allow water to migrate from behind the wall. Do not caulk or mortar weep holes; this will lead to water retention, efflorescence and brick and mortar damage. | E82: -- | F82: -- | G82: -- | H82: -- | I82: -- | J82: -- | K82: Only apply water repellents that allow evaporation and passage of water vapor. Such products include siloxanes and silanes. Avoid using film-forming coatings, as these may exacerbate moisture problems. Properly constructed masonry with adequate flashing and weeps should not require sealants. Certain exposed applications of masonry, such as at chimneys or parapet walls may benefit from a vapor-permeable water repellent.
A83: x | B83: Doors, Interior, Common | C83: Doors, Interior, Common | D83: Inspect hinges, jambs, and latches. Tighten all screws. If doors sag, longer screws may be necessary at the hinges. If the doors do not close easily, particularly during humid weather, sand the edge of the door. | E83: -- | F83: -- | G83: -- | H83: Dust or wipe with dry rag. | I83: -- | J83: Replace hardware if it is not operational. Tighten all fasteners as needed. Lubricate all hinges, hardware and keyholes. | K83: --
B84: Walls, Composite Hardboard Siding / Trim | C84: Walls, Composite Hardboard Siding / Trim | D84: -- | E84: Visually inspect all composite hardboard siding and trim and search for signs of damage, rot, deterioration, loose sections, missing sections, flaking/peeling/missing paint finishes or any other obvious issues. Conduct repairs to composite hardboard siding and trim, ensuring that the all components are securely in place. Replace areas of composite hardboard siding and trim that cannot be easily repaired. Conduct touch-up paint finishes to all exposed surfaces, using proper surface preparation and painting techniques. Surfaces with finish deterioration should be cleaned, flaked / chipped paint should be removed, surfaces should be spot primed, and two coats of exterior grade paint specified for composite surfaces should be applied where needed. Composite hardboard siding and trim is prone to water absorption at locations that are exposed (not painted). Water absorption leads to rapid deterioration of composite hardboard materials. Alternatively, perform the visual inspection as noted above and create a punch list of items that need to be addressed. Contact a qualified contractor to conduct repairs as needed. | F84: -- | G84: -- | H84: -- | I84: -- | J84: -- | K84: Proper maintenance of the composite hardboard siding and trim will benefit the appearance of the community, as well as help prevent moisture and pest issues.
B85: Walls, Composite Hardboard Trim | C85: Walls, Composite Hardboard Siding / Trim | D85: -- | E85: Visually inspect all composite hardboard trim and search for signs of damage, rot, deterioration, loose sections, missing sections, flaking/peeling/missing paint finishes or any other obvious issues. Conduct repairs to composite hardboard trim, ensuring that the all components are securely in place. Replace areas of composite hardboard trim that cannot be easily repaired. Conduct touch-up paint finishes to all exposed surfaces, using proper surface preparation and painting techniques. Surfaces with finish deterioration should be cleaned, flaked / chipped paint should be removed, surfaces should be spot primed, and two coats of exterior grade paint specified for composite surfaces should be applied where needed. Composite hardboard trim is prone to water absorption at locations that are exposed (not painted). Water absorption leads to rapid deterioration of composite hardboard materials. Alternatively, perform the visual inspection as noted above and create a punch list of items that need to be addressed. Contact a qualified contractor to conduct repairs as needed. | F85: -- | G85: -- | H85: -- | I85: -- | J85: -- | K85: Proper maintenance of the composite hardboard trim will benefit the appearance of the community, as well as help prevent moisture and pest issues.
B86: Walls, Copper Siding | C86: Walls, Copper Siding | D86: Visually inspect all copper siding for signs of damage, corrosion, loose sections, loose fasteners, missing sections or any other obvious issues. Conduct repairs to the siding, ensuring that the all parts are securely in place. Replace areas of copper siding that cannot be easily repaired. Alternatively, perform the visual inspection as noted above and create a punch list of items that need to be addressed. Contact a qualified contractor to conduct repairs as needed. | E86: -- | F86: -- | G86: -- | H86: -- | I86: -- | J86: Visually inspect the copper siding and note any areas that require cleaning. Copper will tarnish naturally in an exterior environment. If desired, use a solution with a cloth or soft bristle brush to clean the surfaces. If using a cleaning solution, follow the manufacturer’s directions for the correct type of cleaner to use. When using a cleaning solution, always clean a small area first to test results. | K86: Proper maintenance of the copper cement siding will benefit the appearance of the community, as well as help prevent moisture and pest issues.
B87: Walls, Fiber Cement Siding | C87: Walls, Fiber Cement Siding | D87: -- | E87: Visually inspect all fiber cement siding for signs of damage, deterioration, loose sections, missing sections, flaking/peeling/missing paint finishes or any other obvious issues. Conduct repairs to fiber cement siding, ensuring that the all components are securely in place. Replace areas of fiber cement siding that cannot be easily repaired. Conduct touch-up paint finishes to all exposed surfaces, using proper surface preparation and painting techniques. Surfaces with finish deterioration should be cleaned, flaked / chipped paint should be removed, surfaces should be spot primed, and two coats of exterior grade paint specified for fiber cement surfaces should be applied where needed. Alternatively, perform the visual inspection as noted above and create a punch list of items that need to be addressed. Contact a qualified contractor to conduct repairs as needed. | F87: -- | G87: -- | H87: -- | I87: -- | J87: Visually inspect the fiber cement siding and note any areas that require cleaning. Use water and a cloth or soft bristle brush to clean the surfaces if within reach. Higher locations of steel siding should be cleaned with a low pressure sprayer, such as a garden hose, spraying the outer surface only. Use caution if cleaning with a pressure washer to ensure that water is not driven behind the siding. | K87: Proper maintenance of the fiber cement siding will benefit the appearance of the community, as well as help prevent moisture and pest issues.
A88: x | B88: Electrical Systems, Common | C88: Electrical Systems (Common) | D88: -- | E88: -- | F88: -- | G88: -- | H88: -- | I88: -- | J88: Due to the possibility of electric shock, physical inspection and repairs/replacements of electrical components are recommended to be performed by a qualified electrician. Survey and create an inventory of all Association maintained electrical equipment, noting the location, area of service, condition and age. The frequency of maintenance will be dependent on the age, type, condition, history of maintenance and location of the electrical equipment. This analysis of the electrical system should be performed by a qualified electrician. Create an electrical maintenance plan (EMP) based on the above analysis. Keep a log of all electrical related issues and maintenance activities. Inspect all electrical equipment, fixtures, outlets as necessary, (or as required by local statutes or insurance). Look for loose connections, corrosion, damage, moisture issues or debris/dirt accumulation. Conduct repairs or replacements as needed. Conduct a thermoscan of equipment to ensure proper function. Replace components that do not function properly. This activity should be performed by qualified technician/contractor as necessary. Test light fixtures, outlets and GFCI receptacles to ensure proper function. If the any of the equipment does not function properly, repair or replace immediately. | K88: Ongoing maintenance of the electrical systems will extend the useful life of the systems, save money over time, minimize the risk of fire, as well as minimize downtime for maintenance and unexpected power outages.
B89: Walls, Vinyl Siding | C89: Walls, Vinyl Siding | D89: Visually inspect all vinyl siding for signs of damage, shrinkage, warping, loose sections, loose fasteners, missing sections or any other obvious issues. Conduct repairs to vinyl siding, ensuring that the all parts are securely in place. Replace areas of vinyl siding that cannot be easily repaired. Alternatively, perform the visual inspection as noted above and create a punch list of items that need to be addressed. Contact a qualified contractor to conduct repairs as needed. | E89: -- | F89: -- | G89: -- | H89: -- | I89: -- | J89: Visually inspect the vinyl siding and note any areas that require cleaning. Use water and a cloth or soft bristle brush to clean the surfaces if within reach. Higher locations of vinyl siding should be cleaned with a low pressure sprayer, such as a garden hose, spraying the outer surface only. Use caution if cleaning with a pressure washer to ensure that water is not driven behind the siding. If using a cleaning solution, follow the manufacturer’s directions for the correct type of cleaner to use. | K89: Proper maintenance of the vinyl siding will benefit the appearance of the community, as well as help prevent moisture and pest issues.
B90: Walls, Metal Siding, Panelized | C90: Walls, Metal Siding, Panelized | D90: Inspect siding, fasteners, and flashing, especially at ground level and at wall openings. Tighten or replace loose, damaged or missing fasteners. Do not over-tighten. If desired, clean the siding with a power washer set at lowest setting, soft brush and solution of 6 gallons of water and 1/3rd cup liquid laundry detergent. Do not let soapy solution dry on siding. Rinse with clean water. If the siding is galvanized, inspect surfaces for damage to zinc coatings. Damage to coatings may eventually lead to rusting of the underlying metal. Paint finish applications may be necessary if rust is pervasive. | E90: If applicable, ensure gutters and downspouts are clear and appropriately sized. Check that irrigation system heads are directed away from the buildings to prevent excessive exposure to moisture. Prune vegetation back at least 6 inches from buildings. | F90: -- | G90: -- | H90: -- | I90: -- | J90: Visually inspect after major storm events for damage or loose sections of siding. | K90: --
B91: Walls, Wood Siding | C91: Walls, Wood Siding | D91: -- | E91: Visually inspect all wood siding for signs of damage, rot, warp, deterioration, loose sections, missing sections, flaking/peeling/missing paint finishes or any other obvious issues. Conduct repairs to wood siding, ensuring that the all components are securely in place. Replace areas of wood siding that cannot be easily repaired. Conduct touch-up paint finishes to all exposed surfaces, using proper surface preparation and painting techniques. Surfaces with finish deterioration should be cleaned, flaked / chipped paint should be removed, surfaces should be spot primed, and two coats of exterior grade paint specified for exterior wood surfaces should be applied where needed. Wood siding is subject to water absorption at locations that are exposed (not painted). Water absorption leads to deterioration of wood materials. Alternatively, perform the visual inspection as noted above and create a punch list of items that need to be addressed. Contact a qualified contractor to conduct repairs as needed. | F91: -- | G91: -- | H91: -- | I91: -- | J91: Visually inspect the wood siding and note any areas that require cleaning. Use water and a cloth or soft bristle brush to clean the surfaces if within reach. Higher locations of wood siding should be cleaned with a low pressure sprayer, such as a garden hose, spraying the outer surface only. Use caution if cleaning with a pressure washer to ensure that water is not driven behind the siding. If using a cleaning solution, follow the manufacturer’s directions for the correct type of cleaner to use. Protect wood surfaces by ensuring that non-treated surfaces are treated with a sealant, paint application, or stain application. For painted surfaces, finishes should be reapplied every 3 to 5 years, or more frequently in areas of high use or in areas or extreme weather exposure. Lightly sand surfaces to remove flaked / chipped paint and to ensure a smooth wood surface. Apply spot primer in areas of bare wood, then apply one to two coats of an exterior grade paint suitable for wood surfaces. For stained surfaces, finishes should be reapplied every 3 to 5 years, or more frequently in areas of high use or in areas of extreme weather exposure. Lightly sand surfaces to ensure a smooth wood surface, then apply two coats of an exterior grade stain suitable for wood surfaces. For non-treated wood surfaces that are not painted or stained, consider applying a wood preserving sealant or water-repellent sealant to protect wood surfaces from exterior water and moisture exposure. Refer to specific manufacturer's recommendations for product application methods and frequencies. | K91: Proper maintenance of the wood siding will benefit the appearance of the community, as well as help prevent moisture and pest issues.
B92: Walls, Wood Trim | C92: Walls, Wood Trim | D92: -- | E92: Visually inspect all wood trim for signs of damage, rot, warping, deterioration, loose sections, missing sections, flaking/peeling/missing paint finishes or any other obvious issues. Conduct repairs to wood trim, ensuring that the all components are securely in place. Replace areas of wood trim that cannot be easily repaired. Conduct touch-up paint finishes to all exposed surfaces, using proper surface preparation and painting techniques. Surfaces with finish deterioration should be cleaned, flaked / chipped paint should be removed, surfaces should be spot primed, and two coats of exterior grade paint specified for exterior wood surfaces should be applied where needed. Wood trim is subject to water absorption at locations that are exposed (not painted). Water absorption leads to deterioration of wood materials. Alternatively, perform the visual inspection as noted above and create a punch list of items that need to be addressed. Contact a qualified contractor to conduct repairs as needed. | F92: -- | G92: -- | H92: -- | I92: -- | J92: Visually inspect the wood trim and note any areas that require cleaning. Use water and a cloth or soft bristle brush to clean the surfaces if within reach. Higher locations of wood trim should be cleaned with a low pressure sprayer, such as a garden hose, spraying the outer surface only. Use caution if cleaning with a pressure washer to ensure that water is not driven behind the trim. If using a cleaning solution, follow the manufacturer’s directions for the correct type of cleaner to use. Protect wood surfaces by ensuring that non-treated surfaces are treated with a sealant, paint application, or stain application. For painted surfaces, finishes should be reapplied every 3 to 5 years, or more frequently in areas of high use or in areas of extreme weather exposure. Lightly sand surfaces to remove flaked / chipped paint and to ensure a smooth wood surface. Apply spot primer in areas of bare wood, then apply one to two coats of an exterior grade paint suitable for wood surfaces. For stained surfaces, finishes should be reapplied every 3 to 5 years, or more frequently in areas of high use or in areas of extreme weather exposure. Lightly sand surfaces to ensure a smooth wood surface, then apply two coats of an exterior grade stain suitable for wood surfaces. For non-treated wood surfaces that are not painted or stained, consider applying a wood preserve sealant or water-repellent sealant to protect wood surfaces from exterior water and moisture exposure. Refer to specific manufacturer's recommendations for product application frequencies. | K92: Proper maintenance of the wood siding will benefit the appearance of the community, as well as help prevent moisture and pest issues.
B93: Walls, PVC Trim | C93: Walls, PVC Trim | D93: -- | E93: Visually inspect all PVC trim and search for signs of damage, warp, deterioration, loose sections, missing sections or any other obvious issues. Conduct repairs to PVC trim, ensuring that the all components are securely in place. Replace areas of PVC trim that cannot be easily repaired. Alternatively, perform the visual inspection as noted above and create a punch list of items that need to be addressed. Contact a qualified contractor to conduct repairs as needed. | F93: -- | G93: -- | H93: -- | I93: -- | J93: Visually inspect the PVC trim and note any areas that require cleaning. Use water and a cloth or soft bristle brush to clean the surfaces if within reach. Higher locations of PVC trim should be cleaned with a low pressure sprayer, such as a garden hose, spraying the outer surface only. Use caution if cleaning with a pressure washer to ensure that water is not driven behind the trim. If using a cleaning solution, follow the manufacturer’s directions for the correct type of cleaner to use. | K93: Proper maintenance of the PVC trim will benefit the appearance of the community, as well as help prevent moisture and pest issues.
B94: Walls, Stucco / EIFS | C94: Walls, Stucco / EIFS | D94: Visually inspect flashing and sealants to ensure building envelope are weathertight. Replace damaged or missing flashing. Replace dry, cracked or brittle sealants. Clean surface with cool, low pressure water, a soft bristle brush and a mild detergent. Do not use any solvents on the surfaces. Conduct crack repairs and patches to damaged walls with manufacturer-approved products. With continued spot repairs, the exterior surface may develop uneven coloring or may become unsightly. Investigate the benefit of an exterior coating (usually acrylic or elastomeric). The coating should be vapor permeable to prevent trapping moisture against building. | E94: If applicable, ensure gutters and downspouts are clear and appropriately sized. Check that irrigation system heads are directed away from the buildings to prevent exposure to moisture. Prune vegetation back at least 6 inches from buildings. | F94: -- | G94: -- | H94: -- | I94: -- | J94: Visually inspect stucco or EIFS facades after major storm events and search for signs of damage. | K94: Proper maintenance of the exterior finishing system will benefit the appearance of the community, as well as help prevent moisture and pest issues.
B95: Walls, Stucco | C95: Walls, Stucco / EIFS | D95: Visually inspect flashing and sealants to ensure building envelope are weathertight. Replace damaged or missing flashing. Replace dry, cracked or brittle sealants. Clean surface with cool, low pressure water, a soft bristle brush and a mild detergent. Do not use any solvents on the surfaces. Conduct crack repairs and patches to damaged walls with manufacturer-approved products. With continued spot repairs, the exterior surface may develop uneven coloring or may become unsightly. Investigate the benefit of an exterior coating (usually acrylic or elastomeric). The coating should be vapor permeable to prevent trapping moisture against building. | E95: If applicable, ensure gutters and downspouts are clear and appropriately sized. Check that irrigation system heads are directed away from the buildings to prevent exposure to moisture. Prune vegetation back at least 6 inches from buildings. | F95: -- | G95: -- | H95: -- | I95: -- | J95: Visually inspect stucco or EIFS facades after major storm events and search for signs of damage. | K95: Proper maintenance of the exterior finishing system will benefit the appearance of the community, as well as help prevent moisture and pest issues.
B96: Walls, EIFS | C96: Walls, Stucco / EIFS | D96: Visually inspect flashing and sealants to ensure building envelope are weathertight. Replace damaged or missing flashing. Replace dry, cracked or brittle sealants. Clean surface with cool, low pressure water, a soft bristle brush and a mild detergent. Do not use any solvents on the surfaces. Conduct crack repairs and patches to damaged walls with manufacturer-approved products. With continued spot repairs, the exterior surface may develop uneven coloring or may become unsightly. Investigate the benefit of an exterior coating (usually acrylic or elastomeric). The coating should be vapor permeable to prevent trapping moisture against building. | E96: If applicable, ensure gutters and downspouts are clear and appropriately sized. Check that irrigation system heads are directed away from the buildings to prevent exposure to moisture. Prune vegetation back at least 6 inches from buildings. | F96: -- | G96: -- | H96: -- | I96: -- | J96: Visually inspect stucco or EIFS facades after major storm events and search for signs of damage. | K96: Proper maintenance of the exterior finishing system will benefit the appearance of the community, as well as help prevent moisture and pest issues.
B97: Walls, Granite Panels | C97: Walls, Granite Panels - CHECK INTERIOR MARBLE WALLS | D97: Conduct visual inspection of granite facades. Observe signs of damaged or loose granite. Repair or replace areas as needed. Hose walls to remove dirt and debris. For north elevations or shaded elevations, use a solution of 1 cup bleach and a gallon of water, along with a soft or medium brush to remove moss, mold or mildew. Prune back vegetation at least 6 inches from walls. Inspect interface between granite and other materials, such as window and door frames, or other siding. Flexible sealants should be continuous and soft to the touch. Replace sealants where needed. | E97: -- | F97: -- | G97: -- | H97: -- | I97: -- | J97: Sealer applications may be beneficial in locations where granite is low to the ground and comes in frequent contact with water or snow melt chemicals. The sealer will make cleaning easier. Apply a penetrating / impregnating sealer to surfaces as needed, to prevent staining and discoloration. | K97: --
B98: Walls, Precast Concrete | C98: Walls, Precast Concrete | D98: Visually inspect all concrete surfaces annually at a minimum, or at the frequency required by code, to identify signs of deterioration, settlement, cracks, leaking, water infiltration, spalling, efflorescence, or exposed reinforcing bars. Alternatively, contract with a qualified engineering consultant to prepare a professional inspection/condition report. Locate and monitor all identified cracks. Contract with a qualified vendor to route and fill all cracks over 1/8" in width. Contract with a qualified vendor to conduct spot patching and repairs at all areas that exhibit spalling, severe cracking or other forms of deterioration. Inspect all sealants at connections and at control joints. Ensure sealants are intact, flexible, and have not failed. Replace sealants as required. Alternatively, contract with a qualified vendor to replace deteriorated or missing sealants. | E98: -- | F98: -- | G98: -- | H98: -- | I98: -- | J98: -- | K98: Many state or local statutes / ordinances require routine façade examinations. Refer to local codes for guidance on inspection frequencies, methods, and requirements. The Association may wish to consider the application of a commercial elastomeric coating system at concrete surfaces to reduce deterioration from moisture.
B99: Wall Panels, Vinyl | C99: Wall Panels, Vinyl | D99: -- | E99: -- | F99: -- | G99: -- | H99: -- | I99: -- | J99: Clean the surfaces as-needed with a mild soap and warm water. Check for tears, cracks or any other form of damage. Conduct repairs as soon as possible. | K99: --
A100: x | B100: Elevator Cab Finishes | C100: Elevator Cab Finishes (Laminate Wall Panels, Handrails, Dropped Plastic Ceiling with Lights, Carpet Flooring, Wall-Mounted Handrails) | D100: Clean ceiling with soft cloth. | E100: Remove dust and loose dirt with vacuum cleaner and upholstery attachments. Remove wall and ceiling smudges or clinging dirt with a wall cleaner. | F100: -- | G100: -- | H100: Vacuum carpet or wash tile floor. | I100: -- | J100: -- | K100: --
B101: Windows, Wood-Frame with Storm Windows | C101: Windows, Wood-Frame with Storm Windows (Historic) | D101: Inspect sealants and caulking at the perimeters of interior window systems and storm window systems to ensure they are soft, flexible, and weather-tight. Replace cracked, brittle or failed sealants as needed by removing existing caulking, removing existing backer rod (if present), cleaning out cavity, installing new backer rod (if applicable), and installing new caulking at perimeter joints. Inspect window gaskets (if applicable) to ensure they are present, well positioned, and that there are no visual signs of deterioration. Replace deteriorated window gaskets as needed. If screens are present, inspect screens for holes, tears, or rips. Replace isolated screen sections as needed. Conduct a visual inspection of the interior windows and storm windows and note deterioration at surfaces, such as scratches, cracks or peeling finishes. Wood surfaces with scratches or light damage should be touched up to ensure a uniform aesthetic appearance. Replace all wood components with signs of rot or damage. Fill cracks at wood window frames with a matching finishing product. If the cracks are large enough to have an aesthetic impact on the window frame, fill voids with wood filler, sand down, and apply a finish to match surrounding wood window surfaces. | E101: Visually inspect all glass surfaces for signs of cracks or chips. Visually inspect interior windows for signs of failed insulating glass and/or failed seals, such as condensation within window panes, fogged glass, leaks, or excessive moisture. Replace isolated glass panes as needed. For operable interior windows or storm windows, lubricate all hinges, sliders, rollers and/or hardware. Physically inspect and operate the windows and hardware to ensure proper function. Replace dysfunctional hardware as needed. | F101: -- | G101: -- | H101: -- | I101: -- | J101: Clean window glass surfaces with a sponge or squeegee using a mild detergent suitable for glass surfaces. Clean window frames with a soft bristled brush and warm water. Alternatively, contract with a qualified window washing service. Wipe interior window sills accessible at common areas with a soft cloth to remove accumulated dust, dirt or debris. | K101: --
B102: Windows and Glass Doors, Aluminum Frame | C102: Windows and Patio Doors, Aluminum Frame | D102: Inspect sealants and caulking at the perimeters of window and door systems to ensure they are soft, flexible, and weather-tight. Replace cracked, brittle or failed sealants as needed by removing existing caulking, removing existing backer rod (if present), cleaning out cavity, installing new backer rod (if applicable), and installing new caulking at perimeter joints. Inspect gaskets and seals to ensure they are present, well positioned, and that there are no visual signs of deterioration. Replace deteriorated gaskets and seals as needed. If screens are present, inspect screens for holes, tears, or rips. Replace isolated screen sections as needed. Conduct a visual inspection of the aluminum windows and doors and note deterioration at metal surfaces, such as scratches or peeling paint finishes. Aluminum surfaces with finish deterioration should be cleaned, flaked / chipped paint should be removed, surfaces should be spot primed, and two coats of exterior grade paint specified for aluminum surfaces should be applied where needed. | E102: Visually inspect all glass surfaces for signs of cracks or chips at glass panes. Visually inspect window and door systems for signs of failed insulating glass and/or failed seals, such as condensation within window panes, fogged glass, leaks, or excessive moisture. Replace isolated glass panes as needed. For operable windows and doors, lubricate all hinges, rollers, sliders, and/or hardware. Physically inspect and operate the windows and hardware to ensure proper function. Replace dysfunctional hardware as needed. | F102: Clean dirt and debris from exterior patio door tracks with a stiff brush and soapy water. Remove dust and debris from interior door tracks using a vacuum with a narrow head attachment. Physically inspect doors to ensure smooth operation. If doors do not operate smoothly, adjust or replace door rollers as needed. | G102: -- | H102: -- | I102: -- | J102: Clean window glass surfaces with a sponge or squeegee using a mild detergent suitable for glass surfaces. Alternatively, contract with a qualified window washing service. Wipe interior window sills accessible from common areas with a soft cloth to remove accumulated dust, dirt or debris. | K102: --
B103: Windows and Doors, Wood Frame | C103: Windows and Doors, Wood Frame | D103: Inspect sealants and caulking at the perimeters of windows and doors to ensure they are soft, flexible, and weather-tight. Replace cracked, brittle or failed sealants as needed by removing existing caulking, removing existing backer rod (if present), cleaning out cavity, installing new backer rod (if applicable), and installing new caulking at perimeter joints. Inspect window gaskets (if applicable) to ensure they are present, well positioned, and that there are no visual signs of deterioration. Replace deteriorated window gaskets as needed. If screens are present, inspect screens for holes, tears, or rips. Replace isolated screen sections as needed. Conduct a visual inspection of the windows and doors, and note deterioration at surfaces, such as scratches, cracks or peeling finishes. Wood surfaces with scratches or light damage should be touched up to ensure a uniform aesthetic appearance. Replace all wood components with signs of rot or damage. Fill cracks at wood window and door frames with a matching finishing product. If the cracks are large enough to have an aesthetic impact on the frame, fill voids with wood filler, sand down, and apply a finish to match surrounding wood surfaces. | E103: Visually inspect all glass surfaces for signs of cracks or chips. Visually inspect windows for signs of failed insulating glass and/or failed seals, such as condensation within window panes, fogged glass, leaks, or excessive moisture. Replace isolated glass panes as needed. For doors and operable windows, lubricate all hinges, sliders, rollers and/or hardware. Physically inspect and operate the windows and doors, including hardware to ensure proper function. Replace dysfunctional hardware as needed. | F103: -- | G103: -- | H103: -- | I103: -- | J103: Clean glass surfaces with a sponge or squeegee using a mild detergent suitable for glass surfaces. Clean frames with a soft bristled brush and warm water. Alternatively, contract with a qualified window and door washing service. Wipe interior surfaces accessible at common areas with a soft cloth to remove accumulated dust, dirt or debris. | K103: --
B104: Windows and Glass Doors | C104: Windows and Patio Doors, Townhome Style | D104: Inspect sealants and caulking at the perimeters of window and door systems to ensure they are soft, flexible, and weather-tight. Replace cracked, brittle or failed sealants as needed by removing existing caulking, removing existing backer rod (if present), cleaning out cavity, installing new backer rod (if applicable), and installing new caulking at perimeter joints. Inspect gaskets and seals to ensure they are present, well positioned, and that there are no visual signs of deterioration. Replace deteriorated gaskets and seals as needed. If screens are present, inspect screens for holes, tears, or rips. Replace isolated screen sections as needed. Conduct a visual inspection of the windows and doors and note deterioration at surfaces, such as scratches or peeling finishes. Metal surfaces with finish deterioration should be cleaned, flaked / chipped paint should be removed, surfaces should be spot primed, and two coats of exterior grade paint specified for aluminum surfaces should be applied where needed. Wood surfaces with scratches or light damage should be touched up to ensure a uniform aesthetic appearance. Replace all wood components with signs of rot or damage. For vinyl window and door systems, refer to specific manufacturer recommendations for finish restoration. | E104: Visually inspect all glass surfaces for signs of cracks or chips at glass panes. Visually inspect window and door systems for signs of failed insulating glass and/or failed seals, such as condensation within window panes, fogged glass, leaks, or excessive moisture. Replace isolated glass panes as needed. For operable windows and doors, lubricate all hinges, rollers, sliders, and/or hardware. Physically inspect and operate the windows and hardware to ensure proper function. Replace dysfunctional hardware as needed. Visually inspect the door perimeters from the interior, looking for signs of daylight. Install / repair / replace weatherstripping and/or door sweeps as needed to ensure a proper seal. | F104: Physically inspect doors to ensure smooth operation. If doors do not operate smoothly, adjust or replace door rollers as needed. For patio doors, clean dirt and debris from exterior patio door tracks with a stiff brush and soapy water. Remove dust and debris from interior door tracks accessible from common areas using a vacuum with a narrow head attachment. | G104: -- | H104: -- | I104: -- | J104: Clean glass surfaces with a sponge or squeegee using a mild detergent suitable for glass surfaces. Alternatively, contract with a qualified window washing service. Wipe interior window sills accessible at common areas with a soft cloth to remove accumulated dust, dirt or debris. | K104: --
B105: Windows, Aluminum-Frame | C105: Windows, Aluminum-Frame, Commercial Style Glazing | D105: Inspect sealants and caulking at the perimeters of window systems to ensure they are soft, flexible, and weather-tight. Replace cracked, brittle or failed sealants as needed by removing existing caulking, removing existing backer rod (if present), cleaning out cavity, installing new backer rod (if applicable), and installing new caulking at perimeter joints. Inspect window gaskets to ensure they are present, well positioned, and that there are no visual signs of deterioration. Replace deteriorated window gaskets as needed. If screens are present, inspect screens for holes, tears, or rips. Replace isolated screen sections as needed. Conduct a visual inspection of the aluminum windows and note deterioration at metal surfaces, such as scratches or peeling paint finishes. Aluminum surfaces with finish deterioration should be cleaned, flaked / chipped paint should be removed, surfaces should be spot primed, and two coats of exterior grade paint specified for aluminum surfaces should be applied where needed. | E105: Visually inspect all glass surfaces for signs of cracks or chips at glass panes, spandrel panels (if applicable) and mullion systems. Visually inspect windows for signs of failed insulating glass and/or failed seals, such as condensation within window panes, fogged glass, leaks, or excessive moisture. Replace isolated glass panes as needed. For operable windows, lubricate all hinges, sliders, rollers and/or hardware. Physically inspect and operate the windows and hardware to ensure proper function. Replace dysfunctional hardware as needed. | F105: -- | G105: -- | H105: -- | I105: -- | J105: Clean window glass surfaces with a sponge or squeegee using a mild detergent suitable for glass surfaces. Alternatively, contract with a qualified window washing service. Wipe interior window sills accessible from common areas with a soft cloth to remove accumulated dust, dirt or debris. | K105: --
B107: INTERIOR BUILDING COMPONENTS | D107: ANNUALLY | E107: SEMI-ANNUALLY | F107: QUARTERLY | G107: MONTHLY | H107: WEEKLY | I107: DAILY | J107: AS-NEEDED | K107: NOTES - NOT ACTIONABLE
A108: x | B108: Elevators, Traction | C108: Elevators, Traction - refer to others | D108: Schedule annual inspections through the governing authority. | E108: -- | F108: -- | G108: -- | H108: -- | I108: -- | J108: Inspect the interior of the elevator cab to identify damage to the walls, ceiling and handrails. Observe and listen to operation of elevators and doors. Note any changes to the sound or movement. Keep a log of any changes and report this information to your elevator service contractor. Keep the elevator control room clear of all debris and any elements not related to the operation of the elevator. The elevator control room should never be used for storage. | K108: Due to the complexity and legal requirements of operating an elevator, only qualified service technicians should attempt repairs or modifications to elevator equipment. The Association should have a preventative maintenance contract in place for regular inspections of elements including: phones, fire recall, door operation, emergency power, lighting, alarm bell, cables, and hoist operation, among many other elements.
B109: Appliances, Ice Machine | D109: -- | E109: -- | F109: -- | G109: Check the pressure in the water system. Check temperature inside the unit. Check the condition and operation of controls and wiring. Check fasteners and look for corrosion. Check water sensors, thermistors, water distributor parts, water hoses and water sump or reservoir, bearings, water valve and screen. | H109: -- | I109: -- | J109: Routinely clean and service the ice machine as needed. Clean evaporator plates of calcium, lime and iron buildup that can impede heat transfer and cause freeze-up. Inspect all parts that come into contact with water or ice for mold, slime and scale. Flush the water system, then circulate ice machine cleaning solution through it to remove contaminants. Drain and clear the storage bin. Clean the bin as needed. | K109: Follow all manufacturer's recommendations for scheduled maintenance and appropriate cleaning products.
B110: Appliances, Office Equipment | C110: Appliances, Office Equipment - refer to others | D110: -- | E110: -- | F110: -- | G110: Spray compressed air in and around equipment. Follow up with vacuum designed for anti-static applications. | H110: Monitor temperature and humidity in room. High temperature and moisture environments can reduce the operational efficiency and useful lives of the equipment. Wipe monitors/screens and keyboards with static-free clothes and cleaner designed for screens. | I110: -- | J110: -- | K110: For large equipment like commercial printers/copiers, contract with qualified service technician for regular maintenance.
B111: Bleachers | C111: Bleachers | D111: Check for proper anchor/ground sill attachments, frame and cross brace locations, all bolted connections, and all welded connections for signs of deterioration or unsafe conditions. Visually inspect guardrails, railings, and end caps, and ensure railings are secure and straight. Ensure wood surfaces are smooth, without splices or splits. Visually check wood surfaces for wear and apply finishes or sealers as required. Visually assess entry stairs, if applicable, for unsafe conditions, soundness, and signs of deterioration. | E111: -- | F111: -- | G111: -- | H111: Dust surfaces on a weekly basis, or more frequently in high-traffic areas as needed. Visually inspect the pinsetter and ball return machines for loose hardware, damaged or worn parts. Remove dust from scoring and viewing screen components. Spray compressed air in and around equipment. Follow up with vacuum designed for anti-static applications. | I111: -- | J111: Follow all local inspection ordinances for bleachers within educational or sports facilities.
B112: Scoreboards | C112: Scoreboards | D112: -- | E112: Wipe the sign dry with a cloth working from top to bottom. The scoreboard equipment should be inspected, reassembled and tested seasonally, to allow ample time for the return and repair of any malfunctioning parts. | F112: -- | G112: -- | H112: -- | I112: -- | J112: Due to the possibility of electric shock, physical inspection and repairs/replacements of electrical components are recommended to be performed by a qualified electrician. Survey and create an inventory of all Association maintained electrical equipment, noting the location, area of service, condition and age. The frequency of maintenance will be dependent on the age, type, condition, history of maintenance and location of the electrical equipment. This analysis of the electrical system should be performed by a qualified electrician. Create an electrical maintenance plan (EMP) based on the above analysis. Keep a log of all electrical related issues and maintenance activities. Inspect all electrical equipment, fixtures, outlets as necessary, (or as required by local statutes or insurance). Look for loose connections, corrosion, damage, moisture issues or debris/dirt accumulation. Conduct repairs or replacements as needed. Conduct a thermoscan of equipment to ensure proper function. Replace components that do not function properly. This activity should be performed by qualified technician/contractor as necessary. Test light fixtures, outlets and GFCI receptacles to ensure proper function. If the any of the equipment does not function properly, repair or replace immediately. | K112: Always close the signs operating system before disconnecting power from the sign. This will avoid data from becoming corrupt or the operating system locking up. Service should only be performed after the display is disconnected from its power source. All controls should be placed in a dry location of moderate temperatures and placed in their carrying cases.
B113: Bowling Alley | C113: Bowling Alley | D113: -- | E113: -- | F113: Visually inspect the pinsetter and ball return machines for fatigued metal connections and proper adjustment. Contact a professional machine operator to correct adjustment and alignment concerns. | G113: Apply lane conditioner at lane panel entries as needed. Properly apply lubricants to pinsetter and ball return machine components. Inspect all shafts, bearings, sprockets, chains and pulleys for condition and adjustment. Check all pin shovels and shovel hardware. Inspect all shovel pivot levers. Inspect the condition, alignment, adjustment and operation of the pin count switch. Inspect the condition of the sweep wagon frame and frame welds. Check the roller mounting and adjustment. Check the conditions of the pusher rods and pusher rod bushings. Inspect the conditions of the protector blocks and block mounting hardware. Check all sweep wagon hardware. Inspect electrical components, ball detector and reflector components, and ball rack reset buttons.. | H113: Clean the approach area, lane panels, gutters, and ball return rack surfaces. Visually inspect the pinsetter and ball return machines for loose hardware, damaged or worn parts. Remove dust from scoring and viewing screen components. Spray compressed air in and around equipment. Follow up with vacuum designed for anti-static applications. | I113: -- | J113: Cleaning of the pinsetter machine and ball return system depends on the amount of bowling activity, as well as the quality and type of conditioner oil used. Ensure the pinsetter machine is clean and free of debris using a vacuum and general purpose cleaner.
A114: x | B114: Exercise Equipment | C114: Exercise Equipment | D114: -- | E114: -- | F114: -- | G114: -- | H114: Unplug electric equipment, inspect and tighten external parts. Apply mild multi-purpose cleaner and cotton cloth to remove dust and grime from machines. Inspect all belts, cables and pulleys for safe operation. Lubricate moving components. Check that all equipment is level. Ensure that all emergency stop switches and safety bars are in place and operational. | I114: -- | J114: -- | K114: Refer to maintenance manuals provided by manufacturer. Alternatively, contract with service technician to apply preventative maintenance.
A115: x | B115: Exhaust Fans | C115: Exhaust Fans, Serving Small Interior Specific Spaces (mechanical rooms, etc.) | D115: We recommend a qualified technician perform these maintenance tasks. Always shut off power supply to the exhaust fans prior to maintenance. Inspect the shell, blades, connectors, motor housing and other visible components. Look for any signs of damage, deterioration or excessive wear. Inspect the bearings and look for wear or other damage. Inspect and test motors for proper operation. Grease and lubricate all moving parts according to manufacturer's specifications. Use appropriate materials as specified by the manufacturer. Replace parts as necessary to ensure proper function of the exhaust fan system. | E115: -- | F115: -- | G115: -- | H115: -- | I115: -- | J115: We recommend a qualified technician perform these maintenance tasks. Always shut off power supply to the exhaust fans prior to maintenance. Clean fan components, such as housings, blades, motors and screens to ensure that they are free of debris, oil, dirt, etc. Grease and lubricate all parts according to manufacturer's specifications. Use appropriate materials as specified by the manufacturer. Inspect the belts to identify the condition. Worn, frayed, cracked or damage belts should be replaced. Keep the area around the fan free of debris. During operation of the fans, listed for irregular noises. Service the fan if necessary. | K115: Regular maintenance of the exhaust fans will lengthen the useful life as well as reduce operating costs and unscheduled service costs.
B116: Countertops, Solid Surface / Engineered | C116: Countertops, Solid Surface / Engineered | D116: Inspect countertop surfaces, including edges and backsplash surfaces, for chips, cracks or cut marks that may require attention and/or immediate repairs. Some specific solid surface countertops may require or benefit from the application of a penetrating sealer. Refer to specific manufacturer or product specifications for recommendations on applicability, frequency and methods. | E116: -- | F116: -- | G116: -- | H116: Apply a cleaner approved for solid surface countertop surfaces on the entire countertop surface, including edges, to remove all accumulated dust, dirt and debris. | I116: -- | J116: Wipe solid surface countertops with a soft cloth and mild soap or detergent solution, avoiding abrasive cleaners. Rinse and remove any soap residue left on the countertop surfaces. Dry the countertop after washing to prevent water from pooling. | K116: --
B117: Countertops, Laminate | C117: Countertops, Laminate | D117: Inspect countertop surfaces, including edging, for chips, cracks, burn marks or cut marks that may require attention and/or immediate repairs. Check for delamination at laminate seams and/or edging. If delamination is found, conduct spot repairs immediately in order to prevent water damage to the substrate. Use a quality contact adhesive applied with a putty knife, heat gun, roller, and the application of a temporary weighted object. | E117: -- | F117: -- | G117: -- | H117: -- | I117: -- | J117: Wipe laminate countertops with a soft cloth and mild soap or detergent solution, avoiding abrasive cleaners. Rinse and remove any soap residue left on the countertop surfaces. Dry the countertop after washing to prevent water from pooling. | K117: --
A118: x | B118: Fire Detection / Notification Systems | C118: Fire Detection / Notification Systems (Main Panel + Devices) - refer to others | D118: Contract with approved service contractor to inspect and test fire systems in accordance with Chapter 14 of NFPA 72. | E118: Verify trouble signals are readily visible. Verify remote annunciators are in good working condition. | F118: -- | G118: -- | H118: -- | I118: -- | J118: -- | K118: All maintenance and testing should follow NFPA 72, local standards and manufacturer recommendations. Due to the complexity of fire systems and in order to meet industry standards, all maintenance and testing should be conducted by qualified personnel.
B119: Ceilings, Slat-Style, Metal | C119: Ceilings, Slat-Style, Metal | D119: Clean ceiling with soft cloth. | E119: -- | F119: -- | G119: -- | H119: -- | I119: -- | J119: Clean ceilings near exhaust vents where particulates may accumulate faster than in other areas. | K119: --
B120: Ceilings, Wood | C120: Ceilings, Wood | D120: Clean with soft rag and mild cleaning solution. Test a small area to ensure no color changing. Clean in small areas and dry sections immediately after washing. Polish with wood polish. | E120: -- | F120: Dust ceiling. This process is made easiest with telescoping dusting tool. | G120: -- | H120: -- | I120: -- | J120: -- | K120: --
A121: x | B121: Fire Extinguishers | C121: Fire Extinguishers | D121: -- | E121: -- | F121: -- | G121: Ensure fire extinguishers are properly and securely located in cabinets or attached to wall surfaces. Ensure that pathways leading to extinguishers are accessible and ensure extinguishers are visible. Check the pressure within all extinguishers by pressing the extinguisher test indicator, or by monitoring the pressure gauge's indicator needle. If the pressure within the extinguisher is low or has dropped, replace the extinguisher immediately. Visually inspect the extinguisher safety seals to ensure they are intact. Ensure nozzles and hoses are clean. Log noted deficiencies on the inspection tag located on the extinguishers, or in a centrally located maintenance log. | H121: -- | I121: -- | J121: -- | K121: --
A122: x | B122: Fire Suppression Systems | C122: Fire Suppression Systems (wet or dry) | D122: Contract with licensed technician to inspect and maintain all fire suppression system components. Make repairs as needed. | E122: -- | F122: Confirm that hydraulic nameplate is secure to sprinkler riser. Check alarm devices for physical damage. | G122: Check gauges for signs of physical damage. Conduct external inspection of alarm valves. | H122: Inspect air and water pressure gauges for normal readings. Check control valves for leaks, locked in the open position and are tagged. Inspect visible piping that they are not obstructed or used as hangers for non-fire suppression system property/elements. | I122: -- | J122: -- | K122: All maintenance and testing should follow NFPA 25 and local standards. Due to the complexity of the system and in order to meet industry standards, all maintenance and testing should be conducted by qualified personnel.
A123: x | B123: Fireplace, Natural Gas | C123: Fireplace - natural gas fireplace | D123: Conduct a safety inspection of all fireplace and insert components to ensure proper function. We recommend using a qualified HVAC technician. Inspect for gas leaks. | E123: -- | F123: -- | G123: -- | H123: -- | I123: -- | J123: Clean the burner, logs, fireplace walls, and all other fireplace components. Ensure that the components are free of dirt, dust, deposits or debris. Inspect and clean the fireplace flue (the frequency is dependent on usage but should be inspected annually). Visually inspect the flue caps and components for accumulation of debris or other combustible solids. Remove accumulation as needed. Repair flue if needed. | K123: -- | M123: X | O123: X | R123: X | AC123: X | AE123: X | AF123: X
A124: x | B124: Floor Coverings, Carpet | C124: Floor Coverings, Carpet | D124: Depending on usage, age and condition, carpet should be professionally steam cleaned every 12-18 months. Steam cleaning should only be undertaken by a professional carpet cleaner or a member of a professional association. | E124: -- | F124: Wet shampoo carpet flooring when weekly care fails to properly remove excessive embedded soil or restore the carpet texture or coloring. Using a mild detergent with water (consider using a product approved by The Carpet and Rug Institute of America), use a commercial-grade shampooer over the entire area. Ensure that excess suds are removed. Allow area to dry extensively before allowing foot traffic in the area. | G124: -- | H124: Vacuum carpet flooring regularly to maintain pile height and texture and to prevent embedded soil, weekly at a minimum, but more frequently in high-traffic areas and according to the amount of foot traffic and weather conditions outside. Inspect carpet for snags, sprouts, burns, or other damage that may require immediate repair. | I124: -- | J124: Remove spills, spots and stains as needed by first immediately absorbing as much liquid as possible with an absorbent material. Stain-treat the area by blotting the stain with a small amount of concentrated cleaning solution until the stain is removed (consider using a product approved by The Carpet and Rug Institute of America). For wet soils, use a self-contained extractor with a brush and vacuum system, making several passes at a slow speed. For dry soils, use a vacuum with the brush adjusted at the lowest setting. For set-in stains, apply hot water with a neutral soap solution and proceed as recommended for a wet soil stain. | K124: Invest in high-quality floor mats for an extra layer of protection. Place the floor mats at building entrances and exits to collect and trap corrosive substances that can be tracked in, such as dirt, sand, oil, grit, etc.
A125: x | B125: Floor Coverings, Resilient | C125: Floor Coverings, Resilient, Vinyl Tile | D125: -- | E125: -- | F125: -- | G125: -- | H125: Use a soft mop or cloth to remove dust and dirt from floor surfaces. Wet wash vinyl floor surfaces with water and a non-abrasive cleaner. Allow floor surfaces to air dry. | I125: -- | J125: Remove spills, spots, and stains as needed by immediately absorbing as much liquid as possible with an absorbent material. Wet wash vinyl floor surfaces with water and a non-abrasive cleaner. Allow floor surfaces to air dry. | K125: Invest in high-quality floor mats for an extra layer of protection. Place the floor mats at building entrances and exits to collect and trap corrosive substances that can be tracked in, such as dirt, sand, oil, grit, etc.
A126: x | B126: Floor Coverings, Terrazzo | C126: Floor Coverings, Terrazzo | D126: Inspect terrazzo floor surfaces for surface imperfections, loss of shine, or areas of slipperiness. If required, dry-run a burnisher over floor surfaces in order to restore shine. | E126: -- | F126: -- | G126: -- | H126: Use a soft mop or cloth to remove dust and dirt from floor surfaces. Wet wash the terrazzo floor surfaces with water and a mild detergent. Allow floor surfaces to air dry. | I126: -- | J126: Remove spills, spots, and stains as needed by immediately absorbing as much liquid as possible with an absorbent material. Wet wash the floor surfaces with water and a mild detergent. Allow floor surfaces to air dry. | K126: Invest in high-quality floor mats for an extra layer of protection. Place the floor mats at building entrances and exits to collect and trap corrosive substances that can be tracked in, such as dirt, sand, oil, grit, etc.
